Workbook

Sheet Notes
A1: Notes and Revision History
A2: Updated: | B2: 2021-10-20
A4: GENERAL NOTES:
A5: 1. Either a single 18-meter antenna or the full array is selectable for sensitivity calculation (Aeff/Tsys).
A6: 2. Antenna configuration is an optimally-shaped offet-Gregorian, feed arm "low" ('ngVLA-7', R. Lehmensiek, Dec. 2020)
A7: 3. Aperture efficiency includes all contributions from the feed and antenna (illumination, spillover, phase, surface, etc.)
A8: 4. Spillover noise is included in Tsys, where it can be predicted.
A9: 5. Surface (Ruze) accuracy is an editable parameter; changing it will update the overall aperture efficiencies.
A10: 6. Antenna elevation is selectable as 15, 30, 45, 60, or 90 degrees; dynamically changes Tsky and Tspill.
A11: 7. Sky temp (Tsky) is assumed for VLA site. Tsky vs. PWV data from Butler (2016,2020), and selectable as 1, 6, or 13 mm.
A13: REVISION HISTORY (from ver. 1):
A14: (Ver. 1) First released version. Approximate Trx analysis, with 3 frequency points per band (band edges, midband).
A15: (Ver. 2) Fixed cascaded noise calculation errors, new Trx plot vs frequency, restructed tables and referencing.
A16: (Ver. 3) Revised LNA data to reflect actual available devices, added reference notes. Restructured waveguide data tables.
A17: (Ver. 4) Increased frequency points to 7 per band, from the original 3.
A18: (Ver. 5) Added new data tabs for antenna and feed parameters, sky temperature. Added a second plot with Tsys.
A19: (Ver. 6) Increased frequency points to 10 per band, reformatted plots. Updated Band 4 LNA data. Added Tsys/η, SEFD data.
A20: Added macro function to calculate waveguide loss directly. Eliminated redundant radome loss on Bands 1 &2.
A21: Added macro function to generate XML-formatted data file for ngVLA sensitivity calculator.
A22: (Ver. 7) Modified SEFD calc for ngVLA expansion from 214 to 263 antennas. Added notes & revision history tab.
A23: (Ver. 8) Revised OMT loss data to use the NAOJ ALMA Band 2 OMT design on Band 6, with scaling for Bands 3-5.
A24: Added a custom waveguide selection (WR56.3) on Band 3, to reduce loss at lower band edge.
A25: Also added an extra 1K to Tsys in all configurations, to account for the ngVLA IRD contribution.
A26: (Ver. 9) Added a second cryogenic LNA to the cascade on Band 6, to meet the 30 dB min. gain requirement.
A27: (Ver. 10) Corrected the LNA output on Bands 3, 4: should be 086 SS coax. Extended cable loss data to 35 GHz.
A28: Removed calculations of Tsys and SEFD from summary; these were found to not be sufficiently accurate.
A29: Added preliminary aperture efficiency data from CSIRO for their Band 2 design, and a plot against Caltech QRFH.
A30: Added spillover data from Caltech Band 1 QRFH for elevation angles of 15, 30, 45, 60 and 90 degrees.
A31: (Ver. 11) Updated data on Band 2 *only*, for either EMSS and CSIRO wideband feeds (selectable). Band 1 is still the Caltech QRFH.
A32: Added Tatm data for elevation angles of 15, 30, and 60 degrees, all three PWVs; added elevation angle selections.
A33: Restored calculation of Tsys to summary; replaced calculation of Tsys/eta with Aeff/Tsys as well.
A34: Included galactic and CMB temperatures (Tbg) in all Tsky values, corrected for atmospheric attenuation
A35: Applied Planck formula to correct each component of Tsys for deviation from Rayleigh-Jeans approximation.
A36: Fixed a minor bug in Tspill lookup for Bands 3-6: it was using zenith angle, rather than elevation angle.
A37: Revised LNA data for Bands 1 & 2 to use different, newer devices with better performance.
A38: Added reflector surface loss noise data from NRC report (2019) to Tsys in Performance Summary.
A39: Included a term derived from surface loss noise into total aperature efficiency in the Performance Summary.
A40: Eliminated the need for a 'REFRESH' button to force recalculation on the 'Summary' worksheet
A41: Updated receiver cascade sheets to use an index to a temperature table, instead of a data pulldown.
A42: Unlike with the original pulldown list, a value change in the temperature table will update all corresponding
A43: values in the cascade worksheets, and force an automatic recalculation of the summary page.
A44: (Ver. 12) Updated receiver cascade to include effect of passive noise injection from the calibration path.
A45: This was implemented as an additional component in the cascade directly after the thru coupler component.
A46: The component was modeled like a unity-gain amplifier with a noise temperature defined by the physical
A47: temperature input reduced by the frequency-dependent coupling factor shown in the coupler data table.
A48: (Thanks to Dr. Sara Salem Hesari of NRC for spotting this important omission in the cascade.)
A49: Fixed a bug where adding components to a cascade table messed up Gcas, Tcas values in the Summary table.
A50: Added approximate dynamic range calculation, based on worst-case noise output and LNA linearity estimates
A51: Updated values for aperture efficiency, based on results of EMSS optics/feed design studies in 2020
A52: Specifically, this accounts for the new optical design (ngVLA #7), and new Band 1 feed horn from EMSS.
A53: The new (ver. 2020) EMSS QR feed for Band 1 replaced the original Caltech QRFH from the reference design.
A54: A totally reorganized Antenna Data worksheet was added, and Summary table now references it directly.
A55: Eliminated alternate EMSS Band 2 feed choice - use CSIRO design exclusively.
A56: (Re)added a 'UPDATE' button to force recalculation on the 'Summary' worksheet.
A57: Added a user input selection for array configuration (single 18m, full array), to see effect on Aeff/Tsys
A58: Increased number of frequency points in all cascaded bands from 10 to 11.
A59: Adjusted frequency point spacing in all cascaded bands to be logarithmic.
A60: Added option to select either 80% or Full receiver BW on calculation of averaged & worst-case values on each band.
A61: Extended Band 2 lower band edge down to 3.4 GHz, from the original 3.5 GHz. Band 1 frequency limits are unchanged.
A62: The IRD (back end analog) noise contribution of 1K to Tsys had been turned off - reenabled it.
A63: (Ver. 13) Removed CMB contribution from Tbg table in 'Data-Tatm' sheet; it was already included in Tatm table.
A64: Renamed Tbg table as 'Tgal', for galactic emission noise *only*, since CMB was taken out.
A65: Performed direct calculation of Tgal values vs. frequency in the table, per ngVLA Memo #96 (B. Butler et. al.)
A66: Changed from Planck to Callen & Welton formulation for deviation from Rayleigh-Jeans approximation on Tsys.

Sheet Summary
D2: Performance Summary, ngVLA Bands 1-6 | K2: =Rev_date -> 2021-10-20 | S2: Surface Tol. (μm RMS): | T2: 160 | U2: 20 | V2: 20K Stage Temp (K)
D3: Notes: | S3: Antenna Elevation (deg): | T3: 60 | U3: =(Temp_15K_Stage+Temp_50K_Stage)/2 -> 50 | V3: Inter-Stage Temp (K)
D4: 1. Summary table is compiled from the other worksheets. | S4: Atmosphere PWV (mm): | T4: 6 | U4: 80 | V4: 80K Stage Temp (K)
D5: 2. Changing input values (upper right) recalculates values. | S5: Array Size (1 x 18m, Full): | T5: Single | U5: =(Temp_50K_Stage+Temp_Ambient)/2 -> 190 | V5: Intermed. Stage Temp (K)
D6: 3. The sensitivity (Aeff/Tsys) is a function of selected array size. | S6: Averaging Range (%BW): | T6: 80% | U6: 300 | V6: Ambient Stage Temp (K)
B8: Band | C8: Point | D8: Freq. | E8: Gain | F8: Trx | G8: Tspill | H8: Tsky | I8: ηA | J8: Tsys | K8: AE/TSYS | L8: POUT | N8: Band | O8: Point | P8: Freq. | Q8: Gain | R8: Trx | S8: Tspill | T8: Tsky | U8: ηA | V8: Tsys | W8: AE/TSYS | X8: POUT
B9: # | C9: # | D9: GHz | E9: dB | F9: K | G9: K | H9: K | J9: K | K9: m2/K | L9: dBm/GHz | N9: # | O9: # | P9: GHz | Q9: dB | R9: K | S9: K | T9: K | V9: K | W9: m2/K | X9: dBm/GHz
B10: 1 | C10: 1 | D10: =Cascade_Lookup(B10,C10,"Freq") -> 1.2 | E10: =Cascade_Lookup(B10,C10,"Gain") -> 24.75034265 | F10: =Cascade_Lookup(B10,C10,"Temp") -> 11.78902422 | G10: =Ant_data(B10,D10,"Spill",User_Inputs) -> 5.9072 | H10: =Tsky_Lookup(D10,Tatm_Data_Table, Tbg_Data_Table, PWV, PWV_Values, Elev_Angle) -> 5.747965438 | I10: =Ant_data(B10,D10,"Eta",User_Inputs)*Ruze(D10,Sigma_ngVLA)*NoiseToEff(Ant_data(B10,D10,"Surf",User_Inputs)) -> 0.7993016884 | J10: =T_calwel(F10,D10)+T_calwel(G10,D10)+H10+Ant_data(B10,D10,"Surf",User_Inputs)+Tn_IRD -> 24.45025991 | K10: =IF(Array_Size="Single",(Ao_18m*I10)/J10,(Ao_array*I10)/J10) -> 8.31882794 | L10: =120+E10+AbsToDb(k*J10) -> -69.96803169 | N10: 4 | O10: 1 | P10: =Cascade_Lookup(N10,O10,"Freq") -> 20.5 | Q10: =Cascade_Lookup(N10,O10,"Gain") -> 31.15135847 | R10: =Cascade_Lookup(N10,O10,"Temp") -> 15.21821543 | S10: =Ant_data(N10,P10,"Spill",User_Inputs) -> 1.3105 | T10: =Tsky_Lookup(P10,Tatm_Data_Table, Tbg_Data_Table, PWV, PWV_Values, Elev_Angle) -> 11.60963569 | U10: =Ant_data(N10,P10,"Eta",User_Inputs)*Ruze(P10,Sigma_ngVLA)*NoiseToEff(Ant_data(N10,P10,"Surf",User_Inputs)) -> 0.9184791328 | V10: =T_calwel(R10,P10)+T_calwel(S10,P10)+T10+Ant_data(N10,P10,"Surf",User_Inputs)+Tn_IRD -> 29.31740233 | W10: =IF(Array_Size="Single",(Ao_18m*U10)/V10,(Ao_array*U10)/V10) -> 7.97220942 | X10: =120+Q10+AbsToDb(k*V10) -> -62.7785958
B11: 1 | C11: 2 | D11: =Cascade_Lookup(B11,C11,"Freq") -> 1.32 | E11: =Cascade_Lookup(B11,C11,"Gain") -> 25.73987503 | F11: =Cascade_Lookup(B11,C11,"Temp") -> 10.78302085 | G11: 5.31524 | H11: 5.141213751 | I11: =Ant_data(B11,D11,"Eta",User_Inputs)*Ruze(D11,Sigma_ngVLA)*NoiseToEff(Ant_data(B11,D11,"Surf",User_Inputs)) -> 0.8093021501 | J11: 22.24616856 | K11: 9.257428407 | L11: =120+E11+AbsToDb(k*J11) -> -69.38878187 | N11: 4 | O11: 2 | P11: =Cascade_Lookup(N11,O11,"Freq") -> 21.6 | Q11: =Cascade_Lookup(N11,O11,"Gain") -> 30.51240317 | R11: =Cascade_Lookup(N11,O11,"Temp") -> 14.97365905 | S11: 1.33111 | T11: 16.70768387 | U11: =Ant_data(N11,P11,"Eta",User_Inputs)*Ruze(P11,Sigma_ngVLA)*NoiseToEff(Ant_data(N11,P11,"Surf",User_Inputs)) -> 0.9215379077 | V11: 34.20386098 | W11: 6.856034016 | X11: -62.74805464
B12: 1 | C12: 3 | D12: =Cascade_Lookup(B12,C12,"Freq") -> 1.49 | E12: 26.28671258 | F12: 9.725009921 | G12: 4.334475 | H12: 4.94952041 | I12: =Ant_data(B12,D12,"Eta",User_Inputs)*Ruze(D12,Sigma_ngVLA)*NoiseToEff(Ant_data(B12,D12,"Surf",User_Inputs)) -> 0.8271476458 | J12: 20.0165975 | K12: 10.51544541 | L12: -69.30059399 | N12: 4 | O12: 3 | P12: 22.7 | Q12: 29.32773909 | R12: 15.43536897 | S12: 1.29954 | T12: 19.2071753 | U12: =Ant_data(N12,P12,"Eta",User_Inputs)*Ruze(P12,Sigma_ngVLA)*NoiseToEff(Ant_data(N12,P12,"Surf",User_Inputs)) -> 0.9236372447 | V12: 37.14859739 | W12: 6.326942794 | X12: -63.57404584
B13: 1 | C13: 4 | D13: 1.65 | E13: 26.06108909 | F13: 9.19867042 | G13: 3.4637 | H13: 4.689027979 | I13: =Ant_data(B13,D13,"Eta",User_Inputs)*Ruze(D13,Sigma_ngVLA)*NoiseToEff(Ant_data(B13,D13,"Surf",User_Inputs)) -> 0.8460623148 | J13: 18.35985614 | K13: 11.72648815 | L13: -69.90142731 | N13: 4 | O13: 4 | P13: 23.9 | Q13: 28.89543667 | R13: 15.60620489 | S13: 1.16898 | T13: 15.50882943 | U13: =Ant_data(N13,P13,"Eta",User_Inputs)*Ruze(P13,Sigma_ngVLA)*NoiseToEff(Ant_data(N13,P13,"Surf",User_Inputs)) -> 0.9246394334 | V13: 33.51483778 | W13: 7.02053455 | X13: -64.45340125
B14: 1 | C14: 5 | D14: 1.84 | E14: 25.7078487 | F14: 8.976628925 | G14: 2.7578 | H14: 4.627002792 | I14: =Ant_data(B14,D14,"Eta",User_Inputs)*Ruze(D14,Sigma_ngVLA)*NoiseToEff(Ant_data(B14,D14,"Surf",User_Inputs)) -> 0.8665625313 | J14: 17.37093983 | K14: 12.69437965 | L14: -70.49512728 | N14: 4 | O14: 5 | P14: 25.1 | Q14: 28.24969959 | R14: 16.20111266 | S14: 1.061578571 | T14: 12.21144576 | U14: =Ant_data(N14,P14,"Eta",User_Inputs)*Ruze(P14,Sigma_ngVLA)*NoiseToEff(Ant_data(N14,P14,"Surf",User_Inputs)) -> 0.9248028006 | V14: 30.7437745 | W14: 7.654676507 | X14: -65.47393769
B15: 1 | C15: 6 | D15: 2.05 | E15: 25.33638989 | F15: 8.773167901 | G15: 1.595825 | H15: 4.521057127 | I15: =Ant_data(B15,D15,"Eta",User_Inputs)*Ruze(D15,Sigma_ngVLA)*NoiseToEff(Ant_data(B15,D15,"Surf",User_Inputs)) -> 0.8845540085 | J15: 15.90089759 | K15: 14.15590391 | L15: -71.25060285 | N15: 4 | O15: 6 | P15: 26.4 | Q15: 26.46063285 | R15: 15.80546971 | S15: 0.9703 | T15: 10.51407437 | U15: =Ant_data(N15,P15,"Eta",User_Inputs)*Ruze(P15,Sigma_ngVLA)*NoiseToEff(Ant_data(N15,P15,"Surf",User_Inputs)) -> 0.9248753998 | V15: 28.59085425 | W15: 8.231727553 | X15: -67.57830497
B16: 1 | C16: 7 | D16: 2.28 | E16: 25.08654739 | F16: 9.021682894 | G16: 1.01766 | H16: 4.449235609 | I16: =Ant_data(B16,D16,"Eta",User_Inputs)*Ruze(D16,Sigma_ngVLA)*NoiseToEff(Ant_data(B16,D16,"Surf",User_Inputs)) -> 0.877585603 | J16: 15.50106972 | K16: 14.40664026 | L16: -71.61104505 | N16: 4 | O16: 7 | P16: 27.8 | Q16: 24.80197762 | R16: 15.6438878 | S16: 0.9282125 | T16: 9.716448491 | U16: =Ant_data(N16,P16,"Eta",User_Inputs)*Ruze(P16,Sigma_ngVLA)*NoiseToEff(Ant_data(N16,P16,"Surf",User_Inputs)) -> 0.9247211694 | V16: 27.61944539 | W16: 8.519826249 | X16: -69.38708199
B17: 1 | C17: 8 | D17: 2.54 | E17: 24.8002037 | F17: 9.19283825 | G17: 0.9635 | H17: 4.379761307 | I17: =Ant_data(B17,D17,"Eta",User_Inputs)*Ruze(D17,Sigma_ngVLA)*NoiseToEff(Ant_data(B17,D17,"Surf",User_Inputs)) -> 0.8626891605 | J17: 15.55021959 | K17: 14.11733455 | L17: -71.88364017 | N17: 4 | O17: 8 | P17: 29.2 | Q17: 25.18649941 | R17: 16.07122651 | S17: 0.92316 | T17: 9.518235353 | U17: =Ant_data(N17,P17,"Eta",User_Inputs)*Ruze(P17,Sigma_ngVLA)*NoiseToEff(Ant_data(N17,P17,"Surf",User_Inputs)) -> 0.9234678681 | V17: 27.86888071 | W17: 8.432127286 | X17: -68.96351446
B18: 1 | C18: 9 | D18: =Cascade_Lookup(B18,C18,"Freq") -> 2.83 | E18: =Cascade_Lookup(B18,C18,"Gain") -> 24.65235882 | F18: =Cascade_Lookup(B18,C18,"Temp") -> 9.683816031 | G18: =Ant_data(B18,D18,"Spill",User_Inputs) -> 0.6605 | H18: =Tsky_Lookup(D18,Tatm_Data_Table, Tbg_Data_Table, PWV, PWV_Values, Elev_Angle) -> 4.338514451 | I18: =Ant_data(B18,D18,"Eta",User_Inputs)*Ruze(D18,Sigma_ngVLA)*NoiseToEff(Ant_data(B18,D18,"Surf",User_Inputs)) -> 0.8331851315 | J18: 15.69946573 | K18: 13.50490488 | L18: =120+E18+AbsToDb(k*J18) -> -71.99000159 | N18: 4 | O18: 9 | P18: =Cascade_Lookup(N18,O18,"Freq") -> 30.7 | Q18: =Cascade_Lookup(N18,O18,"Gain") -> 25.12104074 | R18: =Cascade_Lookup(N18,O18,"Temp") -> 16.54768473 | S18: =Ant_data(N18,P18,"Spill",User_Inputs) -> 0.92891 | T18: =Tsky_Lookup(P18,Tatm_Data_Table, Tbg_Data_Table, PWV, PWV_Values, Elev_Angle) -> 9.619721407 | U18: =Ant_data(N18,P18,"Eta",User_Inputs)*Ruze(P18,Sigma_ngVLA)*NoiseToEff(Ant_data(N18,P18,"Surf",User_Inputs)) -> 0.9213776194 | V18: 28.47854696 | W18: 8.232935701 | X18: =120+Q18+AbsToDb(k*V18) -> -68.93499012
B19: 1 | C19: 10 | D19: 3.16 | E19: 24.66040569 | F19: 10.2236314 | G19: 0.33569 | H19: 4.315140736 | I19: =Ant_data(B19,D19,"Eta",User_Inputs)*Ruze(D19,Sigma_ngVLA)*NoiseToEff(Ant_data(B19,D19,"Surf",User_Inputs)) -> 0.7729776054 | J19: 15.89614165 | K19: 12.37399908 | L19: -71.92788621 | N19: 4 | O19: 10 | P19: 32.4 | Q19: 25.048866 | R19: 17.17393955 | S19: 0.9237 | T19: 10.12070551 | U19: =Ant_data(N19,P19,"Eta",User_Inputs)*Ruze(P19,Sigma_ngVLA)*NoiseToEff(Ant_data(N19,P19,"Surf",User_Inputs)) -> 0.9173470426 | V19: 29.63302299 | W19: 7.877575945 | X19: -68.83458356
B20: 1 | C20: 11 | D20: 3.49 | E20: 24.59290009 | F20: 10.65073194 | G20: =Ant_data(B20,D20,"Spill",User_Inputs) -> 0.227285 | H20: 4.303742622 | I20: =Ant_data(B20,D20,"Eta",User_Inputs)*Ruze(D20,Sigma_ngVLA)*NoiseToEff(Ant_data(B20,D20,"Surf",User_Inputs)) -> 0.6571208293 | J20: 16.20962636 | K20: 10.31589994 | L20: -71.91057901 | N20: 4 | O20: 11 | P20: 34 | Q20: 24.9808488 | R20: 18.20919348 | S20: 0.8649 | T20: 10.72139839 | U20: =Ant_data(N20,P20,"Eta",User_Inputs)*Ruze(P20,Sigma_ngVLA)*NoiseToEff(Ant_data(N20,P20,"Surf",User_Inputs)) -> 0.9105377934 | V20: 31.25425807 | W20: 7.413506529 | X20: -68.67126839
B21: 2 | C21: 1 | D21: =Cascade_Lookup(B21,C21,"Freq") -> 3.41 | E21: =Cascade_Lookup(B21,C21,"Gain") -> 35.39181074 | F21: =Cascade_Lookup(B21,C21,"Temp") -> 10.88740309 | G21: =Ant_data(B21,D21,"Spill",User_Inputs) -> 7.37 | H21: 4.302487501 | I21: =Ant_data(B21,D21,"Eta",User_Inputs)*Ruze(D21,Sigma_ngVLA)*NoiseToEff(Ant_data(B21,D21,"Surf",User_Inputs)) -> 0.9221612997 | J21: 23.57799072 | K21: 9.952564284 | L21: -59.48433047 | N21: 5 | O21: 1 | P21: =Cascade_Lookup(N21,O21,"Freq") -> 30.5 | Q21: =Cascade_Lookup(N21,O21,"Gain") -> 32.16792486 | R21: =Cascade_Lookup(N21,O21,"Temp") -> 18.72361913 | S21: 1.2432 | T21: 9.619492793 | U21: =Ant_data(N21,P21,"Eta",User_Inputs)*Ruze(P21,Sigma_ngVLA)*NoiseToEff(Ant_data(N21,P21,"Surf",User_Inputs)) -> 0.8989175248 | V21: 30.91930351 | W21: 7.398182432 | X21: -61.53098725
B22: 2 | C22: 2 | D22: 3.88 | E22: =Cascade_Lookup(B22,C22,"Gain") -> 35.23233562 | F22: =Cascade_Lookup(B22,C22,"Temp") -> 10.65560727 | G22: 5.96 | H22: 4.300120139 | I22: =Ant_data(B22,D22,"Eta",User_Inputs)*Ruze(D22,Sigma_ngVLA)*NoiseToEff(Ant_data(B22,D22,"Surf",User_Inputs)) -> 0.9291851239 | J22: 21.9360565 | K22: 10.77900278 | L22: -59.95728795 | N22: 5 | O22: 2 | P22: 32 | Q22: =Cascade_Lookup(N22,O22,"Gain") -> 32.00081448 | R22: =Cascade_Lookup(N22,O22,"Temp") -> 17.86364491 | S22: 1.1684 | T22: 9.920635404 | U22: =Ant_data(N22,P22,"Eta",User_Inputs)*Ruze(P22,Sigma_ngVLA)*NoiseToEff(Ant_data(N22,P22,"Surf",User_Inputs)) -> 0.8995735054 | V22: 30.31930049 | W22: 7.550094201 | X22: -61.78320288
B23: 2 | C23: 3 | D23: 4.4 | E23: 34.67124996 | F23: 10.45553851 | G23: 4.525 | H23: 4.407380083 | I23: =Ant_data(B23,D23,"Eta",User_Inputs)*Ruze(D23,Sigma_ngVLA)*NoiseToEff(Ant_data(B23,D23,"Surf",User_Inputs)) -> 0.9318199566 | J23: 20.41109554 | K23: 11.61717639 | L23: -60.83129602 | N23: 5 | O23: 3 | P23: 33.7 | Q23: 31.55259323 | R23: 18.03454124 | S23: 1.125475 | T23: 10.52143835 | U23: =Ant_data(N23,P23,"Eta",User_Inputs)*Ruze(P23,Sigma_ngVLA)*NoiseToEff(Ant_data(N23,P23,"Surf",User_Inputs)) -> 0.8991584152 | V23: 31.0831281 | W23: 7.361162187 | X23: -62.12336872
B24: 2 | C24: 4 | D24: 5 | E24: 34.07342045 | F24: 10.64488814 | G24: 3.771428571 | H24: 4.421136715 | I24: =Ant_data(B24,D24,"Eta",User_Inputs)*Ruze(D24,Sigma_ngVLA)*NoiseToEff(Ant_data(B24,D24,"Surf",User_Inputs)) -> 0.9301249299 | J24: 19.86417698 | K24: 11.91531699 | L24: -61.54708293 | N24: 5 | O24: 4 | P24: 35.5 | Q24: 32.98614394 | R24: 18.54795105 | S24: 1.1034 | T24: 11.42180616 | U24: =Ant_data(N24,P24,"Eta",User_Inputs)*Ruze(P24,Sigma_ngVLA)*NoiseToEff(Ant_data(N24,P24,"Surf",User_Inputs)) -> 0.8971479703 | V24: 32.51024454 | W24: 7.022289574 | X24: -60.49486284
B25: 2 | C25: 5 | D25: 5.7 | E25: 34.00834216 | F25: 10.90360015 | G25: 3.725 | H25: 4.390795479 | I25: =Ant_data(B25,D25,"Eta",User_Inputs)*Ruze(D25,Sigma_ngVLA)*NoiseToEff(Ant_data(B25,D25,"Surf",User_Inputs)) -> 0.931382345 | J25: 20.05014224 | K25: 11.82076096 | L25: -61.5716924 | N25: 5 | O25: 5 | P25: 37.3 | Q25: 33.12271166 | R25: 18.77077804 | S25: 1.084263636 | T25: 12.62170721 | U25: =Ant_data(N25,P25,"Eta",User_Inputs)*Ruze(P25,Sigma_ngVLA)*NoiseToEff(Ant_data(N25,P25,"Surf",User_Inputs)) -> 0.8945750432 | V25: 33.95063008 | W25: 6.705077949 | X25: -60.17001909
B26: 2 | C26: 6 | D26: 6.45 | E26: 34.23246704 | F26: 11.0307651 | G26: 3.3 | H26: 4.366830077 | I26: =Ant_data(B26,D26,"Eta",User_Inputs)*Ruze(D26,Sigma_ngVLA)*NoiseToEff(Ant_data(B26,D26,"Surf",User_Inputs)) -> 0.9367231268 | J26: 19.73298944 | K26: 12.07961939 | L26: -61.41681326 | N26: 5 | O26: 6 | P26: 39.3 | Q26: 33.2898807 | R26: 18.90808735 | S26: 1.055644737 | T26: 14.32117602 | U26: =Ant_data(N26,P26,"Eta",User_Inputs)*Ruze(P26,Sigma_ngVLA)*NoiseToEff(Ant_data(N26,P26,"Surf",User_Inputs)) -> 0.8911847784 | V26: 35.80340213 | W26: 6.33400432 | X26: -59.77208547
B27: 2 | C27: 7 | D27: 7.35 | E27: 34.78078391 | F27: 11.50461112 | G27: 2.41875 | H27: 4.447603861 | I27: =Ant_data(B27,D27,"Eta",User_Inputs)*Ruze(D27,Sigma_ngVLA)*NoiseToEff(Ant_data(B27,D27,"Surf",User_Inputs)) -> 0.9392509746 | J27: 19.41290333 | K27: 12.31192763 | L27: -60.9395203 | N27: 5 | O27: 7 | P27: 41.3 | Q27: 33.58614233 | R27: 20.24461045 | S27: 1.070539474 | T27: 16.71999366 | U27: =Ant_data(N27,P27,"Eta",User_Inputs)*Ruze(P27,Sigma_ngVLA)*NoiseToEff(Ant_data(N27,P27,"Surf",User_Inputs)) -> 0.887193658 | V27: 39.58886273 | W27: 5.702696965 | X27: -59.03933654
B28: 2 | C28: 8 | D28: 8.35 | E28: 35.24842559 | F28: 12.45845565 | G28: 2.54375 | H28: 4.534762248 | I28: =Ant_data(B28,D28,"Eta",User_Inputs)*Ruze(D28,Sigma_ngVLA)*NoiseToEff(Ant_data(B28,D28,"Surf",User_Inputs)) -> 0.9376838282 | J28: 20.5850528 | K28: 11.5914918 | L28: -60.2172637 | N28: 5 | O28: 8 | P28: 43.3 | Q28: 33.91271608 | R28: 21.69462821 | S28: 1.092032 | T28: 19.91842663 | U28: =Ant_data(N28,P28,"Eta",User_Inputs)*Ruze(P28,Sigma_ngVLA)*NoiseToEff(Ant_data(N28,P28,"Surf",User_Inputs)) -> 0.8827629171 | V28: 44.29279147 | W28: 5.071610835 | X28: -58.22516254
B29: 2 | C29: 9 | D29: =Cascade_Lookup(B29,C29,"Freq") -> 9.5 | E29: =Cascade_Lookup(B29,C29,"Gain") -> 35.41228994 | F29: =Cascade_Lookup(B29,C29,"Temp") -> 13.18210171 | G29: =Ant_data(B29,D29,"Spill",User_Inputs) -> 2.9625 | H29: =Tsky_Lookup(D29,Tatm_Data_Table, Tbg_Data_Table, PWV, PWV_Values, Elev_Angle) -> 4.625693658 | I29: =Ant_data(B29,D29,"Eta",User_Inputs)*Ruze(D29,Sigma_ngVLA)*NoiseToEff(Ant_data(B29,D29,"Surf",User_Inputs)) -> 0.9474891726 | J29: 21.82495666 | K29: 11.04729007 | L29: =120+E29+AbsToDb(k*J29) -> -59.7993853 | N29: 5 | O29: 9 | P29: =Cascade_Lookup(N29,O29,"Freq") -> 45.7 | Q29: =Cascade_Lookup(N29,O29,"Gain") -> 34.20473956 | R29: =Cascade_Lookup(N29,O29,"Temp") -> 22.85757553 | S29: =Ant_data(N29,P29,"Spill",User_Inputs) -> 1.163184 | T29: =Tsky_Lookup(P29,Tatm_Data_Table, Tbg_Data_Table, PWV, PWV_Values, Elev_Angle) -> 26.01571434 | U29: =Ant_data(N29,P29,"Eta",User_Inputs)*Ruze(P29,Sigma_ngVLA)*NoiseToEff(Ant_data(N29,P29,"Surf",User_Inputs)) -> 0.8760672295 | V29: 51.65410422 | W29: 4.315861431 | X29: =120+Q29+AbsToDb(k*V29) -> -57.26542124
B30: 2 | C30: 10 | D30: 10.8 | E30: 35.22441158 | F30: 14.46058306 | G30: 2.657142857 | H30: 4.720174167 | I30: =Ant_data(B30,D30,"Eta",User_Inputs)*Ruze(D30,Sigma_ngVLA)*NoiseToEff(Ant_data(B30,D30,"Surf",User_Inputs)) -> 0.9400279812 | J30: 22.90187158 | K30: 10.44490989 | L30: -59.77808781 | N30: 5 | O30: 10 | P30: 48 | Q30: 34.04362553 | R30: 24.31226834 | S30: 1.2366 | T30: 36.01254349 | U30: =Ant_data(N30,P30,"Eta",User_Inputs)*Ruze(P30,Sigma_ngVLA)*NoiseToEff(Ant_data(N30,P30,"Surf",User_Inputs)) -> 0.8683453598 | V30: 63.2062107 | W30: 3.495969418 | X30: -56.54998606
B31: 2 | C31: 11 | D31: 12.29 | E31: 35.13096261 | F31: 15.12185246 | G31: 2.103846154 | H31: 4.817061621 | I31: =Ant_data(B31,D31,"Eta",User_Inputs)*Ruze(D31,Sigma_ngVLA)*NoiseToEff(Ant_data(B31,D31,"Surf",User_Inputs)) -> 0.9215367169 | J31: 23.11984483 | K31: 10.14291113 | L31: -59.83039738 | N31: 5 | O31: 11 | P31: 50.5 | Q31: 32.37542065 | R31: 24.85399888 | S31: 1.2598 | T31: 59.30847977 | U31: =Ant_data(N31,P31,"Eta",User_Inputs)*Ruze(P31,Sigma_ngVLA)*NoiseToEff(Ant_data(N31,P31,"Surf",User_Inputs)) -> 0.8562509703 | V31: 87.11160035 | W31: 2.501266554 | X31: -56.82502856
B32: 3 | C32: 1 | D32: =Cascade_Lookup(B32,C32,"Freq") -> 12.31 | E32: =Cascade_Lookup(B32,C32,"Gain") -> 33.09288337 | F32: =Cascade_Lookup(B32,C32,"Temp") -> 13.24649385 | G32: 1.15270375 | H32: 4.916713017 | I32: =Ant_data(B32,D32,"Eta",User_Inputs)*Ruze(D32,Sigma_ngVLA)*NoiseToEff(Ant_data(B32,D32,"Surf",User_Inputs)) -> 0.9276365821 | J32: 20.40478772 | K32: 11.56859661 | L32: -62.41100495 | N32: 6 | O32: 1 | P32: =Cascade_Lookup(N32,O32,"Freq") -> 70 | Q32: =Cascade_Lookup(N32,O32,"Gain") -> 35.26067161 | R32: =Cascade_Lookup(N32,O32,"Temp") -> 46.49350141 | S32: 0.6216 | T32: 63.11499927 | U32: =Ant_data(N32,P32,"Eta",User_Inputs)*Ruze(P32,Sigma_ngVLA)*NoiseToEff(Ant_data(N32,P32,"Surf",User_Inputs)) -> 0.753406966 | V32: 112.743896 | W32: 1.700479828 | X32: -52.81960714
B33: 3 | C33: 2 | D33: 12.94 | E33: =Cascade_Lookup(B33,C33,"Gain") -> 32.64383173 | F33: =Cascade_Lookup(B33,C33,"Temp") -> 13.14363513 | G33: 1.07104 | H33: 5.015881923 | I33: =Ant_data(B33,D33,"Eta",User_Inputs)*Ruze(D33,Sigma_ngVLA)*NoiseToEff(Ant_data(B33,D33,"Surf",User_Inputs)) -> 0.9319171953 | J33: 20.32755282 | K33: 11.66613825 | L33: -62.87652642 | N33: 6 | O33: 2 | P33: 73.8 | Q33: =Cascade_Lookup(N33,O33,"Gain") -> 35.51510721 | R33: =Cascade_Lookup(N33,O33,"Temp") -> 43.61418146 | S33: 0.48634 | T33: 38.72709541 | U33: =Ant_data(N33,P33,"Eta",User_Inputs)*Ruze(P33,Sigma_ngVLA)*NoiseToEff(Ant_data(N33,P33,"Surf",User_Inputs)) -> 0.7388944321 | V33: 85.58168456 | W33: 2.197032366 | X33: -53.76229362
B34: 3 | C34: 3 | D34: 13.6 | E34: 32.24785338 | F34: 13.56250837 | G34: 1.020744444 | H34: 5.115136406 | I34: =Ant_data(B34,D34,"Eta",User_Inputs)*Ruze(D34,Sigma_ngVLA)*NoiseToEff(Ant_data(B34,D34,"Surf",User_Inputs)) -> 0.9353161624 | J34: 20.80356327 | K34: 11.44077916 | L34: -63.17197847 | N34: 6 | O34: 3 | P34: 77.5 | Q34: 35.68721669 | R34: 46.00591447 | S34: 0.40805 | T34: 29.73888639 | U34: =Ant_data(N34,P34,"Eta",User_Inputs)*Ruze(P34,Sigma_ngVLA)*NoiseToEff(Ant_data(N34,P34,"Surf",User_Inputs)) -> 0.7232611911 | V34: 79.0952731 | W34: 2.326909667 | X34: -53.93248714
B35: 3 | C35: 4 | D35: 14.35 | E35: 32.81332867 | F35: 14.50973806 | G35: 0.984045 | H35: 5.214722239 | I35: =Ant_data(B35,D35,"Eta",User_Inputs)*Ruze(D35,Sigma_ngVLA)*NoiseToEff(Ant_data(B35,D35,"Surf",User_Inputs)) -> 0.9381473949 | J35: 21.82283391 | K35: 10.93943321 | L35: -62.398769 | N35: 6 | O35: 4 | P35: 81.5 | Q35: 35.82461086 | R35: 45.94250079 | S35: 0.33725 | T35: 25.45024873 | U35: =Ant_data(N35,P35,"Eta",User_Inputs)*Ruze(P35,Sigma_ngVLA)*NoiseToEff(Ant_data(N35,P35,"Surf",User_Inputs)) -> 0.7053742062 | V35: 74.59590815 | W35: 2.406242873 | X35: -54.04944822
B36: 3 | C36: 5 | D36: 15.1 | E36: 32.85786434 | F36: 15.29805404 | G36: 0.95391 | H36: 5.414235695 | I36: =Ant_data(B36,D36,"Eta",User_Inputs)*Ruze(D36,Sigma_ngVLA)*NoiseToEff(Ant_data(B36,D36,"Surf",User_Inputs)) -> 0.9402222873 | J36: 22.79001883 | K36: 10.49834279 | L36: -62.16589796 | N36: 6 | O36: 5 | P36: 85.5 | Q36: 35.92426324 | R36: 45.16452446 | S36: 0.2969875 | T36: 23.55974806 | U36: =Ant_data(N36,P36,"Eta",User_Inputs)*Ruze(P36,Sigma_ngVLA)*NoiseToEff(Ant_data(N36,P36,"Surf",User_Inputs)) -> 0.6863064956 | V36: 71.75735486 | W36: 2.433809487 | X36: -54.11828169
B37: 3 | C37: 6 | D37: 15.9 | E37: 32.49825657 | F37: 16.15221982 | G37: 0.90679 | H37: 5.713832815 | I37: =Ant_data(B37,D37,"Eta",User_Inputs)*Ruze(D37,Sigma_ngVLA)*NoiseToEff(Ant_data(B37,D37,"Surf",User_Inputs)) -> 0.9422607942 | J37: 23.90825511 | K37: 10.02901155 | L37: -62.31747376 | N37: 6 | O37: 6 | P37: 90 | Q37: 35.99163682 | R37: 45.84595206 | S37: 0.2566 | T37: 22.86821499 | U37: =Ant_data(N37,P37,"Eta",User_Inputs)*Ruze(P37,Sigma_ngVLA)*NoiseToEff(Ant_data(N37,P37,"Surf",User_Inputs)) -> 0.6642239995 | V37: =T_calwel(R37,P37)+T_calwel(S37,P37)+T37+Ant_data(N37,P37,"Surf",User_Inputs)+Tn_IRD -> 71.58020083 | W37: 2.361329226 | X37: -54.06164319
B38: 3 | C38: 7 | D38: 16.7 | E38: 31.99796062 | F38: 15.98396694 | G38: 0.88844 | H38: 6.013569709 | I38: =Ant_data(B38,D38,"Eta",User_Inputs)*Ruze(D38,Sigma_ngVLA)*NoiseToEff(Ant_data(B38,D38,"Surf",User_Inputs)) -> 0.9439627067 | J38: 24.03229501 | K38: 9.995268889 | L38: -62.79529605 | N38: 6 | O38: 7 | P38: 95 | Q38: 36.04750271 | R38: 47.15798855 | S38: 0.2412785714 | T38: 23.2746806 | U38: =Ant_data(N38,P38,"Eta",User_Inputs)*Ruze(P38,Sigma_ngVLA)*NoiseToEff(Ant_data(N38,P38,"Surf",User_Inputs)) -> 0.6387140678 | V38: 73.25912469 | W38: 2.218603266 | X38: -53.90508918
B39: 3 | C39: 8 | D39: 17.6 | E39: 32.13180148 | F39: 14.96721998 | G39: 0.89054 | H39: 6.613031884 | I39: =Ant_data(B39,D39,"Eta",User_Inputs)*Ruze(D39,Sigma_ngVLA)*NoiseToEff(Ant_data(B39,D39,"Surf",User_Inputs)) -> 0.9450635005 | J39: 23.6285687 | K39: 10.17790674 | L39: -62.7350335 | N39: 6 | O39: 8 | P39: 100 | Q39: 36.08966464 | R39: 48.50145668 | S39: =Ant_data(N39,P39,"Spill",User_Inputs) -> 0.2259571429 | T39: 24.57835112 | U39: =Ant_data(N39,P39,"Eta",User_Inputs)*Ruze(P39,Sigma_ngVLA)*NoiseToEff(Ant_data(N39,P39,"Surf",User_Inputs)) -> 0.6128001147 | V39: 75.86670465 | W39: 2.055429139 | X39: -53.71103229
B40: 3 | C40: 9 | D40: =Cascade_Lookup(B40,C40,"Freq") -> 18.5 | E40: =Cascade_Lookup(B40,C40,"Gain") -> 32.52628392 | F40: =Cascade_Lookup(B40,C40,"Temp") -> 14.45041321 | G40: =Ant_data(B40,D40,"Spill",User_Inputs) -> 0.9105 | H40: =Tsky_Lookup(D40,Tatm_Data_Table, Tbg_Data_Table, PWV, PWV_Values, Elev_Angle) -> 7.412385414 | I40: =Ant_data(B40,D40,"Eta",User_Inputs)*Ruze(D40,Sigma_ngVLA)*NoiseToEff(Ant_data(B40,D40,"Surf",User_Inputs)) -> 0.9454269137 | J40: 23.94139825 | K40: 10.04878008 | L40: =120+E40+AbsToDb(k*J40) -> -62.28343011 | N40: 6 | O40: 9 | P40: =Cascade_Lookup(N40,O40,"Freq") -> 105 | Q40: =Cascade_Lookup(N40,O40,"Gain") -> 36.10512313 | R40: =Cascade_Lookup(N40,O40,"Temp") -> 47.72549178 | S40: =Ant_data(N40,P40,"Spill",User_Inputs) -> 0.2108333333 | T40: =Tsky_Lookup(P40,Tatm_Data_Table, Tbg_Data_Table, PWV, PWV_Values, Elev_Angle) -> 27.47724156 | U40: =Ant_data(N40,P40,"Eta",User_Inputs)*Ruze(P40,Sigma_ngVLA)*NoiseToEff(Ant_data(N40,P40,"Surf",User_Inputs)) -> 0.586427384 | V40: 77.95417447 | W40: 1.914298931 | X40: =120+Q40+AbsToDb(k*V40) -> -53.57769224
B41: 3 | C41: 10 | D41: 19.5 | E41: 32.4763046 | F41: 15.72498397 | G41: 0.92355 | H41: 8.811372814 | I41: =Ant_data(B41,D41,"Eta",User_Inputs)*Ruze(D41,Sigma_ngVLA)*NoiseToEff(Ant_data(B41,D41,"Surf",User_Inputs)) -> 0.9438525755 | J41: 26.63977978 | K41: 9.015886305 | L41: -61.86959823 | N41: 6 | O41: 10 | P41: 110.6 | Q41: 36.11444296 | R41: 47.57949665 | S41: 0.1732 | T41: 36.26488124 | U41: =Ant_data(N41,P41,"Eta",User_Inputs)*Ruze(P41,Sigma_ngVLA)*NoiseToEff(Ant_data(N41,P41,"Surf",User_Inputs)) -> 0.5557945199 | V41: 86.45658816 | W41: 1.635878554 | X41: -53.11878524
B42: 3 | C42: 11 | D42: 20.5 | E42: 31.9276893 | F42: 17.7907066 | G42: 0.8805 | H42: 11.60963569 | I42: =Ant_data(B42,D42,"Eta",User_Inputs)*Ruze(D42,Sigma_ngVLA)*NoiseToEff(Ant_data(B42,D42,"Surf",User_Inputs)) -> 0.938738321 | J42: 31.47766383 | K42: 7.588867069 | L42: -61.69349491 | N42: 6 | O42: 11 | P42: 116 | Q42: 36.11747643 | R42: 68.97993511 | S42: 0.2927 | T42: 105.6244868 | U42: =Ant_data(N42,P42,"Eta",User_Inputs)*Ruze(P42,Sigma_ngVLA)*NoiseToEff(Ant_data(N42,P42,"Surf",User_Inputs)) -> 0.5244904423 | V42: 177.8711044 | W42: 0.7503554969 | X42: -49.98267868
D111: Total Averaged Values for each Band, 80% or Full Bandwidth | P111: Worst-Case Values for each Band, 80% or Full Bandwidth
D112: Band | E112: Gain | F112: Trx | G112: Tspill | H112: Tsky | I112: ηA | J112: Tsys | K112: AE/TSYS | L112: PAVG | P112: Band | Q112: Gain | R112: Trx | S112: Tspill | T112: Tsky | U112: ηA | V112: Tsys | W112: AE/TSYS | X112: PMIN
D113: # | E113: dB | F113: K | G113: K | H113: K | J113: K | K113: K | L113: dBm/GHz | P113: # | Q113: (min) | R113: (max) | S113: (max) | T113: (max) | U113: (min) | V113: (max) | W113: (min) | X113: dBm/GHz
D114: 1 | E114: =IF(Averaging="80%",AVERAGE(E11:E19),AVERAGE(E10:E20)) -> 25.37015899 | F114: 9.50871851 | G114: 2.271598889 | H114: 4.601163796 | I114: 0.8422295723 | J114: 17.39348404 | K114: 12.52805825 | L114: -70.86101181 | P114: 1 | Q114: =IF(Averaging="80%",MIN(E11:E19),MIN(E10:E20)) -> 24.65235882 | R114: =IF(Averaging="80%",MAX(F11:F19),MAX(F10:F20)) -> 10.78302085 | S114: =IF(Averaging="80%",MAX(G11:G19),MAX(G10:G20)) -> 5.31524 | T114: =IF(Averaging="80%",MAX(H11:H19),MAX(H10:H20)) -> 5.141213751 | U114: =IF(Averaging="80%",MIN(I11:I19),MIN(I10:I20)) -> 0.7729776054 | V114: =IF(Averaging="80%",MAX(J11:J19),MAX(J10:J20)) -> 22.24616856 | W114: =IF(Averaging="80%",MIN(K11:K19),MIN(K10:K20)) -> 9.257428407 | X114: =IF(Averaging="80%",MIN(L11:L19),MIN(L10:L20)) -> -71.99000159
D115: 2 | E115: =IF(Averaging="80%",AVERAGE(E22:E30),AVERAGE(E21:E31)) -> 34.76485847 | F115: 11.6995723 | G115: 3.540396825 | H115: 4.468277381 | I115: 0.935965271 | J115: 20.74658278 | K115: 11.51194399 | L115: -60.67315885 | P115: 2 | Q115: =IF(Averaging="80%",MIN(E22:E30),MIN(E21:E31)) -> 34.00834216 | R115: =IF(Averaging="80%",MAX(F22:F30),MAX(F21:F31)) -> 14.46058306 | S115: =IF(Averaging="80%",MAX(G22:G30),MAX(G21:G31)) -> 5.96 | T115: =IF(Averaging="80%",MAX(H22:H30),MAX(H21:H31)) -> 4.720174167 | U115: =IF(Averaging="80%",MIN(I22:I30),MIN(I21:I31)) -> 0.9291851239 | V115: =IF(Averaging="80%",MAX(J22:J30),MAX(J21:J31)) -> 22.90187158 | W115: =IF(Averaging="80%",MIN(K22:K30),MIN(K21:K31)) -> 10.44490989 | X115: =IF(Averaging="80%",MIN(L22:L30),MIN(L21:L31)) -> -61.5716924
D116: 3 | E116: =IF(Averaging="80%",AVERAGE(E33:E41),AVERAGE(E32:E42)) -> 32.46594281 | F116: 14.86585995 | G116: 0.9499510494 | H116: 6.147129878 | I116: 0.9406855034 | J116: 23.09936285 | K116: 10.42350522 | L116: -62.51266706 | P116: 3 | Q116: =IF(Averaging="80%",MIN(E33:E41),MIN(E32:E42)) -> 31.99796062 | R116: =IF(Averaging="80%",MAX(F33:F41),MAX(F32:F42)) -> 16.15221982 | S116: =IF(Averaging="80%",MAX(G33:G41),MAX(G32:G42)) -> 1.07104 | T116: =IF(Averaging="80%",MAX(H33:H41),MAX(H32:H42)) -> 8.811372814 | U116: =IF(Averaging="80%",MIN(I33:I41),MIN(I32:I42)) -> 0.9319171953 | V116: =IF(Averaging="80%",MAX(J33:J41),MAX(J32:J42)) -> 26.63977978 | W116: =IF(Averaging="80%",MIN(K33:K41),MIN(K32:K42)) -> 9.015886305 | X116: =IF(Averaging="80%",MIN(L33:L41),MIN(L32:L42)) -> -63.17197847
D117: 4 | E117: =IF(Averaging="80%",AVERAGE(Q11:Q19),AVERAGE(Q10:Q20)) -> 27.0671439 | F117: 15.93983932 | G117: 1.059499008 | H117: 12.56936883 | I117: 0.922934054 | J117: 30.866869 | K117: 7.683597845 | L117: -66.66087939 | P117: 4 | Q117: =IF(Averaging="80%",MIN(Q11:Q19),MIN(Q10:Q20)) -> 24.80197762 | R117: =IF(Averaging="80%",MAX(R11:R19),MAX(R10:R20)) -> 17.17393955 | S117: =IF(Averaging="80%",MAX(S11:S19),MAX(S10:S20)) -> 1.33111 | T117: =IF(Averaging="80%",MAX(T11:T19),MAX(T10:T20)) -> 19.2071753 | U117: =IF(Averaging="80%",MIN(U11:U19),MIN(U10:U20)) -> 0.9173470426 | V117: =IF(Averaging="80%",MAX(V11:V19),MAX(V10:V20)) -> 37.14859739 | W117: =IF(Averaging="80%",MIN(W11:W19),MIN(W10:W20)) -> 6.326942794 | X117: =IF(Averaging="80%",MIN(X11:X19),MIN(X10:X20)) -> -69.38708199
D118: 5 | E118: =IF(Averaging="80%",AVERAGE(Q22:Q30),AVERAGE(Q21:Q31)) -> 33.18881861 | F118: 20.13712057 | G118: 1.122170983 | H118: 17.49704903 | I118: 0.8884454308 | J118: 40.26763049 | K118: 5.950974098 | L118: -59.49149393 | P118: 5 | Q118: =IF(Averaging="80%",MIN(Q22:Q30),MIN(Q21:Q31)) -> 31.55259323 | R118: =IF(Averaging="80%",MAX(R22:R30),MAX(R21:R31)) -> 24.31226834 | S118: =IF(Averaging="80%",MAX(S22:S30),MAX(S21:S31)) -> 1.2366 | T118: =IF(Averaging="80%",MAX(T22:T30),MAX(T21:T31)) -> 36.01254349 | U118: =IF(Averaging="80%",MIN(U22:U30),MIN(U21:U31)) -> 0.8683453598 | V118: =IF(Averaging="80%",MAX(V22:V30),MAX(V21:V31)) -> 63.2062107 | W118: =IF(Averaging="80%",MIN(W22:W30),MIN(W21:W31)) -> 3.495969418 | X118: =IF(Averaging="80%",MIN(X22:X30),MIN(X21:X31)) -> -62.12336872
D119: 6 | E119: =IF(Averaging="80%",AVERAGE(Q33:Q41),AVERAGE(Q32:Q42)) -> 35.92217425 | F119: 46.39305632 | G119: 0.2929440608 | H119: 27.9932609 | I119: 0.6568662679 | J119: 77.34966816 | K119: 2.17217039 | L119: -53.80408365 | P119: 6 | Q119: =IF(Averaging="80%",MIN(Q33:Q41),MIN(Q32:Q42)) -> 35.51510721 | R119: =IF(Averaging="80%",MAX(R33:R41),MAX(R32:R42)) -> 48.50145668 | S119: =IF(Averaging="80%",MAX(S33:S41),MAX(S32:S42)) -> 0.48634 | T119: =IF(Averaging="80%",MAX(T33:T41),MAX(T32:T42)) -> 38.72709541 | U119: =IF(Averaging="80%",MIN(U33:U41),MIN(U32:U42)) -> 0.5557945199 | V119: =IF(Averaging="80%",MAX(V33:V41),MAX(V32:V42)) -> 86.45658816 | W119: =IF(Averaging="80%",MIN(W33:W41),MIN(W32:W42)) -> 1.635878554 | X119: =IF(Averaging="80%",MIN(X33:X41),MIN(X32:X42)) -> -54.11828169
D122: Full-bandwidth Dynamic Range (at 1% compression point)
D123: Band | E123: POUT | F123: BW | G123: POUT | H123: P1dB | I123: P1% | J123: HRCW | K123: HRNOI
D124: # | E124: dBm/GHz | F124: GHz | G124: dBm | H124: dBm | I124: dBm | J124: dB | K124: dB
D125: 1 | E125: =AVERAGE(L10:L20) -> -70.875247 | F125: =D20-D10 -> 2.29 | G125: =AbsToDb(F125)+E125 -> -67.27689218 | H125: -3 | I125: =H125-P1dB_P1pct_diff -> -15 | J125: =I125-G125 -> 52.27689218 | K125: =J125-P1dB_CW_vs_Noise -> 47.27689218
D126: 2 | E126: =AVERAGE(L21:L31) -> -60.48846886 | F126: =D31-D21 -> 8.88 | G126: =AbsToDb(F126)+E126 -> -51.00433921 | H126: -10 | I126: -22 | J126: 29.00433921 | K126: 24.00433921
D127: 3 | E127: =AVERAGE(L32:L42) -> -62.42895485 | F127: =D42-D32 -> 8.19 | G127: -53.29611583 | H127: -10 | I127: -22 | J127: 31.29611583 | K127: 26.29611583
D128: 4 | E128: =AVERAGE(X10:X20) -> -66.49070716 | F128: =P20-P10 -> 13.5 | G128: -55.18736947 | H128: -12 | I128: -24 | J128: 31.18736947 | K128: 26.18736947
D129: 5 | E129: =AVERAGE(X21:X31) -> -59.43449647 | F129: =P31-P21 -> 20 | G129: -46.42419652 | H129: -15 | I129: -27 | J129: 19.42419652 | K129: 14.42419652
D130: 6 | E130: =AVERAGE(X32:X42) -> -53.36718533 | F130: =P42-P32 -> 46 | G130: -36.73960701 | H130: -15 | I130: -27 | J130: 9.739607013 | K130: 4.739607013

Sheet Bands 1-2
A1: ngVLA Receiver Cascaded Noise & Gain (Trx, G): Low Bands (1 & 2)
A3: Band #: | B3: Temp. Stage | C3: Phys. Temp. | D3: T-Line Len. | E3: 1
A4: Frequency: | E4: =fLO_Band1 -> 1.2 | I4: 1.32 | M4: 1.49 | Q4: 1.65 | U4: 1.84 | Y4: 2.05 | AC4: 2.28 | AG4: 2.54 | AK4: 2.83 | AO4: 3.16 | AS4: =fHI_Band1-Delta_F -> 3.49
A5: Component Type | B5: # | C5: K | D5: m | E5: G, dB | F5: Te, K | G5: Gcas | H5: Tcas | I5: G, dB | J5: Te, K | K5: Gcas | L5: Tcas | M5: G, dB | N5: Te, K | O5: Gcas | P5: Tcas | Q5: G, dB | R5: Te, K | S5: Gcas | T5: Tcas | U5: G, dB | V5: Te, K | W5: Gcas | X5: Tcas | Y5: G, dB | Z5: Te, K | AA5: Gcas | AB5: Tcas | AC5: G, dB | AD5: Te, K | AE5: Gcas | AF5: Tcas | AG5: G, dB | AH5: Te, K | AI5: Gcas | AJ5: Tcas | AK5: G, dB | AL5: Te, K | AM5: Gcas | AN5: Tcas | AO5: G, dB | AP5: Te, K | AQ5: Gcas | AR5: Tcas | AS5: G, dB | AT5: Te, K | AU5: Gcas | AV5: Tcas
A6: Lossless Input | B6: 1 | C6: =INDEX(Stage_Temp_Table,$B6) -> 20 | E6: 0 | F6: 0 | G6: 0 | H6: 0 | I6: 0 | J6: 0 | K6: 0 | L6: 0 | M6: 0 | N6: 0 | O6: 0 | P6: 0 | Q6: 0 | R6: 0 | S6: 0 | T6: 0 | U6: 0 | V6: 0 | W6: 0 | X6: 0 | Y6: 0 | Z6: 0 | AA6: 0 | AB6: 0 | AC6: 0 | AD6: 0 | AE6: 0 | AF6: 0 | AG6: 0 | AH6: 0 | AI6: 0 | AJ6: 0 | AK6: 0 | AL6: 0 | AM6: 0 | AN6: 0 | AO6: 0 | AP6: 0 | AQ6: 0 | AR6: 0 | AS6: 0 | AT6: 0 | AU6: 0 | AV6: 0
A7: Weather_Radome | B7: 5 | C7: 300 | E7: =G_Lookup($A7,$E$3, E$4,$D7) -> 0 | F7: =Atten_to_Te(E7,$C7) -> 0 | G7: =E7+OFFSET(G7,-1,0) -> 0 | H7: =OFFSET(H7,-1,0)+F7*dbToAbs(-1*OFFSET(G7,-1,0)) -> 0 | I7: =G_Lookup($A7,$E$3, I$4,$D7) -> 0 | J7: =Atten_to_Te(I7,$C7) -> 0 | K7: =I7+OFFSET(K7,-1,0) -> 0 | L7: =OFFSET(L7,-1,0)+J7*dbToAbs(-1*OFFSET(K7,-1,0)) -> 0 | M7: =G_Lookup($A7,$E$3, M$4,$D7) -> 0 | N7: =Atten_to_Te(M7,$C7) -> 0 | O7: =M7+OFFSET(O7,-1,0) -> 0 | P7: =OFFSET(P7,-1,0)+N7*dbToAbs(-1*OFFSET(O7,-1,0)) -> 0 | Q7: =G_Lookup($A7,$E$3, Q$4,$D7) -> 0 | R7: =Atten_to_Te(Q7,$C7) -> 0 | S7: =Q7+OFFSET(S7,-1,0) -> 0 | T7: =OFFSET(T7,-1,0)+R7*dbToAbs(-1*OFFSET(S7,-1,0)) -> 0 | U7: =G_Lookup($A7,$E$3, U$4,$D7) -> 0 | V7: =Atten_to_Te(U7,$C7) -> 0 | W7: =U7+OFFSET(W7,-1,0) -> 0 | X7: =OFFSET(X7,-1,0)+V7*dbToAbs(-1*OFFSET(W7,-1,0)) -> 0 | Y7: =G_Lookup($A7,$E$3, Y$4,$D7) -> 0 | Z7: =Atten_to_Te(Y7,$C7) -> 0 | AA7: =Y7+OFFSET(AA7,-1,0) -> 0 | AB7: =OFFSET(AB7,-1,0)+Z7*dbToAbs(-1*OFFSET(AA7,-1,0)) -> 0 | AC7: =G_Lookup($A7,$E$3, AC$4,$D7) -> 0 | AD7: =Atten_to_Te(AC7,$C7) -> 0 | AE7: =AC7+OFFSET(AE7,-1,0) -> 0 | AF7: =OFFSET(AF7,-1,0)+AD7*dbToAbs(-1*OFFSET(AE7,-1,0)) -> 0 | AG7: =G_Lookup($A7,$E$3, AG$4,$D7) -> 0 | AH7: =Atten_to_Te(AG7,$C7) -> 0 | AI7: =AG7+OFFSET(AI7,-1,0) -> 0 | AJ7: =OFFSET(AJ7,-1,0)+AH7*dbToAbs(-1*OFFSET(AI7,-1,0)) -> 0 | AK7: =G_Lookup($A7,$E$3, AK$4,$D7) -> 0 | AL7: =Atten_to_Te(AK7,$C7) -> 0 | AM7: =AK7+OFFSET(AM7,-1,0) -> 0 | AN7: =OFFSET(AN7,-1,0)+AL7*dbToAbs(-1*OFFSET(AM7,-1,0)) -> 0 | AO7: =G_Lookup($A7,$E$3, AO$4,$D7) -> 0 | AP7: =Atten_to_Te(AO7,$C7) -> 0 | AQ7: =AO7+OFFSET(AQ7,-1,0) -> 0 | AR7: =OFFSET(AR7,-1,0)+AP7*dbToAbs(-1*OFFSET(AQ7,-1,0)) -> 0 | AS7: =G_Lookup($A7,$E$3, AS$4,$D7) -> 0 | AT7: =Atten_to_Te(AS7,$C7) -> 0 | AU7: =AS7+OFFSET(AU7,-1,0) -> 0 | AV7: =OFFSET(AV7,-1,0)+AT7*dbToAbs(-1*OFFSET(AU7,-1,0)) -> 0
A8: Vacuum_Window | B8: 5 | C8: 300 | E8: =G_Lookup($A8,$E$3, E$4,$D8) -> -0.02 | F8: =Atten_to_Te(E8,$C8) -> 1.384737084 | G8: =E8+OFFSET(G8,-1,0) -> -0.02 | H8: =OFFSET(H8,-1,0)+F8*dbToAbs(-1*OFFSET(G8,-1,0)) -> 1.384737084 | I8: =G_Lookup($A8,$E$3, I$4,$D8) -> -0.02 | J8: =Atten_to_Te(I8,$C8) -> 1.384737084 | K8: =I8+OFFSET(K8,-1,0) -> -0.02 | L8: =OFFSET(L8,-1,0)+J8*dbToAbs(-1*OFFSET(K8,-1,0)) -> 1.384737084 | M8: =G_Lookup($A8,$E$3, M$4,$D8) -> -0.02 | N8: =Atten_to_Te(M8,$C8) -> 1.384737084 | O8: =M8+OFFSET(O8,-1,0) -> -0.02 | P8: =OFFSET(P8,-1,0)+N8*dbToAbs(-1*OFFSET(O8,-1,0)) -> 1.384737084 | Q8: =G_Lookup($A8,$E$3, Q$4,$D8) -> -0.02 | R8: =Atten_to_Te(Q8,$C8) -> 1.384737084 | S8: =Q8+OFFSET(S8,-1,0) -> -0.02 | T8: =OFFSET(T8,-1,0)+R8*dbToAbs(-1*OFFSET(S8,-1,0)) -> 1.384737084 | U8: =G_Lookup($A8,$E$3, U$4,$D8) -> -0.02 | V8: =Atten_to_Te(U8,$C8) -> 1.384737084 | W8: =U8+OFFSET(W8,-1,0) -> -0.02 | X8: =OFFSET(X8,-1,0)+V8*dbToAbs(-1*OFFSET(W8,-1,0)) -> 1.384737084 | Y8: =G_Lookup($A8,$E$3, Y$4,$D8) -> -0.02 | Z8: =Atten_to_Te(Y8,$C8) -> 1.384737084 | AA8: =Y8+OFFSET(AA8,-1,0) -> -0.02 | AB8: =OFFSET(AB8,-1,0)+Z8*dbToAbs(-1*OFFSET(AA8,-1,0)) -> 1.384737084 | AC8: =G_Lookup($A8,$E$3, AC$4,$D8) -> -0.02 | AD8: =Atten_to_Te(AC8,$C8) -> 1.384737084 | AE8: =AC8+OFFSET(AE8,-1,0) -> -0.02 | AF8: =OFFSET(AF8,-1,0)+AD8*dbToAbs(-1*OFFSET(AE8,-1,0)) -> 1.384737084 | AG8: =G_Lookup($A8,$E$3, AG$4,$D8) -> -0.02 | AH8: =Atten_to_Te(AG8,$C8) -> 1.384737084 | AI8: =AG8+OFFSET(AI8,-1,0) -> -0.02 | AJ8: =OFFSET(AJ8,-1,0)+AH8*dbToAbs(-1*OFFSET(AI8,-1,0)) -> 1.384737084 | AK8: =G_Lookup($A8,$E$3, AK$4,$D8) -> -0.02 | AL8: =Atten_to_Te(AK8,$C8) -> 1.384737084 | AM8: =AK8+OFFSET(AM8,-1,0) -> -0.02 | AN8: =OFFSET(AN8,-1,0)+AL8*dbToAbs(-1*OFFSET(AM8,-1,0)) -> 1.384737084 | AO8: =G_Lookup($A8,$E$3, AO$4,$D8) -> -0.02 | AP8: =Atten_to_Te(AO8,$C8) -> 1.384737084 | AQ8: =AO8+OFFSET(AQ8,-1,0) -> -0.02 | AR8: =OFFSET(AR8,-1,0)+AP8*dbToAbs(-1*OFFSET(AQ8,-1,0)) -> 1.384737084 | AS8: =G_Lookup($A8,$E$3, AS$4,$D8) -> -0.02 | AT8: =Atten_to_Te(AS8,$C8) -> 1.384737084 | AU8: =AS8+OFFSET(AU8,-1,0) -> -0.02 | AV8: =OFFSET(AV8,-1,0)+AT8*dbToAbs(-1*OFFSET(AU8,-1,0)) -> 1.384737084
A9: IR_Filter | B9: 4 | C9: 190 | E9: =G_Lookup($A9,$E$3, E$4,$D9) -> -0.02 | F9: 0.8770001529 | G9: -0.04 | H9: =OFFSET(H9,-1,0)+F9*dbToAbs(-1*OFFSET(G9,-1,0)) -> 2.265785285 | I9: -0.02 | J9: 0.8770001529 | K9: -0.04 | L9: 2.265785285 | M9: -0.02 | N9: 0.8770001529 | O9: -0.04 | P9: 2.265785285 | Q9: -0.02 | R9: 0.8770001529 | S9: -0.04 | T9: 2.265785285 | U9: -0.02 | V9: 0.8770001529 | W9: -0.04 | X9: 2.265785285 | Y9: -0.02 | Z9: 0.8770001529 | AA9: -0.04 | AB9: 2.265785285 | AC9: -0.02 | AD9: 0.8770001529 | AE9: -0.04 | AF9: 2.265785285 | AG9: -0.02 | AH9: 0.8770001529 | AI9: -0.04 | AJ9: 2.265785285 | AK9: -0.02 | AL9: 0.8770001529 | AM9: -0.04 | AN9: 2.265785285 | AO9: -0.02 | AP9: 0.8770001529 | AQ9: -0.04 | AR9: 2.265785285 | AS9: -0.02 | AT9: 0.8770001529 | AU9: -0.04 | AV9: 2.265785285
A10: Feed_Horn | B10: 3 | C10: 80 | E10: -0.1 | F10: 1.863439382 | G10: -0.14 | H10: 4.14646686 | I10: -0.1 | J10: 1.863439382 | K10: -0.14 | L10: 4.14646686 | M10: -0.1 | N10: 1.863439382 | O10: -0.14 | P10: 4.14646686 | Q10: -0.1 | R10: 1.863439382 | S10: -0.14 | T10: 4.14646686 | U10: -0.1 | V10: 1.863439382 | W10: -0.14 | X10: 4.14646686 | Y10: -0.1010791367 | Z10: 1.883783371 | AA10: -0.1410791367 | AB10: 4.166999089 | AC10: -0.1060431655 | AD10: 1.977430853 | AE10: -0.1460431655 | AF10: 4.26151308 | AG10: -0.1116546763 | AH10: 2.083422197 | AI10: -0.1516546763 | AJ10: 4.36848515 | AK10: -0.1179136691 | AL10: 2.20180499 | AM10: -0.1579136691 | AN10: 4.487963326 | AO10: -0.1250359712 | AP10: 2.336724141 | AQ10: -0.1650359712 | AR10: 4.624130869 | AS10: -0.1327118644 | AT10: 2.482378018 | AU10: -0.1727118644 | AV10: 4.771132464
A11: Coax_141Cu | B11: 2 | C11: 50 | D11: 0.1 | E11: -0.04090023055 | F11: 0.4731055748 | G11: -0.1809002305 | H11: 4.635072039 | I11: -0.04295698888 | J11: 0.4970145974 | K11: -0.1829569889 | L11: 4.659764354 | M11: -0.04587072985 | N11: 0.5309051014 | O11: -0.1858707298 | P11: 4.694765159 | Q11: -0.04861307429 | R11: 0.5628228238 | S11: -0.1886130743 | T11: 4.727728551 | U11: -0.05186960831 | V11: 0.6007513054 | W11: -0.1918696083 | X11: 4.766899623 | Y11: -0.05528318051 | Z11: 0.6405393354 | AA11: -0.1963623172 | AB11: 4.828687789 | AC11: -0.05837082823 | AD11: 0.6765553909 | AE11: -0.2044139937 | AF11: 4.961206316 | AG11: -0.06186121261 | AH11: 0.7173000382 | AI11: -0.2135158889 | AJ11: 5.111275618 | AK11: -0.06575433365 | AL11: 0.7627846394 | AM11: -0.2236680027 | AN11: 5.278993966 | AO11: -0.07018443689 | AP11: 0.8145926002 | AQ11: -0.2352204081 | AR11: 5.470274437 | AS11: -0.074458437 | AT11: 0.8646251208 | AU11: -0.2471703014 | AV11: 5.670835189
A12: Cal_Coupler | B12: 1 | C12: 20 | E12: =G_Lookup($A12,$E$3, E$4,$D12) -> -0.45 | F12: =Atten_to_Te(E12,$C12) -> 2.183496305 | G12: -0.6309002305 | H12: 6.911440104 | I12: -0.45 | J12: 2.183496305 | K12: -0.6329569889 | L12: 6.937210732 | M12: -0.45 | N12: 2.183496305 | O12: -0.6358707298 | P12: 6.973740019 | Q12: -0.45 | R12: 2.183496305 | S12: -0.6386130743 | T12: 7.008142919 | U12: -0.45 | V12: 2.183496305 | W12: -0.6418696083 | X12: 7.049024589 | Y12: -0.45 | Z12: 2.183496305 | AA12: -0.6463623172 | AB12: 7.1131748 | AC12: -0.45 | AD12: 2.183496305 | AE12: -0.6544139937 | AF12: 7.249932619 | AG12: -0.45 | AH12: 2.183496305 | AI12: -0.6635158889 | AJ12: 7.404803638 | AK12: -0.45 | AL12: 2.183496305 | AM12: -0.6736680027 | AN12: 7.577889632 | AO12: -0.45 | AP12: 2.183496305 | AQ12: -0.6852204081 | AR12: 7.775293398 | AS12: -0.45 | AT12: 2.183496305 | AU12: -0.6971703014 | AV12: 7.982205292
A13: Cal_Inj_Band1 | B13: 4 | C13: 190 | E13: =G_Lookup($A13,$E$3, E$4,$D13) -> 0 | F13: =T_LNA($A13,E$4,$C13) -> 0.19 | G13: =E13+OFFSET(G13,-1,0) -> -0.6309002305 | H13: =OFFSET(H13,-1,0)+F13*dbToAbs(-1*OFFSET(G13,-1,0)) -> 7.131146968 | I13: =G_Lookup($A13,$E$3, I$4,$D13) -> 0 | J13: =T_LNA($A13,I$4,$C13) -> 0.19 | K13: -0.6329569889 | L13: 7.15702167 | M13: =G_Lookup($A13,$E$3, M$4,$D13) -> 0 | N13: =T_LNA($A13,M$4,$C13) -> 0.19 | O13: =M13+OFFSET(O13,-1,0) -> -0.6358707298 | P13: =OFFSET(P13,-1,0)+N13*dbToAbs(-1*OFFSET(O13,-1,0)) -> 7.193698481 | Q13: =G_Lookup($A13,$E$3, Q$4,$D13) -> 0 | R13: =T_LNA($A13,Q$4,$C13) -> 0.19 | S13: =Q13+OFFSET(S13,-1,0) -> -0.6386130743 | T13: =OFFSET(T13,-1,0)+R13*dbToAbs(-1*OFFSET(S13,-1,0)) -> 7.228240317 | U13: =G_Lookup($A13,$E$3, U$4,$D13) -> 0 | V13: =T_LNA($A13,U$4,$C13) -> 0.19 | W13: =U13+OFFSET(W13,-1,0) -> -0.6418696083 | X13: =OFFSET(X13,-1,0)+V13*dbToAbs(-1*OFFSET(W13,-1,0)) -> 7.269287088 | Y13: =G_Lookup($A13,$E$3, Y$4,$D13) -> 0 | Z13: =T_LNA($A13,Y$4,$C13) -> 0.19 | AA13: =Y13+OFFSET(AA13,-1,0) -> -0.6463623172 | AB13: =OFFSET(AB13,-1,0)+Z13*dbToAbs(-1*OFFSET(AA13,-1,0)) -> 7.333665275 | AC13: =G_Lookup($A13,$E$3, AC$4,$D13) -> 0 | AD13: =T_LNA($A13,AC$4,$C13) -> 0.19 | AE13: =AC13+OFFSET(AE13,-1,0) -> -0.6544139937 | AF13: =OFFSET(AF13,-1,0)+AD13*dbToAbs(-1*OFFSET(AE13,-1,0)) -> 7.470832255 | AG13: =G_Lookup($A13,$E$3, AG$4,$D13) -> 0 | AH13: =T_LNA($A13,AG$4,$C13) -> 0.19 | AI13: =AG13+OFFSET(AI13,-1,0) -> -0.6635158889 | AJ13: =OFFSET(AJ13,-1,0)+AH13*dbToAbs(-1*OFFSET(AI13,-1,0)) -> 7.626166718 | AK13: =G_Lookup($A13,$E$3, AK$4,$D13) -> 0 | AL13: =T_LNA($A13,AK$4,$C13) -> 0.19 | AM13: =AK13+OFFSET(AM13,-1,0) -> -0.6736680027 | AN13: =OFFSET(AN13,-1,0)+AL13*dbToAbs(-1*OFFSET(AM13,-1,0)) -> 7.799770779 | AO13: =G_Lookup($A13,$E$3, AO$4,$D13) -> 0 | AP13: =T_LNA($A13,AO$4,$C13) -> 0.19 | AQ13: =AO13+OFFSET(AQ13,-1,0) -> -0.6852204081 | AR13: =OFFSET(AR13,-1,0)+AP13*dbToAbs(-1*OFFSET(AQ13,-1,0)) -> 7.997765543 | AS13: =G_Lookup($A13,$E$3, AS$4,$D13) -> 0 | AT13: =T_LNA($A13,AS$4,$C13) -> 0.19 | AU13: =AS13+OFFSET(AU13,-1,0) -> -0.6971703014 | AV13: =OFFSET(AV13,-1,0)+AT13*dbToAbs(-1*OFFSET(AU13,-1,0)) -> 8.205290426
A14: LNA_Band1 | B14: 1 | C14: 20 | E14: =G_Lookup($A14,$E$3, E$4,$D14) -> 26 | F14: =T_LNA($A14,E$4) -> 3.955 | G14: 25.36909977 | H14: 11.70451878 | I14: =G_Lookup($A14,$E$3, I$4,$D14) -> 27.02 | J14: =T_LNA($A14,I$4) -> 3.0736 | K14: 26.38704301 | L14: 10.71286851 | M14: =G_Lookup($A14,$E$3, M$4,$D14) -> 27.61 | N14: =T_LNA($A14,M$4) -> 2.13005 | O14: 26.97412927 | P14: 9.659606489 | Q14: =G_Lookup($A14,$E$3, Q$4,$D14) -> 27.425 | R14: =T_LNA($A14,Q$4) -> 1.6385 | S14: 26.78638693 | T14: 9.126290774 | U14: =G_Lookup($A14,$E$3, U$4,$D14) -> 27.12 | V14: =T_LNA($A14,U$4) -> 1.4012 | W14: 26.47813039 | X14: 8.893665053 | Y14: =G_Lookup($A14,$E$3, Y$4,$D14) -> 26.8 | Z14: =T_LNA($A14,Y$4) -> 1.15825 | AA14: 26.15363768 | AB14: 8.677786814 | AC14: =G_Lookup($A14,$E$3, AC$4,$D14) -> 26.6 | AD14: =T_LNA($A14,AC$4) -> 1.243 | AE14: 25.94558601 | AF14: 8.915980927 | AG14: =G_Lookup($A14,$E$3, AG$4,$D14) -> 26.37 | AH14: =T_LNA($A14,AG$4) -> 1.243 | AI14: 25.70648411 | AJ14: 9.074347292 | AK14: =G_Lookup($A14,$E$3, AK$4,$D14) -> 26.285 | AL14: =T_LNA($A14,AK$4) -> 1.5029 | AM14: 25.611332 | AN14: 9.554850647 | AO14: =G_Lookup($A14,$E$3, AO$4,$D14) -> 26.36 | AP14: =T_LNA($A14,AO$4) -> 1.7854 | AQ14: 25.67477959 | AR14: 10.08830116 | AS14: =G_Lookup($A14,$E$3, AS$4,$D14) -> 26.355 | AT14: =T_LNA($A14,AS$4) -> 1.96055 | AU14: 25.6578297 | AV14: 10.50723548
A15: Coax_086SS | B15: 4 | C15: 190 | D15: 0.4 | E15: -0.6187571203 | F15: 29.09340906 | G15: 24.75034265 | H15: 11.78902422 | I15: =G_Lookup($A15,$E$3, I$4,$D15) -> -0.6471679778 | J15: =Atten_to_Te(I15,$C15) -> 30.53138183 | K15: 25.73987503 | L15: 10.78302085 | M15: =G_Lookup($A15,$E$3, M$4,$D15) -> -0.6874166927 | N15: =Atten_to_Te(M15,$C15) -> 32.58468036 | O15: 26.28671258 | P15: 9.725009921 | Q15: =G_Lookup($A15,$E$3, Q$4,$D15) -> -0.7252978361 | R15: =Atten_to_Te(Q15,$C15) -> 34.53465728 | S15: 26.06108909 | T15: 9.19867042 | U15: =G_Lookup($A15,$E$3, U$4,$D15) -> -0.7702816939 | V15: =Atten_to_Te(U15,$C15) -> 36.87245487 | W15: 25.7078487 | X15: 8.976628925 | Y15: =G_Lookup($A15,$E$3, Y$4,$D15) -> -0.8172477976 | Z15: =Atten_to_Te(Y15,$C15) -> 39.3392462 | AA15: 25.33638989 | AB15: 8.773167901 | AC15: =G_Lookup($A15,$E$3, AC$4,$D15) -> -0.8590386152 | AD15: =Atten_to_Te(AC15,$C15) -> 41.55675909 | AE15: 25.08654739 | AF15: 9.021682894 | AG15: =G_Lookup($A15,$E$3, AG$4,$D15) -> -0.9062804089 | AH15: =Atten_to_Te(AG15,$C15) -> 44.08934252 | AI15: 24.8002037 | AJ15: 9.19283825 | AK15: =G_Lookup($A15,$E$3, AK$4,$D15) -> -0.9589731788 | AL15: =Atten_to_Te(AK15,$C15) -> 46.94683872 | AM15: 24.65235882 | AN15: 9.683816031 | AO15: =G_Lookup($A15,$E$3, AO$4,$D15) -> -1.014373903 | AP15: =Atten_to_Te(AO15,$C15) -> 49.98880945 | AQ15: 24.66040569 | AR15: 10.2236314 | AS15: =G_Lookup($A15,$E$3, AS$4,$D15) -> -1.064929613 | AT15: =Atten_to_Te(AS15,$C15) -> 52.79881468 | AU15: 24.59290009 | AV15: 10.65073194
A16: Cascaded Values: | G16: =G15 -> 24.75034265 | H16: =H15 -> 11.78902422 | K16: =K15 -> 25.73987503 | L16: =L15 -> 10.78302085 | O16: =O15 -> 26.28671258 | P16: =P15 -> 9.725009921 | S16: =S15 -> 26.06108909 | T16: =T15 -> 9.19867042 | W16: =W15 -> 25.7078487 | X16: =X15 -> 8.976628925 | AA16: =AA15 -> 25.33638989 | AB16: =AB15 -> 8.773167901 | AE16: =AE15 -> 25.08654739 | AF16: =AF15 -> 9.021682894 | AI16: =AI15 -> 24.8002037 | AJ16: =AJ15 -> 9.19283825 | AM16: =AM15 -> 24.65235882 | AN16: =AN15 -> 9.683816031 | AQ16: =AQ15 -> 24.66040569 | AR16: =AR15 -> 10.2236314 | AU16: =AU15 -> 24.59290009 | AV16: =AV15 -> 10.65073194
A18: Band #: | B18: Temp. Stage | C18: Phys. Temp. | D18: T-Line Len. | E18: 2
A19: Frequency: | E19: =fLO_Band2+Delta_F -> 3.41 | I19: 3.88 | M19: 4.4 | Q19: 5 | U19: 5.7 | Y19: 6.45 | AC19: 7.35 | AG19: 8.35 | AK19: 9.5 | AO19: 10.8 | AS19: =fHI_Band2-Delta_F -> 12.29
A20: Component Type | B20: # | C20: K | D20: m | E20: G, dB | F20: Te, K | G20: Gcas | H20: Tcas | I20: G, dB | J20: Te, K | K20: Gcas | L20: Tcas | M20: G, dB | N20: Te, K | O20: Gcas | P20: Tcas | Q20: G, dB | R20: Te, K | S20: Gcas | T20: Tcas | U20: G, dB | V20: Te, K | W20: Gcas | X20: Tcas | Y20: G, dB | Z20: Te, K | AA20: Gcas | AB20: Tcas | AC20: G, dB | AD20: Te, K | AE20: Gcas | AF20: Tcas | AG20: G, dB | AH20: Te, K | AI20: Gcas | AJ20: Tcas | AK20: G, dB | AL20: Te, K | AM20: Gcas | AN20: Tcas | AO20: G, dB | AP20: Te, K | AQ20: Gcas | AR20: Tcas | AS20: G, dB | AT20: Te, K | AU20: Gcas | AV20: Tcas
A21: Lossless Input | B21: 1 | C21: =INDEX(Stage_Temp_Table,$B21) -> 20 | E21: 0 | F21: 0 | G21: 0 | H21: 0 | I21: 0 | J21: 0 | K21: 0 | L21: 0 | M21: 0 | N21: 0 | O21: 0 | P21: 0 | Q21: 0 | R21: 0 | S21: 0 | T21: 0 | U21: 0 | V21: 0 | W21: 0 | X21: 0 | Y21: 0 | Z21: 0 | AA21: 0 | AB21: 0 | AC21: 0 | AD21: 0 | AE21: 0 | AF21: 0 | AG21: 0 | AH21: 0 | AI21: 0 | AJ21: 0 | AK21: 0 | AL21: 0 | AM21: 0 | AN21: 0 | AO21: 0 | AP21: 0 | AQ21: 0 | AR21: 0 | AS21: 0 | AT21: 0 | AU21: 0 | AV21: 0
A22: Weather_Radome | B22: 5 | C22: 300 | E22: =G_Lookup($A22,$E$18, E$19,$D22) -> 0 | F22: =Atten_to_Te(E22,$C22) -> 0 | G22: =E22+OFFSET(G22,-1,0) -> 0 | H22: =OFFSET(H22,-1,0)+F22*dbToAbs(-1*OFFSET(G22,-1,0)) -> 0 | I22: =G_Lookup($A22,$E$18, I$19,$D22) -> 0 | J22: =Atten_to_Te(I22,$C22) -> 0 | K22: =I22+OFFSET(K22,-1,0) -> 0 | L22: =OFFSET(L22,-1,0)+J22*dbToAbs(-1*OFFSET(K22,-1,0)) -> 0 | M22: =G_Lookup($A22,$E$18, M$19,$D22) -> 0 | N22: =Atten_to_Te(M22,$C22) -> 0 | O22: =M22+OFFSET(O22,-1,0) -> 0 | P22: =OFFSET(P22,-1,0)+N22*dbToAbs(-1*OFFSET(O22,-1,0)) -> 0 | Q22: =G_Lookup($A22,$E$18, Q$19,$D22) -> 0 | R22: =Atten_to_Te(Q22,$C22) -> 0 | S22: =Q22+OFFSET(S22,-1,0) -> 0 | T22: =OFFSET(T22,-1,0)+R22*dbToAbs(-1*OFFSET(S22,-1,0)) -> 0 | U22: =G_Lookup($A22,$E$18, U$19,$D22) -> 0 | V22: =Atten_to_Te(U22,$C22) -> 0 | W22: =U22+OFFSET(W22,-1,0) -> 0 | X22: =OFFSET(X22,-1,0)+V22*dbToAbs(-1*OFFSET(W22,-1,0)) -> 0 | Y22: =G_Lookup($A22,$E$18, Y$19,$D22) -> 0 | Z22: =Atten_to_Te(Y22,$C22) -> 0 | AA22: =Y22+OFFSET(AA22,-1,0) -> 0 | AB22: =OFFSET(AB22,-1,0)+Z22*dbToAbs(-1*OFFSET(AA22,-1,0)) -> 0 | AC22: =G_Lookup($A22,$E$18, AC$19,$D22) -> 0 | AD22: =Atten_to_Te(AC22,$C22) -> 0 | AE22: =AC22+OFFSET(AE22,-1,0) -> 0 | AF22: =OFFSET(AF22,-1,0)+AD22*dbToAbs(-1*OFFSET(AE22,-1,0)) -> 0 | AG22: =G_Lookup($A22,$E$18, AG$19,$D22) -> 0 | AH22: =Atten_to_Te(AG22,$C22) -> 0 | AI22: =AG22+OFFSET(AI22,-1,0) -> 0 | AJ22: =OFFSET(AJ22,-1,0)+AH22*dbToAbs(-1*OFFSET(AI22,-1,0)) -> 0 | AK22: =G_Lookup($A22,$E$18, AK$19,$D22) -> 0 | AL22: =Atten_to_Te(AK22,$C22) -> 0 | AM22: =AK22+OFFSET(AM22,-1,0) -> 0 | AN22: =OFFSET(AN22,-1,0)+AL22*dbToAbs(-1*OFFSET(AM22,-1,0)) -> 0 | AO22: =G_Lookup($A22,$E$18, AO$19,$D22) -> 0 | AP22: =Atten_to_Te(AO22,$C22) -> 0 | AQ22: =AO22+OFFSET(AQ22,-1,0) -> 0 | AR22: =OFFSET(AR22,-1,0)+AP22*dbToAbs(-1*OFFSET(AQ22,-1,0)) -> 0 | AS22: =G_Lookup($A22,$E$18, AS$19,$D22) -> 0 | AT22: =Atten_to_Te(AS22,$C22) -> 0 | AU22: =AS22+OFFSET(AU22,-1,0) -> 0 | AV22: =OFFSET(AV22,-1,0)+AT22*dbToAbs(-1*OFFSET(AU22,-1,0)) -> 0
A23: Vacuum_Window | B23: 5 | C23: 300 | E23: =G_Lookup($A23,$E$18, E$19,$D23) -> -0.02 | F23: =Atten_to_Te(E23,$C23) -> 1.384737084 | G23: =E23+OFFSET(G23,-1,0) -> -0.02 | H23: =OFFSET(H23,-1,0)+F23*dbToAbs(-1*OFFSET(G23,-1,0)) -> 1.384737084 | I23: =G_Lookup($A23,$E$18, I$19,$D23) -> -0.02 | J23: =Atten_to_Te(I23,$C23) -> 1.384737084 | K23: =I23+OFFSET(K23,-1,0) -> -0.02 | L23: =OFFSET(L23,-1,0)+J23*dbToAbs(-1*OFFSET(K23,-1,0)) -> 1.384737084 | M23: =G_Lookup($A23,$E$18, M$19,$D23) -> -0.021 | N23: =Atten_to_Te(M23,$C23) -> 1.454141474 | O23: =M23+OFFSET(O23,-1,0) -> -0.021 | P23: =OFFSET(P23,-1,0)+N23*dbToAbs(-1*OFFSET(O23,-1,0)) -> 1.454141474 | Q23: =G_Lookup($A23,$E$18, Q$19,$D23) -> -0.0225 | R23: =Atten_to_Te(Q23,$C23) -> 1.558278029 | S23: =Q23+OFFSET(S23,-1,0) -> -0.0225 | T23: =OFFSET(T23,-1,0)+R23*dbToAbs(-1*OFFSET(S23,-1,0)) -> 1.558278029 | U23: =G_Lookup($A23,$E$18, U$19,$D23) -> -0.02425 | V23: =Atten_to_Te(U23,$C23) -> 1.679816143 | W23: =U23+OFFSET(W23,-1,0) -> -0.02425 | X23: =OFFSET(X23,-1,0)+V23*dbToAbs(-1*OFFSET(W23,-1,0)) -> 1.679816143 | Y23: =G_Lookup($A23,$E$18, Y$19,$D23) -> -0.026125 | Z23: =Atten_to_Te(Y23,$C23) -> 1.810089909 | AA23: =Y23+OFFSET(AA23,-1,0) -> -0.026125 | AB23: =OFFSET(AB23,-1,0)+Z23*dbToAbs(-1*OFFSET(AA23,-1,0)) -> 1.810089909 | AC23: =G_Lookup($A23,$E$18, AC$19,$D23) -> -0.028375 | AD23: =Atten_to_Te(AC23,$C23) -> 1.966492689 | AE23: =AC23+OFFSET(AE23,-1,0) -> -0.028375 | AF23: =OFFSET(AF23,-1,0)+AD23*dbToAbs(-1*OFFSET(AE23,-1,0)) -> 1.966492689 | AG23: =G_Lookup($A23,$E$18, AG$19,$D23) -> -0.03 | AH23: =Atten_to_Te(AG23,$C23) -> 2.079500656 | AI23: =AG23+OFFSET(AI23,-1,0) -> -0.03 | AJ23: =OFFSET(AJ23,-1,0)+AH23*dbToAbs(-1*OFFSET(AI23,-1,0)) -> 2.079500656 | AK23: =G_Lookup($A23,$E$18, AK$19,$D23) -> -0.03 | AL23: =Atten_to_Te(AK23,$C23) -> 2.079500656 | AM23: =AK23+OFFSET(AM23,-1,0) -> -0.03 | AN23: =OFFSET(AN23,-1,0)+AL23*dbToAbs(-1*OFFSET(AM23,-1,0)) -> 2.079500656 | AO23: =G_Lookup($A23,$E$18, AO$19,$D23) -> -0.03 | AP23: =Atten_to_Te(AO23,$C23) -> 2.079500656 | AQ23: =AO23+OFFSET(AQ23,-1,0) -> -0.03 | AR23: =OFFSET(AR23,-1,0)+AP23*dbToAbs(-1*OFFSET(AQ23,-1,0)) -> 2.079500656 | AS23: =G_Lookup($A23,$E$18, AS$19,$D23) -> -0.03 | AT23: =Atten_to_Te(AS23,$C23) -> 2.079500656 | AU23: =AS23+OFFSET(AU23,-1,0) -> -0.03 | AV23: =OFFSET(AV23,-1,0)+AT23*dbToAbs(-1*OFFSET(AU23,-1,0)) -> 2.079500656
A24: IR_Filter | B24: 4 | C24: 190 | E24: -0.02 | F24: 0.8770001529 | G24: -0.04 | H24: =OFFSET(H24,-1,0)+F24*dbToAbs(-1*OFFSET(G24,-1,0)) -> 2.265785285 | I24: -0.02 | J24: 0.8770001529 | K24: -0.04 | L24: 2.265785285 | M24: -0.021 | N24: 0.9209562669 | O24: -0.042 | P24: 2.379561743 | Q24: -0.0225 | R24: 0.9869094181 | S24: -0.045 | T24: 2.550313711 | U24: -0.02425 | V24: 1.063883557 | W24: -0.0485 | X24: 2.749656796 | Y24: -0.026125 | Z24: 1.146390276 | AA24: -0.05225 | AB24: 2.963397084 | AC24: -0.028375 | AD24: 1.24544537 | AE24: -0.05675 | AF24: 3.220101922 | AG24: -0.03 | AH24: 1.317017082 | AI24: -0.06 | AJ24: 3.405646864 | AK24: -0.03 | AL24: 1.317017082 | AM24: -0.06 | AN24: 3.405646864 | AO24: -0.03 | AP24: 1.317017082 | AQ24: -0.06 | AR24: 3.405646864 | AS24: -0.03 | AT24: 1.317017082 | AU24: -0.06 | AV24: 3.405646864
A25: Feed_Horn | B25: 1 | C25: 20 | E25: -0.13 | F25: 0.6077224088 | G25: -0.17 | H25: 2.87913088 | I25: -0.1459322034 | J25: 0.6834612019 | K25: -0.1859322034 | L25: 2.955570476 | M25: -0.155 | N25: 0.7266920886 | O25: -0.197 | P25: 3.113315659 | Q25: -0.1625 | R25: 0.7625167424 | S25: -0.2075 | T25: 3.320772447 | U25: -0.17125 | V25: 0.8043904398 | W25: -0.21975 | X25: 3.563080643 | Y25: -0.180625 | Z25: 0.8493488345 | AA25: -0.232875 | AB25: 3.823026157 | AC25: -0.191875 | AD25: 0.9034271715 | AE25: -0.248625 | AF25: 4.135411798 | AG25: -0.2081585082 | AH25: 0.9819499377 | AI25: -0.2681585082 | AJ25: 4.401257086 | AK25: -0.234965035 | AL25: 1.111860092 | AM25: -0.294965035 | AN25: 4.53297447 | AO25: -0.2652680653 | AP25: 1.259683864 | AQ25: -0.3252680653 | AR25: 4.682854676 | AS25: -0.3 | AT25: 1.430386105 | AU25: -0.36 | AV25: 4.855931621
A26: Coax_141Cu | B26: 1 | C26: 20 | D26: 0.1 | E26: -0.07351557222 | F26: 0.34143339 | G26: -0.2435155722 | H26: 3.234194348 | I26: -0.07905490282 | J26: 0.3673949942 | K26: -0.2649871062 | L26: 3.339036115 | M26: -0.08469447779 | N26: 0.393860461 | O26: -0.2816944778 | P26: 3.525453399 | Q26: -0.09103239449 | R26: 0.4236441571 | S26: -0.2985323945 | T26: 3.765149087 | U26: -0.09842663063 | V26: 0.4584467823 | W26: -0.3181766306 | X26: 4.045321419 | Y26: -0.1057980302 | Z26: 0.4932009524 | AA26: -0.3386730302 | AB26: 4.343395145 | AC26: -0.1142029126 | AD26: 0.5328997581 | AE26: -0.3628279126 | AF26: 4.699709164 | AG26: -0.1231705334 | AH26: 0.5753413503 | AI26: -0.3913290415 | AJ26: 5.013243018 | AK26: -0.1326906536 | AL26: 0.6204937942 | AM26: -0.4276556886 | AN26: 5.197075182 | AO26: -0.1434525286 | AP26: 0.671655015 | AQ26: -0.4687205939 | AR26: 5.406745495 | AS26: -0.1555362089 | AT26: 0.7292513023 | AU26: -0.5155362089 | AV26: 5.648208922
A27: Cal_Coupler | B27: 1 | C27: 20 | E27: -0.45 | F27: 2.183496305 | G27: -0.6935155722 | H27: 5.543620176 | I27: -0.45 | J27: 2.183496305 | K27: -0.7149871062 | L27: 5.659908024 | M27: -0.45 | N27: 2.183496305 | O27: -0.7316944778 | P27: 5.855270932 | Q27: -0.45 | R27: 2.183496305 | S27: -0.7485323945 | T27: 6.104017027 | U27: -0.45 | V27: 2.183496305 | W27: -0.7681766306 | X27: 6.394792612 | Y27: -0.45 | Z27: 2.183496305 | AA27: -0.7886730302 | AB27: 6.703980804 | AC27: -0.45 | AD27: 2.183496305 | AE27: -0.8128279126 | AF27: 7.073460667 | AG27: -0.45 | AH27: 2.183496305 | AI27: -0.8413290415 | AJ27: 7.402623796 | AK27: -0.45 | AL27: 2.183496305 | AM27: -0.8776556886 | AN27: 7.606525803 | AO27: -0.45 | AP27: 2.183496305 | AQ27: -0.9187205939 | AR27: 7.839086833 | AS27: -0.45 | AT27: 2.183496305 | AU27: -0.9655362089 | AV27: 8.106911985
A28: Cal_Inj_Band2 | B28: 4 | C28: 190 | E28: =G_Lookup($A28,$E$3, E$4,$D28) -> 0 | F28: =T_LNA($A28,E$19,$C28) -> 0.19 | G28: -0.6935155722 | H28: 5.766517656 | I28: =G_Lookup($A28,$E$3, I$4,$D28) -> 0 | J28: =T_LNA($A28,I$19,$C28) -> 0.19 | K28: -0.7149871062 | L28: 5.883910238 | M28: =G_Lookup($A28,$E$3, M$4,$D28) -> 0 | N28: =T_LNA($A28,M$19,$C28) -> 0.19 | O28: -0.7316944778 | P28: 6.080136545 | Q28: =G_Lookup($A28,$E$3, Q$4,$D28) -> 0 | R28: =T_LNA($A28,Q$19,$C28) -> 0.19 | S28: -0.7485323945 | T28: 6.329756153 | U28: =G_Lookup($A28,$E$3, U$4,$D28) -> 0 | V28: =T_LNA($A28,U$19,$C28) -> 0.19 | W28: -0.7681766306 | X28: 6.621555126 | Y28: =G_Lookup($A28,$E$3, Y$4,$D28) -> 0 | Z28: =T_LNA($A28,Y$19,$C28) -> 0.19 | AA28: -0.7886730302 | AB28: 6.931816047 | AC28: =G_Lookup($A28,$E$3, AC$4,$D28) -> 0 | AD28: =T_LNA($A28,AC$19,$C28) -> 0.19 | AE28: -0.8128279126 | AF28: 7.302566629 | AG28: =G_Lookup($A28,$E$3, AG$4,$D28) -> 0 | AH28: =T_LNA($A28,AG$19,$C28) -> 0.19 | AI28: -0.8413290415 | AJ28: 7.63323824 | AK28: =G_Lookup($A28,$E$3, AK$4,$D28) -> 0 | AL28: =T_LNA($A28,AK$19,$C28) -> 0.19 | AM28: -0.8776556886 | AN28: 7.839077316 | AO28: =G_Lookup($A28,$E$3, AO$4,$D28) -> 0 | AP28: =T_LNA($A28,AO$19,$C28) -> 0.19 | AQ28: -0.9187205939 | AR28: 8.073847676 | AS28: =G_Lookup($A28,$E$3, AS$4,$D28) -> 0 | AT28: =T_LNA($A28,AS$19,$C28) -> 0.19 | AU28: -0.9655362089 | AV28: 8.344217167
A29: LNA_Band2 | B29: 1 | C29: 20 | E29: =G_Lookup($A29,$E$18, E$19,$D29) -> 37.138 | F29: =T_LNA($A29,E$19) -> 4.35502 | G29: 36.44448443 | H29: 10.87558599 | I29: 37.072 | J29: =T_LNA($A29,I$19) -> 4.03636 | K29: 36.35701289 | L29: 10.64261328 | M29: 36.6 | N29: =T_LNA($A29,M$19) -> 3.6838 | O29: 35.86830552 | P29: 10.43992575 | Q29: 36.1 | R29: =T_LNA($A29,Q$19) -> 3.616 | S29: 35.35146761 | T29: 10.62592816 | U29: 36.14 | V29: =T_LNA($A29,U$19) -> 3.5708 | W29: 35.37182337 | X29: 10.88325821 | Y29: 36.47 | Z29: =T_LNA($A29,Y$19) -> 3.4013 | AA29: 35.68132697 | AB29: 11.01042663 | AC29: 37.14 | AD29: =T_LNA($A29,AC$19) -> 3.4691 | AE29: 36.32717209 | AF29: 11.48567976 | AG29: 37.74 | AH29: =T_LNA($A29,AG$19) -> 3.96065 | AI29: 36.89867096 | AJ29: 12.4405177 | AK29: 38.05 | AL29: =T_LNA($A29,AK$19) -> 4.3505 | AM29: 37.17234431 | AN29: 13.16389499 | AO29: 38.02 | AP29: =T_LNA($A29,AO$19) -> 5.1528 | AQ29: 37.10127941 | AR29: 14.44056174 | AS29: =G_Lookup($A29,$E$18, AS$19,$D29) -> 38.1 | AT29: =T_LNA($A29,AS$19) -> 5.40931 | AU29: 37.13446379 | AV29: 15.10030819
A30: Coax_086SS | B30: 4 | C30: 190 | D30: 0.4 | E30: -1.052673683 | F30: 52.11459454 | G30: 35.39181074 | H30: 10.88740309 | I30: -1.12467727 | J30: =Atten_to_Te(I30,$C30) -> 56.16217919 | K30: 35.23233562 | L30: 10.65560727 | M30: -1.197055562 | N30: =Atten_to_Te(M30,$C30) -> 60.29902456 | O30: 34.67124996 | P30: 10.45553851 | Q30: -1.278047158 | R30: =Atten_to_Te(Q30,$C30) -> 65.01064913 | S30: 34.07342045 | T30: 10.64488814 | U30: -1.363481212 | V30: =Atten_to_Te(U30,$C30) -> 70.07686537 | W30: 34.00834216 | X30: 10.90360015 | Y30: -1.448859928 | Z30: =Atten_to_Te(Y30,$C30) -> 75.24035089 | AA30: 34.23246704 | AB30: 11.0307651 | AC30: -1.546388173 | AD30: =Atten_to_Te(AC30,$C30) -> 81.26416038 | AE30: 34.78078391 | AF30: 11.50461112 | AG30: -1.650245371 | AH30: =Atten_to_Te(AG30,$C30) -> 87.82935969 | AI30: 35.24842559 | AJ30: 12.45845565 | AK30: -1.760054376 | AL30: =Atten_to_Te(AK30,$C30) -> 94.94368636 | AM30: 35.41228994 | AN30: 13.18210171 | AO30: =G_Lookup($A30,$E$18, AO$19,$D30) -> -1.876867827 | AP30: =Atten_to_Te(AO30,$C30) -> 102.7119033 | AQ30: 35.22441158 | AR30: 14.46058306 | AS30: =G_Lookup($A30,$E$18, AS$19,$D30) -> -2.003501183 | AT30: =Atten_to_Te(AS30,$C30) -> 111.3725684 | AU30: 35.13096261 | AV30: 15.12185246
A31: Cascaded Values: | G31: =G30 -> 35.39181074 | H31: =H30 -> 10.88740309 | K31: =K30 -> 35.23233562 | L31: =L30 -> 10.65560727 | O31: =O30 -> 34.67124996 | P31: =P30 -> 10.45553851 | S31: =S30 -> 34.07342045 | T31: =T30 -> 10.64488814 | W31: =W30 -> 34.00834216 | X31: =X30 -> 10.90360015 | AA31: =AA30 -> 34.23246704 | AB31: =AB30 -> 11.0307651 | AE31: =AE30 -> 34.78078391 | AF31: =AF30 -> 11.50461112 | AI31: =AI30 -> 35.24842559 | AJ31: =AJ30 -> 12.45845565 | AM31: =AM30 -> 35.41228994 | AN31: =AN30 -> 13.18210171 | AQ31: =AQ30 -> 35.22441158 | AR31: =AR30 -> 14.46058306 | AU31: =AU30 -> 35.13096261 | AV31: =AV30 -> 15.12185246

Sheet Bands 3-4
A1: ngVLA Receiver Cascaded Noise & Gain (Trx, G): Mid Bands (3 & 4)
A3: Band #: | B3: Temp. Stage | C3: Phys. Temp. | D3: TLine Len. | E3: 3
A4: Frequency: | E4: =fLO_Band3+Delta_F -> 12.31 | I4: 12.94 | M4: 13.6 | Q4: 14.35 | U4: 15.1 | Y4: 15.9 | AC4: 16.7 | AG4: 17.6 | AK4: 18.5 | AO4: 19.5 | AS4: =fHI_Band3 -> 20.5
A5: Component Type | B5: # | C5: K | D5: m | E5: G, dB | F5: Te, K | G5: Gcas | H5: Tcas | I5: G, dB | J5: Te, K | K5: Gcas | L5: Tcas | M5: G, dB | N5: Te, K | O5: Gcas | P5: Tcas | Q5: G, dB | R5: Te, K | S5: Gcas | T5: Tcas | U5: G, dB | V5: Te, K | W5: Gcas | X5: Tcas | Y5: G, dB | Z5: Te, K | AA5: Gcas | AB5: Tcas | AC5: G, dB | AD5: Te, K | AE5: Gcas | AF5: Tcas | AG5: G, dB | AH5: Te, K | AI5: Gcas | AJ5: Tcas | AK5: G, dB | AL5: Te, K | AM5: Gcas | AN5: Tcas | AO5: G, dB | AP5: Te, K | AQ5: Gcas | AR5: Tcas | AS5: G, dB | AT5: Te, K | AU5: Gcas | AV5: Tcas
A6: Lossless Input | B6: 1 | C6: =INDEX(Stage_Temp_Table,$B6) -> 20 | E6: 0 | F6: 0 | G6: 0 | H6: 0 | I6: 0 | J6: 0 | K6: 0 | L6: 0 | M6: 0 | N6: 0 | O6: 0 | P6: 0 | Q6: 0 | R6: 0 | S6: 0 | T6: 0 | U6: 0 | V6: 0 | W6: 0 | X6: 0 | Y6: 0 | Z6: 0 | AA6: 0 | AB6: 0 | AC6: 0 | AD6: 0 | AE6: 0 | AF6: 0 | AG6: 0 | AH6: 0 | AI6: 0 | AJ6: 0 | AK6: 0 | AL6: 0 | AM6: 0 | AN6: 0 | AO6: 0 | AP6: 0 | AQ6: 0 | AR6: 0 | AS6: 0 | AT6: 0 | AU6: 0 | AV6: 0
A7: Weather_Radome | B7: 5 | C7: 300 | E7: =G_Lookup($A7,$E$3, E$4,$D7) -> -0.03 | F7: =Atten_to_Te(E7,$C7) -> 2.079500656 | G7: =E7+OFFSET(G7,-1,0) -> -0.03 | H7: =OFFSET(H7,-1,0)+F7*dbToAbs(-1*OFFSET(G7,-1,0)) -> 2.079500656 | I7: =G_Lookup($A7,$E$3, I$4,$D7) -> -0.03 | J7: =Atten_to_Te(I7,$C7) -> 2.079500656 | K7: =I7+OFFSET(K7,-1,0) -> -0.03 | L7: =OFFSET(L7,-1,0)+J7*dbToAbs(-1*OFFSET(K7,-1,0)) -> 2.079500656 | M7: =G_Lookup($A7,$E$3, M$4,$D7) -> -0.03 | N7: =Atten_to_Te(M7,$C7) -> 2.079500656 | O7: =M7+OFFSET(O7,-1,0) -> -0.03 | P7: =OFFSET(P7,-1,0)+N7*dbToAbs(-1*OFFSET(O7,-1,0)) -> 2.079500656 | Q7: =G_Lookup($A7,$E$3, Q$4,$D7) -> -0.03 | R7: =Atten_to_Te(Q7,$C7) -> 2.079500656 | S7: =Q7+OFFSET(S7,-1,0) -> -0.03 | T7: =OFFSET(T7,-1,0)+R7*dbToAbs(-1*OFFSET(S7,-1,0)) -> 2.079500656 | U7: =G_Lookup($A7,$E$3, U$4,$D7) -> -0.03 | V7: =Atten_to_Te(U7,$C7) -> 2.079500656 | W7: =U7+OFFSET(W7,-1,0) -> -0.03 | X7: =OFFSET(X7,-1,0)+V7*dbToAbs(-1*OFFSET(W7,-1,0)) -> 2.079500656 | Y7: =G_Lookup($A7,$E$3, Y$4,$D7) -> -0.03 | Z7: =Atten_to_Te(Y7,$C7) -> 2.079500656 | AA7: =Y7+OFFSET(AA7,-1,0) -> -0.03 | AB7: =OFFSET(AB7,-1,0)+Z7*dbToAbs(-1*OFFSET(AA7,-1,0)) -> 2.079500656 | AC7: =G_Lookup($A7,$E$3, AC$4,$D7) -> -0.03175 | AD7: =Atten_to_Te(AC7,$C7) -> 2.20124884 | AE7: =AC7+OFFSET(AE7,-1,0) -> -0.03175 | AF7: =OFFSET(AF7,-1,0)+AD7*dbToAbs(-1*OFFSET(AE7,-1,0)) -> 2.20124884 | AG7: =G_Lookup($A7,$E$3, AG$4,$D7) -> -0.034 | AH7: =Atten_to_Te(AG7,$C7) -> 2.357854325 | AI7: =AG7+OFFSET(AI7,-1,0) -> -0.034 | AJ7: =OFFSET(AJ7,-1,0)+AH7*dbToAbs(-1*OFFSET(AI7,-1,0)) -> 2.357854325 | AK7: =G_Lookup($A7,$E$3, AK$4,$D7) -> -0.03625 | AL7: =Atten_to_Te(AK7,$C7) -> 2.514540964 | AM7: =AK7+OFFSET(AM7,-1,0) -> -0.03625 | AN7: =OFFSET(AN7,-1,0)+AL7*dbToAbs(-1*OFFSET(AM7,-1,0)) -> 2.514540964 | AO7: =G_Lookup($A7,$E$3, AO$4,$D7) -> -0.03875 | AP7: =Atten_to_Te(AO7,$C7) -> 2.688732464 | AQ7: =AO7+OFFSET(AQ7,-1,0) -> -0.03875 | AR7: =OFFSET(AR7,-1,0)+AP7*dbToAbs(-1*OFFSET(AQ7,-1,0)) -> 2.688732464 | AS7: =G_Lookup($A7,$E$3, AS$4,$D7) -> -0.040625 | AT7: =Atten_to_Te(AS7,$C7) -> 2.819441908 | AU7: =AS7+OFFSET(AU7,-1,0) -> -0.040625 | AV7: =OFFSET(AV7,-1,0)+AT7*dbToAbs(-1*OFFSET(AU7,-1,0)) -> 2.819441908
A8: Vacuum_Window | B8: 5 | C8: 300 | E8: =G_Lookup($A8,$E$3, E$4,$D8) -> -0.03 | F8: =Atten_to_Te(E8,$C8) -> 2.079500656 | G8: =E8+OFFSET(G8,-1,0) -> -0.06 | H8: =OFFSET(H8,-1,0)+F8*dbToAbs(-1*OFFSET(G8,-1,0)) -> 4.173415721 | I8: =G_Lookup($A8,$E$3, I$4,$D8) -> -0.03 | J8: =Atten_to_Te(I8,$C8) -> 2.079500656 | K8: =I8+OFFSET(K8,-1,0) -> -0.06 | L8: =OFFSET(L8,-1,0)+J8*dbToAbs(-1*OFFSET(K8,-1,0)) -> 4.173415721 | M8: =G_Lookup($A8,$E$3, M$4,$D8) -> -0.03 | N8: =Atten_to_Te(M8,$C8) -> 2.079500656 | O8: =M8+OFFSET(O8,-1,0) -> -0.06 | P8: =OFFSET(P8,-1,0)+N8*dbToAbs(-1*OFFSET(O8,-1,0)) -> 4.173415721 | Q8: =G_Lookup($A8,$E$3, Q$4,$D8) -> -0.03 | R8: =Atten_to_Te(Q8,$C8) -> 2.079500656 | S8: =Q8+OFFSET(S8,-1,0) -> -0.06 | T8: =OFFSET(T8,-1,0)+R8*dbToAbs(-1*OFFSET(S8,-1,0)) -> 4.173415721 | U8: =G_Lookup($A8,$E$3, U$4,$D8) -> -0.03 | V8: =Atten_to_Te(U8,$C8) -> 2.079500656 | W8: =U8+OFFSET(W8,-1,0) -> -0.06 | X8: =OFFSET(X8,-1,0)+V8*dbToAbs(-1*OFFSET(W8,-1,0)) -> 4.173415721 | Y8: =G_Lookup($A8,$E$3, Y$4,$D8) -> -0.03 | Z8: =Atten_to_Te(Y8,$C8) -> 2.079500656 | AA8: =Y8+OFFSET(AA8,-1,0) -> -0.06 | AB8: =OFFSET(AB8,-1,0)+Z8*dbToAbs(-1*OFFSET(AA8,-1,0)) -> 4.173415721 | AC8: =G_Lookup($A8,$E$3, AC$4,$D8) -> -0.03 | AD8: =Atten_to_Te(AC8,$C8) -> 2.079500656 | AE8: =AC8+OFFSET(AE8,-1,0) -> -0.06175 | AF8: =OFFSET(AF8,-1,0)+AD8*dbToAbs(-1*OFFSET(AE8,-1,0)) -> 4.296007824 | AG8: =G_Lookup($A8,$E$3, AG$4,$D8) -> -0.03 | AH8: =Atten_to_Te(AG8,$C8) -> 2.079500656 | AI8: =AG8+OFFSET(AI8,-1,0) -> -0.064 | AJ8: =OFFSET(AJ8,-1,0)+AH8*dbToAbs(-1*OFFSET(AI8,-1,0)) -> 4.453698845 | AK8: =G_Lookup($A8,$E$3, AK$4,$D8) -> -0.03 | AL8: =Atten_to_Te(AK8,$C8) -> 2.079500656 | AM8: =AK8+OFFSET(AM8,-1,0) -> -0.06625 | AN8: =OFFSET(AN8,-1,0)+AL8*dbToAbs(-1*OFFSET(AM8,-1,0)) -> 4.611471585 | AO8: =G_Lookup($A8,$E$3, AO$4,$D8) -> -0.03 | AP8: =Atten_to_Te(AO8,$C8) -> 2.079500656 | AQ8: =AO8+OFFSET(AQ8,-1,0) -> -0.06875 | AR8: =OFFSET(AR8,-1,0)+AP8*dbToAbs(-1*OFFSET(AQ8,-1,0)) -> 4.786870522 | AS8: =G_Lookup($A8,$E$3, AS$4,$D8) -> -0.03 | AT8: =Atten_to_Te(AS8,$C8) -> 2.079500656 | AU8: =AS8+OFFSET(AU8,-1,0) -> -0.070625 | AV8: =OFFSET(AV8,-1,0)+AT8*dbToAbs(-1*OFFSET(AU8,-1,0)) -> 4.918486001
A9: IR_Filter | B9: 4 | C9: 190 | E9: -0.03 | F9: 1.317017082 | G9: -0.09 | H9: =OFFSET(H9,-1,0)+F9*dbToAbs(-1*OFFSET(G9,-1,0)) -> 5.508754335 | I9: -0.03 | J9: 1.317017082 | K9: -0.09 | L9: 5.508754335 | M9: -0.03 | N9: 1.317017082 | O9: -0.09 | P9: 5.508754335 | Q9: -0.03 | R9: 1.317017082 | S9: -0.09 | T9: 5.508754335 | U9: -0.03 | V9: 1.317017082 | W9: -0.09 | X9: 5.508754335 | Y9: -0.03 | Z9: 1.317017082 | AA9: -0.09 | AB9: 5.508754335 | AC9: -0.03 | AD9: 1.317017082 | AE9: -0.09175 | AF9: 5.631884625 | AG9: -0.03 | AH9: 1.317017082 | AI9: -0.094 | AJ9: 5.790267919 | AK9: -0.03 | AL9: 1.317017082 | AM9: -0.09625 | AN9: 5.94873329 | AO9: -0.03 | AP9: 1.317017082 | AQ9: -0.09875 | AR9: 6.124902238 | AS9: -0.03 | AT9: 1.317017082 | AU9: -0.100625 | AV9: 6.257095517
A10: Feed_Horn | B10: 1 | C10: 20 | E10: -0.05 | F10: 0.2315890852 | G10: -0.14 | H10: 5.745192777 | I10: -0.05 | J10: 0.2315890852 | K10: -0.14 | L10: 5.745192777 | M10: -0.05 | N10: 0.2315890852 | O10: -0.14 | P10: 5.745192777 | Q10: -0.05 | R10: 0.2315890852 | S10: -0.14 | T10: 5.745192777 | U10: -0.05 | V10: 0.2315890852 | W10: -0.14 | X10: 5.745192777 | Y10: -0.05 | Z10: 0.2315890852 | AA10: -0.14 | AB10: 5.745192777 | AC10: -0.05 | AD10: 0.2315890852 | AE10: -0.14175 | AF10: 5.868418358 | AG10: -0.05 | AH10: 0.2315890852 | AI10: -0.144 | AJ10: 6.026924228 | AK10: -0.05 | AL10: 0.2315890852 | AM10: -0.14625 | AN10: 6.185512238 | AO10: -0.05 | AP10: 0.2315890852 | AQ10: -0.14875 | AR10: 6.361817527 | AS10: -0.05 | AT10: 0.2315890852 | AU10: -0.150625 | AV10: 6.494113112
A11: OMT_Band3 | B11: 1 | C11: 20 | E11: =G_Lookup($A11,$E$3, E$4,$D11) -> -0.1027859797 | F11: 0.4789928151 | G11: -0.2427859797 | H11: 6.23987807 | I11: -0.09063483932 | J11: 0.4217746529 | K11: -0.2306348393 | L11: 6.18078536 | M11: -0.08227643961 | N11: 0.3825088528 | O11: -0.2222764396 | P11: 6.140233157 | Q11: -0.07585649488 | R11: 0.3524007313 | S11: -0.2158564949 | T11: 6.109138651 | U11: -0.0713447199 | V11: 0.3312681185 | W11: -0.2113447199 | X11: 6.087313704 | Y11: -0.06784496074 | Z11: 0.3148907795 | AA11: -0.2078449607 | AB11: 6.070399821 | AC11: -0.06529916662 | AD11: 0.3029858679 | AE11: -0.2070491666 | AF11: 6.181456583 | AG11: -0.06311648911 | AH11: 0.2927845555 | AI11: -0.2071164891 | AJ11: 6.329579445 | AK11: -0.06149939385 | AL11: 0.2852299449 | AM11: -0.2077493939 | AN11: 6.480510949 | AO11: -0.06018656788 | AP11: 0.2790988626 | AQ11: -0.2089365679 | AR11: 6.650641386 | AS11: -0.05921489038 | AT11: 0.2745621851 | AU11: -0.2098398904 | AV11: 6.778364911
A12: Cal_Coupler | B12: 1 | C12: 20 | E12: -0.2 | F12: 0.942570961 | G12: -0.4427859797 | H12: 7.23664278 | I12: =G_Lookup($A12,$E$3, I$4,$D12) -> -0.2 | J12: 0.942570961 | K12: -0.4306348393 | L12: 7.174765117 | M12: =G_Lookup($A12,$E$3, M$4,$D12) -> -0.2 | N12: 0.942570961 | O12: -0.4222764396 | P12: 7.132301747 | Q12: =G_Lookup($A12,$E$3, Q$4,$D12) -> -0.2 | R12: 0.942570961 | S12: -0.4158564949 | T12: 7.099741803 | U12: =G_Lookup($A12,$E$3, U$4,$D12) -> -0.2 | V12: 0.942570961 | W12: -0.4113447199 | X12: 7.076888278 | Y12: =G_Lookup($A12,$E$3, Y$4,$D12) -> -0.2 | Z12: 0.942570961 | AA12: -0.4078449607 | AB12: 7.059177267 | AC12: =G_Lookup($A12,$E$3, AC$4,$D12) -> -0.2 | AD12: 0.942570961 | AE12: -0.4070491666 | AF12: 7.170052865 | AG12: =G_Lookup($A12,$E$3, AG$4,$D12) -> -0.2 | AH12: 0.942570961 | AI12: -0.4071164891 | AJ12: 7.318191051 | AK12: =G_Lookup($A12,$E$3, AK$4,$D12) -> -0.2 | AL12: 0.942570961 | AM12: -0.4077493939 | AN12: 7.469266637 | AO12: =G_Lookup($A12,$E$3, AO$4,$D12) -> -0.2 | AP12: 0.942570961 | AQ12: -0.4089365679 | AR12: 7.639667395 | AS12: =G_Lookup($A12,$E$3, AS$4,$D12) -> -0.2 | AT12: 0.942570961 | AU12: -0.4098398904 | AV12: 7.767596657
A13: WG_Band3 | B13: 1 | C13: 20 | D13: 0.1 | E13: -0.03651366951 | F13: =Atten_to_Te(E13,$C13) -> 0.168860522 | G13: -0.4792996492 | H13: 7.423627761 | I13: =G_Lookup($A13,$E$3, I$4,$D13) -> -0.032197101 | J13: 0.1488241134 | K13: -0.4628319403 | L13: 7.339102659 | M13: =G_Lookup($A13,$E$3, M$4,$D13) -> -0.02922786487 | N13: 0.1350532339 | O13: -0.4515043045 | P13: 7.281146193 | Q13: =G_Lookup($A13,$E$3, Q$4,$D13) -> -0.02694724507 | R13: 0.1244824466 | S13: -0.44280374 | T13: 7.236733348 | U13: =G_Lookup($A13,$E$3, U$4,$D13) -> -0.02534448309 | V13: 0.117056885 | W13: -0.436689203 | X13: 7.205574317 | Y13: =G_Lookup($A13,$E$3, Y$4,$D13) -> -0.02410122939 | Z13: 0.1112988045 | AA13: -0.4319461901 | AB13: 7.181434622 | AC13: =G_Lookup($A13,$E$3, AC$4,$D13) -> -0.02319686203 | AD13: 0.1071112982 | AE13: -0.4302460287 | AF13: 7.287688851 | AG13: =G_Lookup($A13,$E$3, AG$4,$D13) -> -0.02242148814 | AH13: 0.1035217667 | AI13: -0.4295379772 | AJ13: 7.431886563 | AK13: =G_Lookup($A13,$E$3, AK$4,$D13) -> -0.02184703156 | AL13: 0.100862779 | AM13: -0.4295964254 | AN13: 7.580057991 | AO13: =G_Lookup($A13,$E$3, AO$4,$D13) -> -0.02138066355 | AP13: =Atten_to_Te(AO13,$C13) -> 0.09870435968 | AQ13: -0.4303172314 | AR13: 7.748117504 | AS13: =G_Lookup($A13,$E$3, AS$4,$D13) -> -0.02103548504 | AT13: =Atten_to_Te(AS13,$C13) -> 0.09710697233 | AU13: -0.4308753754 | AV13: 7.874313852
A14: Cal_Inj_Band3 | B14: 4 | C14: 190 | E14: 0 | F14: =T_LNA($A14,E$4,$C14) -> 0.19 | G14: =E14+OFFSET(G14,-1,0) -> -0.4792996492 | H14: =OFFSET(H14,-1,0)+F14*dbToAbs(-1*OFFSET(G14,-1,0)) -> 7.635797561 | I14: =G_Lookup($A14,$E$3, I$4,$D14) -> 0 | J14: =T_LNA($A14,I$4,$C14) -> 0.19 | K14: -0.4628319403 | L14: 7.55046947 | M14: =G_Lookup($A14,$E$3, M$4,$D14) -> 0 | N14: =T_LNA($A14,M$4,$C14) -> 0.19 | O14: =M14+OFFSET(O14,-1,0) -> -0.4515043045 | P14: =OFFSET(P14,-1,0)+N14*dbToAbs(-1*OFFSET(O14,-1,0)) -> 7.491962417 | Q14: =G_Lookup($A14,$E$3, Q$4,$D14) -> 0 | R14: =T_LNA($A14,Q$4,$C14) -> 0.19 | S14: =Q14+OFFSET(S14,-1,0) -> -0.44280374 | T14: =OFFSET(T14,-1,0)+R14*dbToAbs(-1*OFFSET(S14,-1,0)) -> 7.447127651 | U14: =G_Lookup($A14,$E$3, U$4,$D14) -> 0 | V14: =T_LNA($A14,U$4,$C14) -> 0.19 | W14: =U14+OFFSET(W14,-1,0) -> -0.436689203 | X14: =OFFSET(X14,-1,0)+V14*dbToAbs(-1*OFFSET(W14,-1,0)) -> 7.415672609 | Y14: =G_Lookup($A14,$E$3, Y$4,$D14) -> 0 | Z14: =T_LNA($A14,Y$4,$C14) -> 0.19 | AA14: =Y14+OFFSET(AA14,-1,0) -> -0.4319461901 | AB14: =OFFSET(AB14,-1,0)+Z14*dbToAbs(-1*OFFSET(AA14,-1,0)) -> 7.391303587 | AC14: =G_Lookup($A14,$E$3, AC$4,$D14) -> 0 | AD14: =T_LNA($A14,AC$4,$C14) -> 0.19 | AE14: =AC14+OFFSET(AE14,-1,0) -> -0.4302460287 | AF14: =OFFSET(AF14,-1,0)+AD14*dbToAbs(-1*OFFSET(AE14,-1,0)) -> 7.497475673 | AG14: =G_Lookup($A14,$E$3, AG$4,$D14) -> 0 | AH14: =T_LNA($A14,AG$4,$C14) -> 0.19 | AI14: =AG14+OFFSET(AI14,-1,0) -> -0.4295379772 | AJ14: =OFFSET(AJ14,-1,0)+AH14*dbToAbs(-1*OFFSET(AI14,-1,0)) -> 7.641639185 | AK14: =G_Lookup($A14,$E$3, AK$4,$D14) -> 0 | AL14: =T_LNA($A14,AK$4,$C14) -> 0.19 | AM14: =AK14+OFFSET(AM14,-1,0) -> -0.4295964254 | AN14: =OFFSET(AN14,-1,0)+AL14*dbToAbs(-1*OFFSET(AM14,-1,0)) -> 7.789813436 | AO14: =G_Lookup($A14,$E$3, AO$4,$D14) -> 0 | AP14: =T_LNA($A14,AO$4,$C14) -> 0.19 | AQ14: =AO14+OFFSET(AQ14,-1,0) -> -0.4303172314 | AR14: =OFFSET(AR14,-1,0)+AP14*dbToAbs(-1*OFFSET(AQ14,-1,0)) -> 7.957907765 | AS14: =G_Lookup($A14,$E$3, AS$4,$D14) -> 0 | AT14: =T_LNA($A14,AS$4,$C14) -> 0.19 | AU14: =AS14+OFFSET(AU14,-1,0) -> -0.4308753754 | AV14: =OFFSET(AV14,-1,0)+AT14*dbToAbs(-1*OFFSET(AU14,-1,0)) -> 8.084131077
A15: LNA_Band3 | B15: 1 | C15: 20 | E15: 35.076 | F15: =T_LNA($A15,E$4) -> 5 | G15: 34.59670035 | H15: 13.21921334 | I15: =G_Lookup($A15,$E$3, I$4,$D15) -> 34.648 | J15: =T_LNA($A15,I$4) -> 5 | K15: 34.18516806 | L15: 13.11275397 | M15: =G_Lookup($A15,$E$3, M$4,$D15) -> 34.28 | N15: =T_LNA($A15,M$4) -> 5.44 | O15: 33.8284957 | P15: 13.52796379 | Q15: =G_Lookup($A15,$E$3, Q$4,$D15) -> 34.88 | R15: =T_LNA($A15,Q$4) -> 6.35 | S15: 34.43719626 | T15: 14.47872671 | U15: =G_Lookup($A15,$E$3, U$4,$D15) -> 34.96 | V15: =T_LNA($A15,U$4) -> 7.1 | W15: 34.5233108 | X15: 15.26671404 | Y15: =G_Lookup($A15,$E$3, Y$4,$D15) -> 34.64 | Z15: =T_LNA($A15,Y$4) -> 7.9 | AA15: 34.20805381 | AB15: 16.11743422 | AC15: =G_Lookup($A15,$E$3, AC$4,$D15) -> 34.18 | AD15: =T_LNA($A15,AC$4) -> 7.65 | AE15: 33.74975397 | AF15: 15.94415561 | AG15: =G_Lookup($A15,$E$3, AG$4,$D15) -> 34.36 | AH15: =T_LNA($A15,AG$4) -> 6.6 | AI15: 33.93046202 | AJ15: 14.9277829 | AK15: =G_Lookup($A15,$E$3, AK$4,$D15) -> 34.8 | AL15: =T_LNA($A15,AK$4) -> 6 | AM15: 34.37040357 | AN15: 14.4136696 | AO15: =G_Lookup($A15,$E$3, AO$4,$D15) -> 34.8 | AP15: =T_LNA($A15,AO$4) -> 7 | AQ15: 34.36968277 | AR15: 15.68702266 | AS15: =G_Lookup($A15,$E$3, AS$4,$D15) -> 34.3 | AT15: =T_LNA($A15,AS$4) -> 8.75 | AU15: 33.86912462 | AV15: 17.74676643
A16: Coax_086SS | B16: 4 | C16: 190 | D16: 0.3 | E16: -1.503816978 | F16: =Atten_to_Te(E16,$C16) -> 78.61811599 | G16: 33.09288337 | H16: 13.24649385 | I16: =G_Lookup($A16,$E$3, I$4,$D16) -> -1.541336328 | J16: =Atten_to_Te(I16,$C16) -> 80.94880118 | K16: 32.64383173 | L16: 13.14363513 | M16: =G_Lookup($A16,$E$3, M$4,$D16) -> -1.580642315 | N16: =Atten_to_Te(M16,$C16) -> 83.4121641 | O16: 32.24785338 | P16: 13.56250837 | Q16: =G_Lookup($A16,$E$3, Q$4,$D16) -> -1.623867594 | R16: =Atten_to_Te(Q16,$C16) -> 86.1470196 | S16: 32.81332867 | T16: 14.50973806 | U16: =G_Lookup($A16,$E$3, U$4,$D16) -> -1.665446457 | V16: =Atten_to_Te(U16,$C16) -> 88.80351616 | W16: 32.85786434 | X16: 15.29805404 | Y16: =G_Lookup($A16,$E$3, Y$4,$D16) -> -1.709797244 | Z16: =Atten_to_Te(Y16,$C16) -> 91.66528594 | AA16: 32.49825657 | AB16: 16.15221982 | AC16: =G_Lookup($A16,$E$3, AC$4,$D16) -> -1.751793351 | AD16: =Atten_to_Te(AC16,$C16) -> 94.40218983 | AE16: 31.99796062 | AF16: 15.98396694 | AG16: =G_Lookup($A16,$E$3, AG$4,$D16) -> -1.798660541 | AH16: =Atten_to_Te(AG16,$C16) -> 97.48795595 | AI16: 32.13180148 | AJ16: 14.96721998 | AK16: =G_Lookup($A16,$E$3, AK$4,$D16) -> -1.844119657 | AL16: =Atten_to_Te(AK16,$C16) -> 100.512997 | AM16: 32.52628392 | AN16: 14.45041321 | AO16: =G_Lookup($A16,$E$3, AO$4,$D16) -> -1.893378165 | AP16: =Atten_to_Te(AO16,$C16) -> 103.8268082 | AQ16: 32.4763046 | AR16: 15.72498397 | AS16: =G_Lookup($A16,$E$3, AS$4,$D16) -> -1.941435328 | AT16: =Atten_to_Te(AS16,$C16) -> 107.0962251 | AU16: 31.9276893 | AV16: 17.7907066
A17: Cascaded Values: | G17: =G16 -> 33.09288337 | H17: =H16 -> 13.24649385 | K17: =K16 -> 32.64383173 | L17: =L16 -> 13.14363513 | O17: =O16 -> 32.24785338 | P17: =P16 -> 13.56250837 | S17: =S16 -> 32.81332867 | T17: =T16 -> 14.50973806 | W17: =W16 -> 32.85786434 | X17: =X16 -> 15.29805404 | AA17: =AA16 -> 32.49825657 | AB17: =AB16 -> 16.15221982 | AE17: =AE16 -> 31.99796062 | AF17: =AF16 -> 15.98396694 | AI17: =AI16 -> 32.13180148 | AJ17: =AJ16 -> 14.96721998 | AM17: =AM16 -> 32.52628392 | AN17: =AN16 -> 14.45041321 | AQ17: =AQ16 -> 32.4763046 | AR17: =AR16 -> 15.72498397 | AU17: =AU16 -> 31.9276893 | AV17: =AV16 -> 17.7907066
A19: Band #: | B19: Temp. Stage | C19: Phys. Temp. | D19: T-Line Len. | E19: 4
A20: Frequency: | E20: =fLO_Band4 -> 20.5 | I20: 21.6 | M20: 22.7 | Q20: 23.9 | U20: 25.1 | Y20: 26.4 | AC20: 27.8 | AG20: 29.2 | AK20: 30.7 | AO20: 32.4 | AS20: =fHI_Band4 -> 34
A21: Component Type | B21: # | C21: K | D21: m | E21: G, dB | F21: Te, K | G21: Gcas | H21: Tcas | I21: G, dB | J21: Te, K | K21: Gcas | L21: Tcas | M21: G, dB | N21: Te, K | O21: Gcas | P21: Tcas | Q21: G, dB | R21: Te, K | S21: Gcas | T21: Tcas | U21: G, dB | V21: Te, K | W21: Gcas | X21: Tcas | Y21: G, dB | Z21: Te, K | AA21: Gcas | AB21: Tcas | AC21: G, dB | AD21: Te, K | AE21: Gcas | AF21: Tcas | AG21: G, dB | AH21: Te, K | AI21: Gcas | AJ21: Tcas | AK21: G, dB | AL21: Te, K | AM21: Gcas | AN21: Tcas | AO21: G, dB | AP21: Te, K | AQ21: Gcas | AR21: Tcas | AS21: G, dB | AT21: Te, K | AU21: Gcas | AV21: Tcas
A22: Lossless Input | B22: 1 | C22: =INDEX(Stage_Temp_Table,$B22) -> 20 | E22: 0 | F22: 0 | G22: 0 | H22: 0 | I22: 0 | J22: 0 | K22: 0 | L22: 0 | M22: 0 | N22: 0 | O22: 0 | P22: 0 | Q22: 0 | R22: 0 | S22: 0 | T22: 0 | U22: 0 | V22: 0 | W22: 0 | X22: 0 | Y22: 0 | Z22: 0 | AA22: 0 | AB22: 0 | AC22: 0 | AD22: 0 | AE22: 0 | AF22: 0 | AG22: 0 | AH22: 0 | AI22: 0 | AJ22: 0 | AK22: 0 | AL22: 0 | AM22: 0 | AN22: 0 | AO22: 0 | AP22: 0 | AQ22: 0 | AR22: 0 | AS22: 0 | AT22: 0 | AU22: 0 | AV22: 0
A23: Weather_Radome | B23: 5 | C23: 300 | E23: =G_Lookup($A23,$E$19, E$20,$D23) -> -0.040625 | F23: =Atten_to_Te(E23,$C23) -> 2.819441908 | G23: =E23+OFFSET(G23,-1,0) -> -0.040625 | H23: =OFFSET(H23,-1,0)+F23*dbToAbs(-1*OFFSET(G23,-1,0)) -> 2.819441908 | I23: =G_Lookup($A23,$E$19, I$20,$D23) -> -0.042 | J23: =Atten_to_Te(I23,$C23) -> 2.915331373 | K23: =I23+OFFSET(K23,-1,0) -> -0.042 | L23: =OFFSET(L23,-1,0)+J23*dbToAbs(-1*OFFSET(K23,-1,0)) -> 2.915331373 | M23: =G_Lookup($A23,$E$19, M$20,$D23) -> -0.043375 | N23: =Atten_to_Te(M23,$C23) -> 3.011251201 | O23: =M23+OFFSET(O23,-1,0) -> -0.043375 | P23: =OFFSET(P23,-1,0)+N23*dbToAbs(-1*OFFSET(O23,-1,0)) -> 3.011251201 | Q23: =G_Lookup($A23,$E$19, Q$20,$D23) -> -0.044875 | R23: =Atten_to_Te(Q23,$C23) -> 3.115925655 | S23: =Q23+OFFSET(S23,-1,0) -> -0.044875 | T23: =OFFSET(T23,-1,0)+R23*dbToAbs(-1*OFFSET(S23,-1,0)) -> 3.115925655 | U23: =G_Lookup($A23,$E$19, U$20,$D23) -> -0.046375 | V23: =Atten_to_Te(U23,$C23) -> 3.220636269 | W23: =U23+OFFSET(W23,-1,0) -> -0.046375 | X23: =OFFSET(X23,-1,0)+V23*dbToAbs(-1*OFFSET(W23,-1,0)) -> 3.220636269 | Y23: =G_Lookup($A23,$E$19, Y$20,$D23) -> -0.048 | Z23: =Atten_to_Te(Y23,$C23) -> 3.334113586 | AA23: =Y23+OFFSET(AA23,-1,0) -> -0.048 | AB23: =OFFSET(AB23,-1,0)+Z23*dbToAbs(-1*OFFSET(AA23,-1,0)) -> 3.334113586 | AC23: =G_Lookup($A23,$E$19, AC$20,$D23) -> -0.04975 | AD23: =Atten_to_Te(AC23,$C23) -> 3.456367422 | AE23: =AC23+OFFSET(AE23,-1,0) -> -0.04975 | AF23: =OFFSET(AF23,-1,0)+AD23*dbToAbs(-1*OFFSET(AE23,-1,0)) -> 3.456367422 | AG23: =G_Lookup($A23,$E$19, AG$20,$D23) -> -0.05 | AH23: =Atten_to_Te(AG23,$C23) -> 3.473836278 | AI23: =AG23+OFFSET(AI23,-1,0) -> -0.05 | AJ23: =OFFSET(AJ23,-1,0)+AH23*dbToAbs(-1*OFFSET(AI23,-1,0)) -> 3.473836278 | AK23: =G_Lookup($A23,$E$19, AK$20,$D23) -> -0.05 | AL23: =Atten_to_Te(AK23,$C23) -> 3.473836278 | AM23: =AK23+OFFSET(AM23,-1,0) -> -0.05 | AN23: =OFFSET(AN23,-1,0)+AL23*dbToAbs(-1*OFFSET(AM23,-1,0)) -> 3.473836278 | AO23: =G_Lookup($A23,$E$19, AO$20,$D23) -> -0.05 | AP23: =Atten_to_Te(AO23,$C23) -> 3.473836278 | AQ23: =AO23+OFFSET(AQ23,-1,0) -> -0.05 | AR23: =OFFSET(AR23,-1,0)+AP23*dbToAbs(-1*OFFSET(AQ23,-1,0)) -> 3.473836278 | AS23: =G_Lookup($A23,$E$19, AS$20,$D23) -> -0.05 | AT23: =Atten_to_Te(AS23,$C23) -> 3.473836278 | AU23: =AS23+OFFSET(AU23,-1,0) -> -0.05 | AV23: =OFFSET(AV23,-1,0)+AT23*dbToAbs(-1*OFFSET(AU23,-1,0)) -> 3.473836278
A24: Vacuum_Window | B24: 5 | C24: 300 | E24: =G_Lookup($A24,$E$19, E$20,$D24) -> -0.03 | F24: =Atten_to_Te(E24,$C24) -> 2.079500656 | G24: =E24+OFFSET(G24,-1,0) -> -0.070625 | H24: =OFFSET(H24,-1,0)+F24*dbToAbs(-1*OFFSET(G24,-1,0)) -> 4.918486001 | I24: =G_Lookup($A24,$E$19, I$20,$D24) -> -0.03 | J24: =Atten_to_Te(I24,$C24) -> 2.079500656 | K24: =I24+OFFSET(K24,-1,0) -> -0.072 | L24: =OFFSET(L24,-1,0)+J24*dbToAbs(-1*OFFSET(K24,-1,0)) -> 5.01504014 | M24: =G_Lookup($A24,$E$19, M$20,$D24) -> -0.03 | N24: =Atten_to_Te(M24,$C24) -> 2.079500656 | O24: =M24+OFFSET(O24,-1,0) -> -0.073375 | P24: =OFFSET(P24,-1,0)+N24*dbToAbs(-1*OFFSET(O24,-1,0)) -> 5.111624853 | Q24: =G_Lookup($A24,$E$19, Q$20,$D24) -> -0.03 | R24: =Atten_to_Te(Q24,$C24) -> 2.079500656 | S24: =Q24+OFFSET(S24,-1,0) -> -0.074875 | T24: =OFFSET(T24,-1,0)+R24*dbToAbs(-1*OFFSET(S24,-1,0)) -> 5.217024876 | U24: =G_Lookup($A24,$E$19, U$20,$D24) -> -0.03 | V24: =Atten_to_Te(U24,$C24) -> 2.079500656 | W24: =U24+OFFSET(W24,-1,0) -> -0.076375 | X24: =OFFSET(X24,-1,0)+V24*dbToAbs(-1*OFFSET(W24,-1,0)) -> 5.322461309 | Y24: =G_Lookup($A24,$E$19, Y$20,$D24) -> -0.03 | Z24: =Atten_to_Te(Y24,$C24) -> 2.079500656 | AA24: =Y24+OFFSET(AA24,-1,0) -> -0.078 | AB24: =OFFSET(AB24,-1,0)+Z24*dbToAbs(-1*OFFSET(AA24,-1,0)) -> 5.436725213 | AC24: =G_Lookup($A24,$E$19, AC$20,$D24) -> -0.03 | AD24: =Atten_to_Te(AC24,$C24) -> 2.079500656 | AE24: =AC24+OFFSET(AE24,-1,0) -> -0.07975 | AF24: =OFFSET(AF24,-1,0)+AD24*dbToAbs(-1*OFFSET(AE24,-1,0)) -> 5.559826472 | AG24: =G_Lookup($A24,$E$19, AG$20,$D24) -> -0.03 | AH24: =Atten_to_Te(AG24,$C24) -> 2.079500656 | AI24: =AG24+OFFSET(AI24,-1,0) -> -0.08 | AJ24: =OFFSET(AJ24,-1,0)+AH24*dbToAbs(-1*OFFSET(AI24,-1,0)) -> 5.577416416 | AK24: =G_Lookup($A24,$E$19, AK$20,$D24) -> -0.03 | AL24: =Atten_to_Te(AK24,$C24) -> 2.079500656 | AM24: =AK24+OFFSET(AM24,-1,0) -> -0.08 | AN24: =OFFSET(AN24,-1,0)+AL24*dbToAbs(-1*OFFSET(AM24,-1,0)) -> 5.577416416 | AO24: =G_Lookup($A24,$E$19, AO$20,$D24) -> -0.03 | AP24: =Atten_to_Te(AO24,$C24) -> 2.079500656 | AQ24: =AO24+OFFSET(AQ24,-1,0) -> -0.08 | AR24: =OFFSET(AR24,-1,0)+AP24*dbToAbs(-1*OFFSET(AQ24,-1,0)) -> 5.577416416 | AS24: =G_Lookup($A24,$E$19, AS$20,$D24) -> -0.03 | AT24: =Atten_to_Te(AS24,$C24) -> 2.079500656 | AU24: =AS24+OFFSET(AU24,-1,0) -> -0.08 | AV24: =OFFSET(AV24,-1,0)+AT24*dbToAbs(-1*OFFSET(AU24,-1,0)) -> 5.577416416
A25: IR_Filter | B25: 4 | C25: 190 | E25: -0.03 | F25: 1.317017082 | G25: -0.100625 | H25: =OFFSET(H25,-1,0)+F25*dbToAbs(-1*OFFSET(G25,-1,0)) -> 6.257095517 | I25: -0.03 | J25: 1.317017082 | K25: -0.102 | L25: 6.354073534 | M25: -0.03 | N25: 1.317017082 | O25: -0.103375 | P25: 6.451082259 | Q25: -0.03 | R25: 1.317017082 | S25: -0.104875 | T25: 6.556944994 | U25: -0.03 | V25: 1.317017082 | W25: -0.106375 | X25: 6.662844299 | Y25: -0.03 | Z25: 1.317017082 | AA25: -0.108 | AB25: 6.777609828 | AC25: -0.03 | AD25: 1.317017082 | AE25: -0.10975 | AF25: 6.901251509 | AG25: -0.03 | AH25: 1.317017082 | AI25: -0.11 | AJ25: 6.918918674 | AK25: -0.03 | AL25: 1.317017082 | AM25: -0.11 | AN25: 6.918918674 | AO25: -0.03 | AP25: 1.317017082 | AQ25: -0.11 | AR25: 6.918918674 | AS25: -0.03 | AT25: 1.317017082 | AU25: -0.11 | AV25: 6.918918674
A26: Feed_Horn | B26: 1 | C26: 20 | E26: -0.05 | F26: 0.2315890852 | G26: -0.150625 | H26: 6.494113112 | I26: -0.05 | J26: 0.2315890852 | K26: -0.152 | L26: 6.591166182 | M26: -0.05 | N26: 0.2315890852 | O26: -0.153375 | P26: 6.688249984 | Q26: -0.05 | R26: 0.2315890852 | S26: -0.154875 | T26: 6.794194647 | U26: -0.05 | V26: 0.2315890852 | W26: -0.156375 | X26: 6.90017591 | Y26: -0.05 | Z26: 0.2315890852 | AA26: -0.158 | AB26: 7.015030258 | AC26: -0.05 | AD26: 0.2315890852 | AE26: -0.15975 | AF26: 7.138767627 | AG26: -0.05 | AH26: 0.2315890852 | AI26: -0.16 | AJ26: 7.156448465 | AK26: -0.05 | AL26: 0.2315890852 | AM26: -0.16 | AN26: 7.156448465 | AO26: -0.05 | AP26: 0.2315890852 | AQ26: -0.16 | AR26: 7.156448465 | AS26: -0.05 | AT26: 0.2315890852 | AU26: -0.16 | AV26: 7.156448465
A27: OMT_Band4 | B27: 1 | C27: 20 | E27: -0.130069649 | F27: 0.6080529031 | G27: -0.280694649 | H27: 7.123624899 | I27: -0.1149830262 | J27: 0.5365883688 | K27: -0.2669830262 | L27: 7.146867279 | M27: -0.1046135139 | N27: 0.4876122972 | O27: -0.2579885139 | P27: 7.193390437 | Q27: -0.09682635264 | R27: 0.4509096911 | S27: -0.2517013526 | T27: 7.261474514 | U27: -0.09136435427 | V27: 0.42520533 | W27: -0.2477393543 | X27: 7.340970443 | Y27: -0.08708146728 | Z27: 0.4050725101 | AA27: -0.2450814673 | AB27: 7.435110999 | AC27: -0.08361135893 | AD27: 0.3887749207 | AE27: -0.2433613589 | AF27: 7.542109436 | AG27: -0.08104478173 | AH27: 0.3767291989 | AI27: -0.2410447817 | AJ27: 7.547315714 | AK27: -0.07900448343 | AL27: 0.3671585404 | AM27: -0.2390044834 | AN27: 7.537385884 | AO27: -0.07731706509 | AP27: 0.3592465722 | AQ27: -0.2373170651 | AR27: 7.529176992 | AS27: -0.0761658188 | AT27: 0.3538503718 | AU27: -0.2361658188 | AV27: 7.523578281
A28: Cal_Coupler | B28: 1 | C28: 20 | E28: -0.2 | F28: 0.942570961 | G28: -0.480694649 | H28: 8.129128246 | I28: -0.2 | J28: 0.942570961 | K28: -0.4669830262 | L28: 8.149201039 | M28: -0.2 | N28: 0.942570961 | O28: -0.4579885139 | P28: 8.193650449 | Q28: -0.2 | R28: 0.942570961 | S28: -0.4517013526 | T28: 8.260287525 | U28: -0.2 | V28: 0.942570961 | W28: -0.4477393543 | X28: 8.338872668 | Y28: -0.2 | Z28: 0.942570961 | AA28: -0.4450814673 | AB28: 8.432402694 | AC28: -0.2 | AD28: 0.942570961 | AE28: -0.4433613589 | AF28: 8.539006213 | AG28: -0.2075 | AH28: 0.9787687465 | AI28: -0.4485447817 | AJ28: 8.581944533 | AK28: -0.216875 | AL28: 1.024103974 | AM28: -0.4558794834 | AN28: 8.619428833 | AO28: -0.2275 | AP28: 1.075602343 | AQ28: -0.4648170651 | AR28: 8.665190371 | AS28: -0.2375 | AT28: 1.124186624 | AU28: -0.4736658188 | AV28: 8.71058997
A29: WG_Band4 | B29: 1 | C29: 20 | D29: 0.1 | E29: -0.07651155823 | F29: =Atten_to_Te(E29,$C29) -> 0.355470795 | G29: -0.5572062072 | H29: 8.52620402 | I29: -0.06763707424 | J29: 0.313918377 | K29: -0.5346201004 | L29: 8.498755657 | M29: -0.0615373611 | N29: 0.2854072849 | O29: -0.519525875 | P29: 8.510799857 | Q29: -0.05695667802 | R29: 0.2640227085 | S29: -0.5086580307 | T29: 8.55324961 | U29: -0.05374373781 | V29: 0.2490367902 | W29: -0.5014830921 | X29: 8.614954257 | Y29: -0.05122439252 | Z29: 0.2372937164 | AA29: -0.4963058598 | AB29: 8.695304994 | AC29: -0.04918315231 | AD29: 0.2277841617 | AE29: -0.4925445112 | AF29: 8.791272758 | AG29: -0.04767340102 | AH29: 0.2207535369 | AI29: -0.4962181828 | AJ29: 8.826716766 | AK29: -0.04647322555 | AL29: 0.2151662913 | AM29: -0.502352709 | AN29: 8.858409178 | AO29: -0.04548062652 | AP29: 0.2105465546 | AQ29: -0.5102976916 | AR29: 8.899521425 | AS29: -0.04480342282 | AT29: 0.2073953311 | AU29: -0.5184692416 | AV29: 8.941884603
A30: Cal_Inj_Band4 | B30: 4 | C30: 190 | E30: =G_Lookup($A30,$E$19, E$20,$D30) -> 0 | F30: =T_LNA($A30, E$20,$C30) -> 0.19 | G30: =E30+OFFSET(G30,-1,0) -> -0.5572062072 | H30: =OFFSET(H30,-1,0)+F30*dbToAbs(-1*OFFSET(G30,-1,0)) -> 8.742214201 | I30: =G_Lookup($A30,$E$19, I$20,$D30) -> 0 | J30: =T_LNA($A30, I$20,$C30) -> 0.19 | K30: -0.5346201004 | L30: 8.713645362 | M30: =G_Lookup($A30,$E$19, M$20,$D30) -> 0 | N30: =T_LNA($A30, M$20,$C30) -> 0.19 | O30: =M30+OFFSET(O30,-1,0) -> -0.519525875 | P30: =OFFSET(P30,-1,0)+N30*dbToAbs(-1*OFFSET(O30,-1,0)) -> 8.724943994 | Q30: =G_Lookup($A30,$E$19, Q$20,$D30) -> 0 | R30: =T_LNA($A30, Q$20,$C30) -> 0.19 | S30: =Q30+OFFSET(S30,-1,0) -> -0.5086580307 | T30: =OFFSET(T30,-1,0)+R30*dbToAbs(-1*OFFSET(S30,-1,0)) -> 8.76685854 | U30: =G_Lookup($A30,$E$19, U$20,$D30) -> 0 | V30: =T_LNA($A30, U$20,$C30) -> 0.19 | W30: =U30+OFFSET(W30,-1,0) -> -0.5014830921 | X30: =OFFSET(X30,-1,0)+V30*dbToAbs(-1*OFFSET(W30,-1,0)) -> 8.828210577 | Y30: =G_Lookup($A30,$E$19, Y$20,$D30) -> 0 | Z30: =T_LNA($A30, Y$20,$C30) -> 0.19 | AA30: =Y30+OFFSET(AA30,-1,0) -> -0.4963058598 | AB30: =OFFSET(AB30,-1,0)+Z30*dbToAbs(-1*OFFSET(AA30,-1,0)) -> 8.908307242 | AC30: =G_Lookup($A30,$E$19, AC$20,$D30) -> 0 | AD30: =T_LNA($A30, AC$20,$C30) -> 0.19 | AE30: =AC30+OFFSET(AE30,-1,0) -> -0.4925445112 | AF30: =OFFSET(AF30,-1,0)+AD30*dbToAbs(-1*OFFSET(AE30,-1,0)) -> 9.004090608 | AG30: =G_Lookup($A30,$E$19, AG$20,$D30) -> 0 | AH30: =T_LNA($A30, AG$20,$C30) -> 0.19 | AI30: =AG30+OFFSET(AI30,-1,0) -> -0.4962181828 | AJ30: =OFFSET(AJ30,-1,0)+AH30*dbToAbs(-1*OFFSET(AI30,-1,0)) -> 9.039714714 | AK30: =G_Lookup($A30,$E$19, AK$20,$D30) -> 0 | AL30: =T_LNA($A30, AK$20,$C30) -> 0.19 | AM30: =AK30+OFFSET(AM30,-1,0) -> -0.502352709 | AN30: =OFFSET(AN30,-1,0)+AL30*dbToAbs(-1*OFFSET(AM30,-1,0)) -> 9.071708203 | AO30: =G_Lookup($A30,$E$19, AO$20,$D30) -> 0 | AP30: =T_LNA($A30, AO$20,$C30) -> 0.19 | AQ30: =AO30+OFFSET(AQ30,-1,0) -> -0.5102976916 | AR30: =OFFSET(AR30,-1,0)+AP30*dbToAbs(-1*OFFSET(AQ30,-1,0)) -> 9.113211017 | AS30: =G_Lookup($A30,$E$19, AS$20,$D30) -> 0 | AT30: =T_LNA($A30, AS$20,$C30) -> 0.19 | AU30: =AS30+OFFSET(AU30,-1,0) -> -0.5184692416 | AV30: =OFFSET(AV30,-1,0)+AT30*dbToAbs(-1*OFFSET(AU30,-1,0)) -> 9.155976646
A31: LNA_Band4 | B31: 1 | C31: 20 | E31: =G_Lookup($A31,$E$19, E$20,$D31) -> 33.65 | F31: =T_LNA($A31, E$20) -> 5.65 | G31: 33.09279379 | H31: 15.16567486 | I31: =G_Lookup($A31,$E$19, I$20,$D31) -> 33.04 | J31: =T_LNA($A31, I$20) -> 5.48 | K31: 32.5053799 | L31: 14.91151687 | M31: =G_Lookup($A31,$E$19, M$20,$D31) -> 31.89 | N31: =T_LNA($A31, M$20) -> 5.88 | O31: 31.37047413 | P31: 15.3521415 | Q31: =G_Lookup($A31,$E$19, Q$20,$D31) -> 31.5 | R31: =T_LNA($A31, Q$20) -> 6 | S31: 30.99134197 | T31: 15.51240369 | U31: =G_Lookup($A31,$E$19, U$20,$D31) -> 30.9 | V31: =T_LNA($A31, U$20) -> 6.47 | W31: 30.39851691 | X31: 16.09014947 | Y31: =G_Lookup($A31,$E$19, Y$20,$D31) -> 29.16 | Z31: =T_LNA($A31, Y$20) -> 6 | AA31: 28.66369414 | AB31: 15.63469402 | AC31: =G_Lookup($A31,$E$19, AC$20,$D31) -> 27.556 | AD31: =T_LNA($A31, AC$20) -> 5.7 | AE31: 27.06345549 | AF31: 15.38862612 | AG31: =G_Lookup($A31,$E$19, AG$20,$D31) -> 28 | AH31: =T_LNA($A31, AG$20) -> 6.06 | AI31: 27.50378182 | AJ31: 15.83322821 | AK31: =G_Lookup($A31,$E$19, AK$20,$D31) -> 28 | AL31: =T_LNA($A31, AK$20) -> 6.44 | AM31: 27.49764729 | AN31: 16.30142255 | AO31: =G_Lookup($A31,$E$19, AO$20,$D31) -> 28 | AP31: =T_LNA($A31, AO$20) -> 6.94 | AQ31: 27.48970231 | AR31: 16.91850454 | AS31: =G_Lookup($A31,$E$19, AS$20,$D31) -> 28 | AT31: =T_LNA($A31, AS$20) -> 7.8 | AU31: 27.48153076 | AV31: 17.94501838
A32: Coax_086SS | B32: 4 | C32: 190 | D32: 0.3 | E32: -1.941435328 | F32: =Atten_to_Te(E32,$C32) -> 107.0962251 | G32: 31.15135847 | H32: 15.21821543 | I32: =G_Lookup($A32,$E$19, I$20,$D32) -> -1.992976726 | J32: =Atten_to_Te(I32,$C32) -> 110.6431226 | K32: 30.51240317 | L32: 14.97365905 | M32: =G_Lookup($A32,$E$19, M$20,$D32) -> -2.042735038 | N32: =Atten_to_Te(M32,$C32) -> 114.1074816 | O32: 29.32773909 | P32: 15.43536897 | Q32: =G_Lookup($A32,$E$19, Q$20,$D32) -> -2.0959053 | R32: =Atten_to_Te(Q32,$C32) -> 117.8535251 | S32: 28.89543667 | T32: 15.60620489 | U32: =G_Lookup($A32,$E$19, U$20,$D32) -> -2.148817319 | V32: =Atten_to_Te(U32,$C32) -> 121.6271823 | W32: 28.24969959 | X32: 16.20111266 | Y32: =G_Lookup($A32,$E$19, Y$20,$D32) -> -2.20306129 | Z32: =Atten_to_Te(Y32,$C32) -> 125.5438571 | AA32: 26.46063285 | AB32: 15.80546971 | AC32: =G_Lookup($A32,$E$19, AC$20,$D32) -> -2.261477873 | AD32: =Atten_to_Te(AC32,$C32) -> 129.8168845 | AE32: 24.80197762 | AF32: 15.6438878 | AG32: =G_Lookup($A32,$E$19, AG$20,$D32) -> -2.31728241 | AH32: =Atten_to_Te(AG32,$C32) -> 133.9528775 | AI32: 25.18649941 | AJ32: 16.07122651 | AK32: =G_Lookup($A32,$E$19, AK$20,$D32) -> -2.376606548 | AL32: =Atten_to_Te(AK32,$C32) -> 138.4083991 | AM32: 25.12104074 | AN32: 16.54768473 | AO32: =G_Lookup($A32,$E$19, AO$20,$D32) -> -2.440836313 | AP32: =Atten_to_Te(AO32,$C32) -> 143.3014724 | AQ32: 25.048866 | AR32: 17.17393955 | AS32: =G_Lookup($A32,$E$19, AS$20,$D32) -> -2.500681956 | AT32: =Atten_to_Te(AS32,$C32) -> 147.926147 | AU32: 24.9808488 | AV32: 18.20919348
A33: Cascaded Values: | G33: =G32 -> 31.15135847 | H33: =H32 -> 15.21821543 | K33: =K32 -> 30.51240317 | L33: =L32 -> 14.97365905 | O33: =O32 -> 29.32773909 | P33: =P32 -> 15.43536897 | S33: =S32 -> 28.89543667 | T33: =T32 -> 15.60620489 | W33: =W32 -> 28.24969959 | X33: =X32 -> 16.20111266 | AA33: =AA32 -> 26.46063285 | AB33: =AB32 -> 15.80546971 | AE33: =AE32 -> 24.80197762 | AF33: =AF32 -> 15.6438878 | AI33: =AI32 -> 25.18649941 | AJ33: =AJ32 -> 16.07122651 | AM33: =AM32 -> 25.12104074 | AN33: =AN32 -> 16.54768473 | AQ33: =AQ32 -> 25.048866 | AR33: =AR32 -> 17.17393955 | AU33: =AU32 -> 24.9808488 | AV33: =AV32 -> 18.20919348

Sheet Bands 5-6
A1: ngVLA Receiver Cascaded Noise & Gain (Trx, G): High Bands (5 & 6)
A3: Band #: | B3: Temp. Stage | C3: Phys. Temp. | D3: T-Line Len. | E3: 5
A4: Frequency: | E4: =fLO_Band5 -> 30.5 | I4: 32 | M4: 33.7 | Q4: 35.5 | U4: 37.3 | Y4: 39.3 | AC4: 41.3 | AG4: 43.3 | AK4: 45.7 | AO4: 48 | AS4: =fHI_Band5 -> 50.5
A5: Component Type | B5: # | C5: K | D5: m | E5: G, dB | F5: Te, K | G5: Gcas | H5: Tcas | I5: G, dB | J5: Te, K | K5: Gcas | L5: Tcas | M5: G, dB | N5: Te, K | O5: Gcas | P5: Tcas | Q5: G, dB | R5: Te, K | S5: Gcas | T5: Tcas | U5: G, dB | V5: Te, K | W5: Gcas | X5: Tcas | Y5: G, dB | Z5: Te, K | AA5: Gcas | AB5: Tcas | AC5: G, dB | AD5: Te, K | AE5: Gcas | AF5: Tcas | AG5: G, dB | AH5: Te, K | AI5: Gcas | AJ5: Tcas | AK5: G, dB | AL5: Te, K | AM5: Gcas | AN5: Tcas | AO5: G, dB | AP5: Te, K | AQ5: Gcas | AR5: Tcas | AS5: G, dB | AT5: Te, K | AU5: Gcas | AV5: Tcas
A6: Lossless Input | B6: 1 | C6: =INDEX(Stage_Temp_Table,$B6) -> 20 | E6: 0 | F6: 0 | G6: 0 | H6: 0 | I6: 0 | J6: 0 | K6: 0 | L6: 0 | M6: 0 | N6: 0 | O6: 0 | P6: 0 | Q6: 0 | R6: 0 | S6: 0 | T6: 0 | U6: 0 | V6: 0 | W6: 0 | X6: 0 | Y6: 0 | Z6: 0 | AA6: 0 | AB6: 0 | AC6: 0 | AD6: 0 | AE6: 0 | AF6: 0 | AG6: 0 | AH6: 0 | AI6: 0 | AJ6: 0 | AK6: 0 | AL6: 0 | AM6: 0 | AN6: 0 | AO6: 0 | AP6: 0 | AQ6: 0 | AR6: 0 | AS6: 0 | AT6: 0 | AU6: 0 | AV6: 0
A7: Weather_Radome | B7: 5 | C7: 300 | E7: =G_Lookup($A7,$E$3, E$4,$D7) -> -0.05 | F7: =Atten_to_Te(E7,$C7) -> 3.473836278 | G7: =E7+OFFSET(G7,-1,0) -> -0.05 | H7: =OFFSET(H7,-1,0)+F7*dbToAbs(-1*OFFSET(G7,-1,0)) -> 3.473836278 | I7: =G_Lookup($A7,$E$3, I$4,$D7) -> -0.05 | J7: =Atten_to_Te(I7,$C7) -> 3.473836278 | K7: =I7+OFFSET(K7,-1,0) -> -0.05 | L7: =OFFSET(L7,-1,0)+J7*dbToAbs(-1*OFFSET(K7,-1,0)) -> 3.473836278 | M7: =G_Lookup($A7,$E$3, M$4,$D7) -> -0.05 | N7: =Atten_to_Te(M7,$C7) -> 3.473836278 | O7: =M7+OFFSET(O7,-1,0) -> -0.05 | P7: =OFFSET(P7,-1,0)+N7*dbToAbs(-1*OFFSET(O7,-1,0)) -> 3.473836278 | Q7: =G_Lookup($A7,$E$3, Q$4,$D7) -> -0.05 | R7: =Atten_to_Te(Q7,$C7) -> 3.473836278 | S7: =Q7+OFFSET(S7,-1,0) -> -0.05 | T7: =OFFSET(T7,-1,0)+R7*dbToAbs(-1*OFFSET(S7,-1,0)) -> 3.473836278 | U7: =G_Lookup($A7,$E$3, U$4,$D7) -> -0.05 | V7: =Atten_to_Te(U7,$C7) -> 3.473836278 | W7: =U7+OFFSET(W7,-1,0) -> -0.05 | X7: =OFFSET(X7,-1,0)+V7*dbToAbs(-1*OFFSET(W7,-1,0)) -> 3.473836278 | Y7: =G_Lookup($A7,$E$3, Y$4,$D7) -> -0.05 | Z7: =Atten_to_Te(Y7,$C7) -> 3.473836278 | AA7: =Y7+OFFSET(AA7,-1,0) -> -0.05 | AB7: =OFFSET(AB7,-1,0)+Z7*dbToAbs(-1*OFFSET(AA7,-1,0)) -> 3.473836278 | AC7: =G_Lookup($A7,$E$3, AC$4,$D7) -> -0.05 | AD7: =Atten_to_Te(AC7,$C7) -> 3.473836278 | AE7: =AC7+OFFSET(AE7,-1,0) -> -0.05 | AF7: =OFFSET(AF7,-1,0)+AD7*dbToAbs(-1*OFFSET(AE7,-1,0)) -> 3.473836278 | AG7: =G_Lookup($A7,$E$3, AG$4,$D7) -> -0.05 | AH7: =Atten_to_Te(AG7,$C7) -> 3.473836278 | AI7: =AG7+OFFSET(AI7,-1,0) -> -0.05 | AJ7: =OFFSET(AJ7,-1,0)+AH7*dbToAbs(-1*OFFSET(AI7,-1,0)) -> 3.473836278 | AK7: =G_Lookup($A7,$E$3, AK$4,$D7) -> -0.05 | AL7: =Atten_to_Te(AK7,$C7) -> 3.473836278 | AM7: =AK7+OFFSET(AM7,-1,0) -> -0.05 | AN7: =OFFSET(AN7,-1,0)+AL7*dbToAbs(-1*OFFSET(AM7,-1,0)) -> 3.473836278 | AO7: =G_Lookup($A7,$E$3, AO$4,$D7) -> -0.05 | AP7: =Atten_to_Te(AO7,$C7) -> 3.473836278 | AQ7: =AO7+OFFSET(AQ7,-1,0) -> -0.05 | AR7: =OFFSET(AR7,-1,0)+AP7*dbToAbs(-1*OFFSET(AQ7,-1,0)) -> 3.473836278 | AS7: =G_Lookup($A7,$E$3, AS$4,$D7) -> -0.05 | AT7: =Atten_to_Te(AS7,$C7) -> 3.473836278 | AU7: =AS7+OFFSET(AU7,-1,0) -> -0.05 | AV7: =OFFSET(AV7,-1,0)+AT7*dbToAbs(-1*OFFSET(AU7,-1,0)) -> 3.473836278
A8: Vacuum_Window | B8: 5 | C8: 300 | E8: =G_Lookup($A8,$E$3, E$4,$D8) -> -0.03 | F8: =Atten_to_Te(E8,$C8) -> 2.079500656 | G8: =E8+OFFSET(G8,-1,0) -> -0.08 | H8: =OFFSET(H8,-1,0)+F8*dbToAbs(-1*OFFSET(G8,-1,0)) -> 5.577416416 | I8: =G_Lookup($A8,$E$3, I$4,$D8) -> -0.03 | J8: =Atten_to_Te(I8,$C8) -> 2.079500656 | K8: =I8+OFFSET(K8,-1,0) -> -0.08 | L8: =OFFSET(L8,-1,0)+J8*dbToAbs(-1*OFFSET(K8,-1,0)) -> 5.577416416 | M8: =G_Lookup($A8,$E$3, M$4,$D8) -> -0.03 | N8: =Atten_to_Te(M8,$C8) -> 2.079500656 | O8: =M8+OFFSET(O8,-1,0) -> -0.08 | P8: =OFFSET(P8,-1,0)+N8*dbToAbs(-1*OFFSET(O8,-1,0)) -> 5.577416416 | Q8: =G_Lookup($A8,$E$3, Q$4,$D8) -> -0.03 | R8: =Atten_to_Te(Q8,$C8) -> 2.079500656 | S8: =Q8+OFFSET(S8,-1,0) -> -0.08 | T8: =OFFSET(T8,-1,0)+R8*dbToAbs(-1*OFFSET(S8,-1,0)) -> 5.577416416 | U8: =G_Lookup($A8,$E$3, U$4,$D8) -> -0.03 | V8: =Atten_to_Te(U8,$C8) -> 2.079500656 | W8: =U8+OFFSET(W8,-1,0) -> -0.08 | X8: =OFFSET(X8,-1,0)+V8*dbToAbs(-1*OFFSET(W8,-1,0)) -> 5.577416416 | Y8: =G_Lookup($A8,$E$3, Y$4,$D8) -> -0.03 | Z8: =Atten_to_Te(Y8,$C8) -> 2.079500656 | AA8: =Y8+OFFSET(AA8,-1,0) -> -0.08 | AB8: =OFFSET(AB8,-1,0)+Z8*dbToAbs(-1*OFFSET(AA8,-1,0)) -> 5.577416416 | AC8: =G_Lookup($A8,$E$3, AC$4,$D8) -> -0.03 | AD8: =Atten_to_Te(AC8,$C8) -> 2.079500656 | AE8: =AC8+OFFSET(AE8,-1,0) -> -0.08 | AF8: =OFFSET(AF8,-1,0)+AD8*dbToAbs(-1*OFFSET(AE8,-1,0)) -> 5.577416416 | AG8: =G_Lookup($A8,$E$3, AG$4,$D8) -> -0.03 | AH8: =Atten_to_Te(AG8,$C8) -> 2.079500656 | AI8: =AG8+OFFSET(AI8,-1,0) -> -0.08 | AJ8: =OFFSET(AJ8,-1,0)+AH8*dbToAbs(-1*OFFSET(AI8,-1,0)) -> 5.577416416 | AK8: =G_Lookup($A8,$E$3, AK$4,$D8) -> -0.03 | AL8: =Atten_to_Te(AK8,$C8) -> 2.079500656 | AM8: =AK8+OFFSET(AM8,-1,0) -> -0.08 | AN8: =OFFSET(AN8,-1,0)+AL8*dbToAbs(-1*OFFSET(AM8,-1,0)) -> 5.577416416 | AO8: =G_Lookup($A8,$E$3, AO$4,$D8) -> -0.03 | AP8: =Atten_to_Te(AO8,$C8) -> 2.079500656 | AQ8: =AO8+OFFSET(AQ8,-1,0) -> -0.08 | AR8: =OFFSET(AR8,-1,0)+AP8*dbToAbs(-1*OFFSET(AQ8,-1,0)) -> 5.577416416 | AS8: =G_Lookup($A8,$E$3, AS$4,$D8) -> -0.03 | AT8: =Atten_to_Te(AS8,$C8) -> 2.079500656 | AU8: =AS8+OFFSET(AU8,-1,0) -> -0.08 | AV8: =OFFSET(AV8,-1,0)+AT8*dbToAbs(-1*OFFSET(AU8,-1,0)) -> 5.577416416
A9: IR_Filter | B9: 4 | C9: 190 | E9: -0.03 | F9: 1.317017082 | G9: -0.11 | H9: =OFFSET(H9,-1,0)+F9*dbToAbs(-1*OFFSET(G9,-1,0)) -> 6.918918674 | I9: -0.03 | J9: 1.317017082 | K9: -0.11 | L9: 6.918918674 | M9: -0.03 | N9: 1.317017082 | O9: -0.11 | P9: 6.918918674 | Q9: -0.03 | R9: 1.317017082 | S9: -0.11 | T9: 6.918918674 | U9: -0.03 | V9: 1.317017082 | W9: -0.11 | X9: 6.918918674 | Y9: -0.03 | Z9: 1.317017082 | AA9: -0.11 | AB9: 6.918918674 | AC9: -0.03 | AD9: 1.317017082 | AE9: -0.11 | AF9: 6.918918674 | AG9: -0.03 | AH9: 1.317017082 | AI9: -0.11 | AJ9: 6.918918674 | AK9: -0.03 | AL9: 1.317017082 | AM9: -0.11 | AN9: 6.918918674 | AO9: -0.03 | AP9: 1.317017082 | AQ9: -0.11 | AR9: 6.918918674 | AS9: -0.03 | AT9: 1.317017082 | AU9: -0.11 | AV9: 6.918918674
A10: Feed_Horn | B10: 1 | C10: 20 | E10: -0.05 | F10: 0.2315890852 | G10: -0.16 | H10: 7.156448465 | I10: -0.05 | J10: 0.2315890852 | K10: -0.16 | L10: 7.156448465 | M10: -0.05 | N10: 0.2315890852 | O10: -0.16 | P10: 7.156448465 | Q10: -0.05 | R10: 0.2315890852 | S10: -0.16 | T10: 7.156448465 | U10: -0.05 | V10: 0.2315890852 | W10: -0.16 | X10: 7.156448465 | Y10: -0.05 | Z10: 0.2315890852 | AA10: -0.16 | AB10: 7.156448465 | AC10: -0.05 | AD10: 0.2315890852 | AE10: -0.16 | AF10: 7.156448465 | AG10: -0.05 | AH10: 0.2315890852 | AI10: -0.16 | AJ10: 7.156448465 | AK10: -0.05 | AL10: 0.2315890852 | AM10: -0.16 | AN10: 7.156448465 | AO10: -0.05 | AP10: 0.2315890852 | AQ10: -0.16 | AR10: 7.156448465 | AS10: -0.05 | AT10: 0.2315890852 | AU10: -0.16 | AV10: 7.156448465
A11: OMT_Band5 | B11: 1 | C11: 20 | E11: -0.1712606402 | F11: 0.8044414106 | G11: -0.3312606402 | H11: 7.991079287 | I11: -0.148893459 | J11: 0.6975691183 | K11: -0.308893459 | L11: 7.880196247 | M11: -0.1337652772 | N11: 0.625596786 | O11: -0.2937652772 | P11: 7.805522907 | Q11: -0.1229045005 | R11: 0.5740810188 | S11: -0.2829045005 | T11: 7.752073835 | U11: -0.11525172 | V11: 0.5378589869 | W11: -0.27525172 | X11: 7.714492448 | Y11: -0.1092713454 | Z11: 0.5095971581 | AA11: -0.2692713454 | AB11: 7.685169997 | AC11: -0.1047230707 | AD11: 0.4881291321 | AE11: -0.2647230707 | AF11: 7.66289631 | AG11: -0.1013112527 | AH11: 0.472039976 | AI11: -0.2613112527 | AJ11: 7.646203354 | AK11: -0.09824495635 | AL11: 0.4575909815 | AM11: -0.2582449564 | AN11: 7.631212111 | AO11: -0.09609078031 | AP11: 0.4474461773 | AQ11: -0.2560907803 | AR11: 7.620686589 | AS11: -0.09444347833 | AT11: 0.4396918233 | AU11: -0.2544434783 | AV11: 7.612641226
A12: Cal_Coupler | B12: 1 | C12: 20 | E12: =G_Lookup($A12,$E$3, E$4,$D12) -> -0.215625 | F12: 1.018053621 | G12: -0.5468856402 | H12: 9.089823794 | I12: =G_Lookup($A12,$E$3, I$4,$D12) -> -0.225 | J12: 1.063473743 | K12: -0.533893459 | L12: 9.022064813 | M12: =G_Lookup($A12,$E$3, M$4,$D12) -> -0.235625 | N12: 1.115068548 | O12: -0.5293902772 | P12: 8.998626337 | Q12: =G_Lookup($A12,$E$3, Q$4,$D12) -> -0.246875 | R12: 1.1698361 | S12: -0.5297795005 | T12: 9.000651234 | U12: =G_Lookup($A12,$E$3, U$4,$D12) -> -0.241875 | V12: 1.14547745 | W12: -0.51712672 | X12: 8.934919192 | Y12: =G_Lookup($A12,$E$3, Y$4,$D12) -> -0.229375 | Z12: 1.084703377 | AA12: -0.4986463454 | AB12: 8.839255875 | AC12: =G_Lookup($A12,$E$3, AC$4,$D12) -> -0.216875 | AD12: 1.024103974 | AE12: -0.4815980707 | AF12: 8.751366046 | AG12: =G_Lookup($A12,$E$3, AG$4,$D12) -> -0.204375 | AH12: 0.9636787386 | AI12: -0.4656862527 | AJ12: 8.669645747 | AK12: =G_Lookup($A12,$E$3, AK$4,$D12) -> -0.2 | AL12: 0.942570961 | AM12: -0.4582449564 | AN12: 8.631531188 | AO12: =G_Lookup($A12,$E$3, AO$4,$D12) -> -0.2 | AP12: 0.942570961 | AQ12: -0.4560907803 | AR12: 8.620509613 | AS12: =G_Lookup($A12,$E$3, AS$4,$D12) -> -0.2 | AT12: 0.942570961 | AU12: -0.4544434783 | AV12: 8.612085084
A13: Cal_Inj_Band5 | B13: 4 | C13: =INDEX(Stage_Temp_Table,$B13) -> 190 | E13: =G_Lookup($A13,$E$3, E$4,$D13) -> 0 | F13: =T_LNA($A13,E$4,$C13) -> 0.19 | G13: =E13+OFFSET(G13,-1,0) -> -0.5468856402 | H13: =OFFSET(H13,-1,0)+F13*dbToAbs(-1*OFFSET(G13,-1,0)) -> 9.305321259 | I13: =G_Lookup($A13,$E$3, I$4,$D13) -> 0 | J13: =T_LNA($A13,I$4,$C13) -> 0.19 | K13: =I13+OFFSET(K13,-1,0) -> -0.533893459 | L13: =OFFSET(L13,-1,0)+J13*dbToAbs(-1*OFFSET(K13,-1,0)) -> 9.236918567 | M13: =G_Lookup($A13,$E$3, M$4,$D13) -> 0 | N13: =T_LNA($A13,M$4,$C13) -> 0.19 | O13: -0.5293902772 | P13: 9.213257425 | Q13: =G_Lookup($A13,$E$3, Q$4,$D13) -> 0 | R13: =T_LNA($A13,Q$4,$C13) -> 0.19 | S13: =Q13+OFFSET(S13,-1,0) -> -0.5297795005 | T13: =OFFSET(T13,-1,0)+R13*dbToAbs(-1*OFFSET(S13,-1,0)) -> 9.215301559 | U13: =G_Lookup($A13,$E$3, U$4,$D13) -> 0 | V13: =T_LNA($A13,U$4,$C13) -> 0.19 | W13: =U13+OFFSET(W13,-1,0) -> -0.51712672 | X13: =OFFSET(X13,-1,0)+V13*dbToAbs(-1*OFFSET(W13,-1,0)) -> 9.148945063 | Y13: =G_Lookup($A13,$E$3, Y$4,$D13) -> 0 | Z13: =T_LNA($A13,Y$4,$C13) -> 0.19 | AA13: =Y13+OFFSET(AA13,-1,0) -> -0.4986463454 | AB13: =OFFSET(AB13,-1,0)+Z13*dbToAbs(-1*OFFSET(AA13,-1,0)) -> 9.052372944 | AC13: =G_Lookup($A13,$E$3, AC$4,$D13) -> 0 | AD13: =T_LNA($A13,AC$4,$C13) -> 0.19 | AE13: =AC13+OFFSET(AE13,-1,0) -> -0.4815980707 | AF13: =OFFSET(AF13,-1,0)+AD13*dbToAbs(-1*OFFSET(AE13,-1,0)) -> 8.963648162 | AG13: =G_Lookup($A13,$E$3, AG$4,$D13) -> 0 | AH13: =T_LNA($A13,AG$4,$C13) -> 0.19 | AI13: =AG13+OFFSET(AI13,-1,0) -> -0.4656862527 | AJ13: =OFFSET(AJ13,-1,0)+AH13*dbToAbs(-1*OFFSET(AI13,-1,0)) -> 8.88115152 | AK13: =G_Lookup($A13,$E$3, AK$4,$D13) -> 0 | AL13: =T_LNA($A13,AK$4,$C13) -> 0.19 | AM13: =AK13+OFFSET(AM13,-1,0) -> -0.4582449564 | AN13: =OFFSET(AN13,-1,0)+AL13*dbToAbs(-1*OFFSET(AM13,-1,0)) -> 8.842674873 | AO13: =G_Lookup($A13,$E$3, AO$4,$D13) -> 0 | AP13: =T_LNA($A13,AO$4,$C13) -> 0.19 | AQ13: =AO13+OFFSET(AQ13,-1,0) -> -0.4560907803 | AR13: =OFFSET(AR13,-1,0)+AP13*dbToAbs(-1*OFFSET(AQ13,-1,0)) -> 8.831548593 | AS13: =G_Lookup($A13,$E$3, AS$4,$D13) -> 0 | AT13: =T_LNA($A13,AS$4,$C13) -> 0.19 | AU13: =AS13+OFFSET(AU13,-1,0) -> -0.4544434783 | AV13: =OFFSET(AV13,-1,0)+AT13*dbToAbs(-1*OFFSET(AU13,-1,0)) -> 8.823044031
A14: WG_Band5 | B14: 1 | C14: 20 | D14: 0.05 | E14: =G_Lookup($A14,$E$3, E$4,$D14) -> -0.07645564295 | F14: =Atten_to_Te(E14,$C14) -> 0.3552087207 | G14: -0.6233412832 | H14: 9.708197989 | I14: =G_Lookup($A14,$E$3, I$4,$D14) -> -0.06647029421 | J14: =Atten_to_Te(I14,$C14) -> 0.3084615518 | K14: -0.6003637532 | L14: 9.585729738 | M14: =G_Lookup($A14,$E$3, M$4,$D14) -> -0.05971664161 | N14: =Atten_to_Te(M14,$C14) -> 0.2769046911 | O14: -0.5891069188 | P14: 9.526059296 | Q14: =G_Lookup($A14,$E$3, Q$4,$D14) -> -0.05486808058 | R14: =Atten_to_Te(Q14,$C14) -> 0.2542797317 | S14: -0.5846475811 | T14: 9.502571176 | U14: =G_Lookup($A14,$E$3, U$4,$D14) -> -0.05145166071 | V14: =Atten_to_Te(U14,$C14) -> 0.2383527705 | W14: -0.5685783807 | X14: 9.417438007 | Y14: =G_Lookup($A14,$E$3, Y$4,$D14) -> -0.04878185062 | Z14: =Atten_to_Te(Y14,$C14) -> 0.2259151375 | AA14: -0.547428196 | AB14: 9.305774902 | AC14: =G_Lookup($A14,$E$3, AC$4,$D14) -> -0.04675137083 | AD14: =Atten_to_Te(AC14,$C14) -> 0.2164610195 | AE14: -0.5283494415 | AF14: 9.205494495 | AG14: =G_Lookup($A14,$E$3, AG$4,$D14) -> -0.0452282378 | AH14: =Atten_to_Te(AG14,$C14) -> 0.2093720598 | AI14: -0.5109144905 | AJ14: 9.114222044 | AK14: =G_Lookup($A14,$E$3, AK$4,$D14) -> -0.04385935551 | AL14: =Atten_to_Te(AK14,$C14) -> 0.2030031343 | AM14: -0.5021043119 | AN14: 9.068268714 | AO14: =G_Lookup($A14,$E$3, AO$4,$D14) -> -0.04289766978 | AP14: =Atten_to_Te(AO14,$C14) -> 0.1985299509 | AQ14: -0.4989884501 | AR14: 9.052062058 | AS14: =G_Lookup($A14,$E$3, AS$4,$D14) -> -0.04216226711 | AT14: =Atten_to_Te(AS14,$C14) -> 0.1951099684 | AU14: -0.4966057454 | AV14: 9.039676628
A15: LNA_Band5 | B15: 1 | C15: 20 | E15: =G_Lookup($A15,$E$3, E$4,$D15) -> 33.25 | F15: =T_LNA($A15,E$4) -> 7.8 | G15: 32.62665872 | H15: 18.71205794 | I15: =G_Lookup($A15,$E$3, I$4,$D15) -> 33 | J15: =T_LNA($A15,I$4) -> 7.2 | K15: 32.39963625 | L15: 17.85312824 | M15: =G_Lookup($A15,$E$3, M$4,$D15) -> 32.5 | N15: =T_LNA($A15,M$4) -> 7.42 | O15: 31.91089308 | P15: 18.02401763 | Q15: =G_Lookup($A15,$E$3, Q$4,$D15) -> 33.9 | R15: =T_LNA($A15,Q$4) -> 7.9 | S15: 33.31535242 | T15: 18.54097725 | U15: =G_Lookup($A15,$E$3, U$4,$D15) -> 34 | V15: =T_LNA($A15,U$4) -> 8.2 | W15: 33.43142162 | X15: 18.76442612 | Y15: =G_Lookup($A15,$E$3, Y$4,$D15) -> 34.13 | Z15: =T_LNA($A15,Y$4) -> 8.46 | AA15: 33.5825718 | AB15: 18.90228186 | AC15: =G_Lookup($A15,$E$3, AC$4,$D15) -> 34.395 | AD15: =T_LNA($A15,AC$4) -> 9.77 | AE15: 33.86665056 | AF15: 20.23940629 | AG15: =G_Lookup($A15,$E$3, AG$4,$D15) -> 34.695 | AH15: =T_LNA($A15,AG$4) -> 11.18 | AI15: 34.18408551 | AJ15: 21.68995344 | AK15: =G_Lookup($A15,$E$3, AK$4,$D15) -> 34.97 | AL15: =T_LNA($A15,AK$4) -> 12.28 | AM15: 34.46789569 | AN15: 22.85333307 | AO15: =G_Lookup($A15,$E$3, AO$4,$D15) -> 34.8 | AP15: =T_LNA($A15,AO$4) -> 13.6 | AQ15: 34.30101155 | AR15: 24.30795925 | AS15: =G_Lookup($A15,$E$3, AS$4,$D15) -> 33.125 | AT15: =T_LNA($A15,AS$4) -> 14.1 | AU15: 32.62839425 | AV15: 24.84777709
A16: WG_Band5 | B16: 4 | C16: 190 | D16: 0.3 | E16: =G_Lookup($A16,$E$3, E$4,$D16) -> -0.4587338577 | F16: =Atten_to_Te(E16,$C16) -> 21.16745544 | G16: 32.16792486 | H16: 18.72361913 | I16: =G_Lookup($A16,$E$3, I$4,$D16) -> -0.3988217653 | J16: =Atten_to_Te(I16,$C16) -> 18.27434507 | K16: 32.00081448 | L16: 17.86364491 | M16: =G_Lookup($A16,$E$3, M$4,$D16) -> -0.3582998497 | N16: =Atten_to_Te(M16,$C16) -> 16.34007588 | O16: 31.55259323 | P16: 18.03454124 | Q16: =G_Lookup($A16,$E$3, Q$4,$D16) -> -0.3292084835 | R16: =Atten_to_Te(Q16,$C16) -> 14.9625187 | S16: 32.98614394 | T16: 18.54795105 | U16: =G_Lookup($A16,$E$3, U$4,$D16) -> -0.3087099643 | V16: =Atten_to_Te(U16,$C16) -> 13.99738361 | W16: 33.12271166 | X16: 18.77077804 | Y16: =G_Lookup($A16,$E$3, Y$4,$D16) -> -0.2926911037 | Z16: =Atten_to_Te(Y16,$C16) -> 13.24632953 | AA16: 33.2898807 | AB16: 18.90808735 | AC16: =G_Lookup($A16,$E$3, AC$4,$D16) -> -0.280508225 | AD16: =Atten_to_Te(AC16,$C16) -> 12.67697954 | AE16: 33.58614233 | AF16: 20.24461045 | AG16: =G_Lookup($A16,$E$3, AG$4,$D16) -> -0.2713694268 | AH16: =Atten_to_Te(AG16,$C16) -> 12.25093761 | AI16: 33.91271608 | AJ16: 21.69462821 | AK16: =G_Lookup($A16,$E$3, AK$4,$D16) -> -0.2631561331 | AL16: =Atten_to_Te(AK16,$C16) -> 11.86880598 | AM16: 34.20473956 | AN16: 22.85757553 | AO16: =G_Lookup($A16,$E$3, AO$4,$D16) -> -0.2573860187 | AP16: =Atten_to_Te(AO16,$C16) -> 11.60077756 | AQ16: 34.04362553 | AR16: 24.31226834 | AS16: =G_Lookup($A16,$E$3, AS$4,$D16) -> -0.2529736027 | AT16: =Atten_to_Te(AS16,$C16) -> 11.39605592 | AU16: 32.37542065 | AV16: 24.85399888
A17: Cascaded Values: | G17: =G16 -> 32.16792486 | H17: =H16 -> 18.72361913 | K17: =K16 -> 32.00081448 | L17: =L16 -> 17.86364491 | O17: =O16 -> 31.55259323 | P17: =P16 -> 18.03454124 | S17: =S16 -> 32.98614394 | T17: =T16 -> 18.54795105 | W17: =W16 -> 33.12271166 | X17: =X16 -> 18.77077804 | AA17: =AA16 -> 33.2898807 | AB17: =AB16 -> 18.90808735 | AE17: =AE16 -> 33.58614233 | AF17: =AF16 -> 20.24461045 | AI17: =AI16 -> 33.91271608 | AJ17: =AJ16 -> 21.69462821 | AM17: =AM16 -> 34.20473956 | AN17: =AN16 -> 22.85757553 | AQ17: =AQ16 -> 34.04362553 | AR17: =AR16 -> 24.31226834 | AU17: =AU16 -> 32.37542065 | AV17: =AV16 -> 24.85399888
A19: Band #: | B19: Temp. Stage | C19: Phys. Temp. | D19: T-Line Len. | E19: 6
A20: Frequency: | E20: =fLO_Band6 -> 70 | I20: 73.8 | M20: 77.5 | Q20: 81.5 | U20: 85.5 | Y20: 90 | AC20: 95 | AG20: 100 | AK20: 105 | AO20: 110.6 | AS20: =fHI_Band6 -> 116
A21: Component Type | B21: # | C21: K | D21: m | E21: G, dB | F21: Te, K | G21: Gcas | H21: Tcas | I21: G, dB | J21: Te, K | K21: Gcas | L21: Tcas | M21: G, dB | N21: Te, K | O21: Gcas | P21: Tcas | Q21: G, dB | R21: Te, K | S21: Gcas | T21: Tcas | U21: G, dB | V21: Te, K | W21: Gcas | X21: Tcas | Y21: G, dB | Z21: Te, K | AA21: Gcas | AB21: Tcas | AC21: G, dB | AD21: Te, K | AE21: Gcas | AF21: Tcas | AG21: G, dB | AH21: Te, K | AI21: Gcas | AJ21: Tcas | AK21: G, dB | AL21: Te, K | AM21: Gcas | AN21: Tcas | AO21: G, dB | AP21: Te, K | AQ21: Gcas | AR21: Tcas | AS21: G, dB | AT21: Te, K | AU21: Gcas | AV21: Tcas
A22: Lossless Input | B22: 1 | C22: =INDEX(Stage_Temp_Table,$B22) -> 20 | E22: 0 | F22: 0 | G22: 0 | H22: 0 | I22: 0 | J22: 0 | K22: 0 | L22: 0 | M22: 0 | N22: 0 | O22: 0 | P22: 0 | Q22: 0 | R22: 0 | S22: 0 | T22: 0 | U22: 0 | V22: 0 | W22: 0 | X22: 0 | Y22: 0 | Z22: 0 | AA22: 0 | AB22: 0 | AC22: 0 | AD22: 0 | AE22: 0 | AF22: 0 | AG22: 0 | AH22: 0 | AI22: 0 | AJ22: 0 | AK22: 0 | AL22: 0 | AM22: 0 | AN22: 0 | AO22: 0 | AP22: 0 | AQ22: 0 | AR22: 0 | AS22: 0 | AT22: 0 | AU22: 0 | AV22: 0
A23: Weather_Radome | B23: 5 | C23: 300 | E23: =G_Lookup($A23,$E$19, E$20,$D23) -> -0.05125 | F23: =Atten_to_Te(E23,$C23) -> 3.561195641 | G23: =E23+OFFSET(G23,-1,0) -> -0.05125 | H23: =OFFSET(H23,-1,0)+F23*dbToAbs(-1*OFFSET(G23,-1,0)) -> 3.561195641 | I23: =G_Lookup($A23,$E$19, I$20,$D23) -> -0.053625 | J23: =Atten_to_Te(I23,$C23) -> 3.727247718 | K23: =I23+OFFSET(K23,-1,0) -> -0.053625 | L23: =OFFSET(L23,-1,0)+J23*dbToAbs(-1*OFFSET(K23,-1,0)) -> 3.727247718 | M23: =G_Lookup($A23,$E$19, M$20,$D23) -> -0.0559375 | N23: =Atten_to_Te(M23,$C23) -> 3.889017282 | O23: =M23+OFFSET(O23,-1,0) -> -0.0559375 | P23: =OFFSET(P23,-1,0)+N23*dbToAbs(-1*OFFSET(O23,-1,0)) -> 3.889017282 | Q23: =G_Lookup($A23,$E$19, Q$20,$D23) -> -0.0584375 | R23: =Atten_to_Te(Q23,$C23) -> 4.064000222 | S23: =Q23+OFFSET(S23,-1,0) -> -0.0584375 | T23: =OFFSET(T23,-1,0)+R23*dbToAbs(-1*OFFSET(S23,-1,0)) -> 4.064000222 | U23: =G_Lookup($A23,$E$19, U$20,$D23) -> -0.0609375 | V23: =Atten_to_Te(U23,$C23) -> 4.239083919 | W23: =U23+OFFSET(W23,-1,0) -> -0.0609375 | X23: =OFFSET(X23,-1,0)+V23*dbToAbs(-1*OFFSET(W23,-1,0)) -> 4.239083919 | Y23: =G_Lookup($A23,$E$19, Y$20,$D23) -> -0.06375 | Z23: =Atten_to_Te(Y23,$C23) -> 4.436173586 | AA23: =Y23+OFFSET(AA23,-1,0) -> -0.06375 | AB23: =OFFSET(AB23,-1,0)+Z23*dbToAbs(-1*OFFSET(AA23,-1,0)) -> 4.436173586 | AC23: =G_Lookup($A23,$E$19, AC$20,$D23) -> -0.066875 | AD23: =Atten_to_Te(AC23,$C23) -> 4.655311854 | AE23: =AC23+OFFSET(AE23,-1,0) -> -0.066875 | AF23: =OFFSET(AF23,-1,0)+AD23*dbToAbs(-1*OFFSET(AE23,-1,0)) -> 4.655311854 | AG23: =G_Lookup($A23,$E$19, AG$20,$D23) -> -0.07 | AH23: =Atten_to_Te(AG23,$C23) -> 4.874607861 | AI23: =AG23+OFFSET(AI23,-1,0) -> -0.07 | AJ23: =OFFSET(AJ23,-1,0)+AH23*dbToAbs(-1*OFFSET(AI23,-1,0)) -> 4.874607861 | AK23: =G_Lookup($A23,$E$19, AK$20,$D23) -> -0.073125 | AL23: =Atten_to_Te(AK23,$C23) -> 5.094061721 | AM23: =AK23+OFFSET(AM23,-1,0) -> -0.073125 | AN23: =OFFSET(AN23,-1,0)+AL23*dbToAbs(-1*OFFSET(AM23,-1,0)) -> 5.094061721 | AO23: =G_Lookup($A23,$E$19, AO$20,$D23) -> -0.076625 | AP23: =Atten_to_Te(AO23,$C23) -> 5.340037588 | AQ23: =AO23+OFFSET(AQ23,-1,0) -> -0.076625 | AR23: =OFFSET(AR23,-1,0)+AP23*dbToAbs(-1*OFFSET(AQ23,-1,0)) -> 5.340037588 | AS23: =G_Lookup($A23,$E$19, AS$20,$D23) -> -0.08 | AT23: =Atten_to_Te(AS23,$C23) -> 5.577416416 | AU23: =AS23+OFFSET(AU23,-1,0) -> -0.08 | AV23: =OFFSET(AV23,-1,0)+AT23*dbToAbs(-1*OFFSET(AU23,-1,0)) -> 5.577416416
A24: Vacuum_Window | B24: 5 | C24: 300 | E24: =G_Lookup($A24,$E$19, E$20,$D24) -> -0.03 | F24: =Atten_to_Te(E24,$C24) -> 2.079500656 | G24: =E24+OFFSET(G24,-1,0) -> -0.08125 | H24: =OFFSET(H24,-1,0)+F24*dbToAbs(-1*OFFSET(G24,-1,0)) -> 5.665381325 | I24: =G_Lookup($A24,$E$19, I$20,$D24) -> -0.03 | J24: =Atten_to_Te(I24,$C24) -> 2.079500656 | K24: =I24+OFFSET(K24,-1,0) -> -0.083625 | L24: =OFFSET(L24,-1,0)+J24*dbToAbs(-1*OFFSET(K24,-1,0)) -> 5.832584421 | M24: =G_Lookup($A24,$E$19, M$20,$D24) -> -0.03 | N24: =Atten_to_Te(M24,$C24) -> 2.079500656 | O24: =M24+OFFSET(O24,-1,0) -> -0.0859375 | P24: =OFFSET(P24,-1,0)+N24*dbToAbs(-1*OFFSET(O24,-1,0)) -> 5.995475318 | Q24: =G_Lookup($A24,$E$19, Q$20,$D24) -> -0.03 | R24: =Atten_to_Te(Q24,$C24) -> 2.079500656 | S24: =Q24+OFFSET(S24,-1,0) -> -0.0884375 | T24: =OFFSET(T24,-1,0)+R24*dbToAbs(-1*OFFSET(S24,-1,0)) -> 6.171671181 | U24: =G_Lookup($A24,$E$19, U$20,$D24) -> -0.0309375 | V24: =Atten_to_Te(U24,$C24) -> 2.144716796 | W24: =U24+OFFSET(W24,-1,0) -> -0.091875 | X24: =OFFSET(X24,-1,0)+V24*dbToAbs(-1*OFFSET(W24,-1,0)) -> 6.414106163 | Y24: =G_Lookup($A24,$E$19, Y$20,$D24) -> -0.03375 | Z24: =Atten_to_Te(Y24,$C24) -> 2.340449708 | AA24: =Y24+OFFSET(AA24,-1,0) -> -0.0975 | AB24: =OFFSET(AB24,-1,0)+Z24*dbToAbs(-1*OFFSET(AA24,-1,0)) -> 6.811232098 | AC24: =G_Lookup($A24,$E$19, AC$20,$D24) -> -0.036875 | AD24: =Atten_to_Te(AC24,$C24) -> 2.558079439 | AE24: =AC24+OFFSET(AE24,-1,0) -> -0.10375 | AF24: =OFFSET(AF24,-1,0)+AD24*dbToAbs(-1*OFFSET(AE24,-1,0)) -> 7.253086818 | AG24: =G_Lookup($A24,$E$19, AG$20,$D24) -> -0.04 | AH24: =Atten_to_Te(AG24,$C24) -> 2.775865823 | AI24: =AG24+OFFSET(AI24,-1,0) -> -0.11 | AJ24: =OFFSET(AJ24,-1,0)+AH24*dbToAbs(-1*OFFSET(AI24,-1,0)) -> 7.695577875 | AK24: =G_Lookup($A24,$E$19, AK$20,$D24) -> -0.043125 | AL24: =Atten_to_Te(AK24,$C24) -> 2.993808973 | AM24: =AK24+OFFSET(AM24,-1,0) -> -0.11625 | AN24: =OFFSET(AN24,-1,0)+AL24*dbToAbs(-1*OFFSET(AM24,-1,0)) -> 8.138706187 | AO24: =G_Lookup($A24,$E$19, AO$20,$D24) -> -0.046625 | AP24: =Atten_to_Te(AO24,$C24) -> 3.238091554 | AQ24: =AO24+OFFSET(AQ24,-1,0) -> -0.12325 | AR24: =OFFSET(AR24,-1,0)+AP24*dbToAbs(-1*OFFSET(AQ24,-1,0)) -> 8.635767578 | AS24: =G_Lookup($A24,$E$19, AS$20,$D24) -> -0.05 | AT24: =Atten_to_Te(AS24,$C24) -> 3.473836278 | AU24: =AS24+OFFSET(AU24,-1,0) -> -0.13 | AV24: =OFFSET(AV24,-1,0)+AT24*dbToAbs(-1*OFFSET(AU24,-1,0)) -> 9.115836132
A25: IR_Filter | B25: 4 | C25: 190 | E25: -0.03 | F25: 1.317017082 | G25: -0.11125 | H25: =OFFSET(H25,-1,0)+F25*dbToAbs(-1*OFFSET(G25,-1,0)) -> 7.007269754 | I25: -0.03 | J25: 1.317017082 | K25: -0.113625 | L25: 7.17520688 | M25: -0.03 | N25: 1.317017082 | O25: -0.1159375 | P25: 7.338812877 | Q25: -0.03 | R25: 1.317017082 | S25: -0.1184375 | T25: 7.515782251 | U25: -0.0309375 | V25: 1.358320638 | W25: -0.1228125 | X25: 7.801468177 | Y25: -0.03375 | Z25: 1.482284815 | AA25: -0.13125 | AB25: 8.327170867 | AC25: -0.036875 | AD25: 1.620116978 | AE25: -0.140625 | AF25: 8.912373293 | AG25: -0.04 | AH25: 1.758048355 | AI25: -0.15 | AJ25: 9.498723557 | AK25: -0.043125 | AL25: 1.896079017 | AM25: -0.159375 | AN25: 10.08622397 | AO25: -0.046625 | AP25: 2.050791318 | AQ25: -0.169875 | AR25: 10.74559275 | AS25: -0.05 | AT25: 2.200096309 | AU25: -0.18 | AV25: 11.38278483
A26: Feed_Horn | B26: 1 | C26: 20 | E26: -0.05125 | F26: 0.2374130427 | G26: -0.1625 | H26: 7.250842994 | I26: -0.053625 | J26: 0.2484831812 | K26: -0.16725 | L26: 7.430276948 | M26: -0.0559375 | N26: 0.2592678188 | O26: -0.171875 | P26: 7.605095217 | Q26: -0.0584375 | R26: 0.2709333481 | S26: -0.176875 | T26: 7.794205959 | U26: -0.0609375 | V26: 0.2826055946 | W26: -0.18375 | X26: 8.092179538 | Y26: -0.06375 | Z26: 0.2957449057 | AA26: -0.195 | AB26: 8.631990034 | AC26: -0.066875 | AD26: 0.3103541236 | AE26: -0.2075 | AF26: 9.232941184 | AG26: -0.07 | AH26: 0.3249738574 | AI26: -0.22 | AJ26: 9.8351177 | AK26: -0.073125 | AL26: 0.3396041148 | AM26: -0.2325 | AN26: 10.43852219 | AO26: -0.076625 | AP26: 0.3560025059 | AQ26: -0.2465 | AR26: 11.11579628 | AS26: -0.08 | AT26: 0.3718277611 | AU26: -0.26 | AV26: 11.77034739
A27: OMT_Band6 | B27: 1 | C27: 20 | E27: -0.2369472981 | F27: 1.12149844 | G27: -0.3994472981 | H27: 8.415099501 | I27: -0.2090022236 | J27: 0.986026553 | K27: -0.3762522236 | L27: 8.455016763 | M27: -0.1912463508 | N27: 0.9004015814 | O27: -0.3631213508 | P27: 8.541845319 | Q27: -0.1781345799 | R27: 0.8373964025 | S27: -0.3550095799 | T27: 8.666410997 | U27: -0.1683342827 | V27: 0.7904277105 | W27: -0.3520842827 | X27: 8.916767817 | Y27: -0.1602641475 | Z27: 0.7518304501 | AA27: -0.3552641475 | AB27: 9.418347313 | AC27: -0.1536715368 | AD27: 0.7203529712 | AE27: -0.3611715368 | AF27: 9.988547104 | AG27: -0.1487919203 | AH27: 0.6970852114 | AI27: -0.3687919203 | AJ27: 10.56842476 | AK27: -0.145297109 | AL27: 0.6804367588 | AM27: -0.377797109 | AN27: 11.1563789 | AO27: -0.1423821297 | AP27: 0.6665607321 | AQ27: -0.3888821297 | AR27: 11.82128444 | AS27: -0.1403154457 | AT27: 0.6567284425 | AU27: -0.4003154457 | AV27: 12.46759306
A28: Cal_Coupler | B28: 1 | C28: 20 | E28: -0.68125 | F28: 3.396720969 | G28: -1.080697298 | H28: 12.13905603 | I28: -0.645625 | J28: 3.205583635 | K28: -1.021877224 | L28: 11.95070211 | M28: -0.6109375 | N28: 3.02097672 | O28: -0.9740588508 | P28: 11.82627156 | Q28: -0.5734375 | R28: 2.823053362 | S28: -0.9284470799 | T28: 11.72992624 | U28: -0.5453125 | V28: 2.675728353 | W28: -0.8973967827 | X28: 11.81845405 | Y28: -0.53125 | Z28: 2.602422858 | AA28: -0.8865141475 | AB28: 12.24260474 | AC28: -0.515625 | AD28: 2.521250213 | AE28: -0.8767965368 | AF28: 12.72843694 | AG28: -0.5 | AH28: 2.440369086 | AI28: -0.8687919203 | AJ28: 13.225077 | AK28: -0.5 | AL28: 2.440369086 | AM28: -0.877797109 | AN28: 13.81854547 | AO28: -0.5 | AP28: 2.440369086 | AQ28: -0.8888821297 | AR28: 14.49025465 | AS28: -0.5 | AT28: 2.440369086 | AU28: -0.9003154457 | AV28: 15.14359891
A29: Cal_Inj_Band6 | B29: 4 | C29: 190 | E29: =G_Lookup($A29,$E$19, E$20,$D29) -> 0 | F29: =T_LNA($A29, E$20,$C29) -> 0.19 | G29: =E29+OFFSET(G29,-1,0) -> -1.080697298 | H29: =OFFSET(H29,-1,0)+F29*dbToAbs(-1*OFFSET(G29,-1,0)) -> 12.38273796 | I29: =G_Lookup($A29,$E$19, I$20,$D29) -> 0 | J29: =T_LNA($A29, I$20,$C29) -> 0.19 | K29: =I29+OFFSET(K29,-1,0) -> -1.021877224 | L29: =OFFSET(L29,-1,0)+J29*dbToAbs(-1*OFFSET(K29,-1,0)) -> 12.19110591 | M29: =G_Lookup($A29,$E$19, M$20,$D29) -> 0 | N29: =T_LNA($A29, M$20,$C29) -> 0.19 | O29: -0.9740588508 | P29: 12.06404289 | Q29: =G_Lookup($A29,$E$19, Q$20,$D29) -> 0 | R29: =T_LNA($A29, Q$20,$C29) -> 0.19 | S29: =Q29+OFFSET(S29,-1,0) -> -0.9284470799 | T29: =OFFSET(T29,-1,0)+R29*dbToAbs(-1*OFFSET(S29,-1,0)) -> 11.96521344 | U29: =G_Lookup($A29,$E$19, U$20,$D29) -> 0 | V29: =T_LNA($A29, U$20,$C29) -> 0.19 | W29: =U29+OFFSET(W29,-1,0) -> -0.8973967827 | X29: =OFFSET(X29,-1,0)+V29*dbToAbs(-1*OFFSET(W29,-1,0)) -> 12.05206504 | Y29: =G_Lookup($A29,$E$19, Y$20,$D29) -> 0 | Z29: =T_LNA($A29, Y$20,$C29) -> 0.19 | AA29: =Y29+OFFSET(AA29,-1,0) -> -0.8865141475 | AB29: =OFFSET(AB29,-1,0)+Z29*dbToAbs(-1*OFFSET(AA29,-1,0)) -> 12.47563108 | AC29: =G_Lookup($A29,$E$19, AC$20,$D29) -> 0 | AD29: =T_LNA($A29, AC$20,$C29) -> 0.19 | AE29: =AC29+OFFSET(AE29,-1,0) -> -0.8767965368 | AF29: =OFFSET(AF29,-1,0)+AD29*dbToAbs(-1*OFFSET(AE29,-1,0)) -> 12.96094245 | AG29: =G_Lookup($A29,$E$19, AG$20,$D29) -> 0 | AH29: =T_LNA($A29, AG$20,$C29) -> 0.19 | AI29: =AG29+OFFSET(AI29,-1,0) -> -0.8687919203 | AJ29: =OFFSET(AJ29,-1,0)+AH29*dbToAbs(-1*OFFSET(AI29,-1,0)) -> 13.45715437 | AK29: =G_Lookup($A29,$E$19, AK$20,$D29) -> 0 | AL29: =T_LNA($A29, AK$20,$C29) -> 0.19 | AM29: =AK29+OFFSET(AM29,-1,0) -> -0.877797109 | AN29: =OFFSET(AN29,-1,0)+AL29*dbToAbs(-1*OFFSET(AM29,-1,0)) -> 14.05110456 | AO29: =G_Lookup($A29,$E$19, AO$20,$D29) -> 0 | AP29: =T_LNA($A29, AO$20,$C29) -> 0.19 | AQ29: =AO29+OFFSET(AQ29,-1,0) -> -0.8888821297 | AR29: =OFFSET(AR29,-1,0)+AP29*dbToAbs(-1*OFFSET(AQ29,-1,0)) -> 14.72340809 | AS29: =G_Lookup($A29,$E$19, AS$20,$D29) -> 0 | AT29: =T_LNA($A29, AS$20,$C29) -> 0.19 | AU29: =AS29+OFFSET(AU29,-1,0) -> -0.9003154457 | AV29: =OFFSET(AV29,-1,0)+AT29*dbToAbs(-1*OFFSET(AU29,-1,0)) -> 15.37736696
A30: WG_Band6 | B30: 1 | C30: 20 | D30: 0.025 | E30: -0.1184736491 | F30: =Atten_to_Te(E30,$C30) -> 0.5531011969 | G30: -1.199170947 | H30: 13.09211043 | I30: -0.1045011118 | J30: 0.4870820533 | K30: -1.126378335 | L30: 12.80740262 | M30: -0.09562317542 | N30: =Atten_to_Te(M30,$C30) -> 0.4452447192 | O30: -1.069682026 | P30: 12.62123462 | Q30: -0.08906728995 | R30: 0.4144049154 | S30: -1.01751437 | T30: 12.4783933 | U30: -0.08416714135 | V30: 0.3913843132 | W30: -0.981563924 | X30: 12.53328441 | Y30: -0.08013207374 | Z30: 0.3724473002 | AA30: -0.9666462212 | AB30: 12.93242072 | AC30: -0.07683576839 | AD30: 0.3569904314 | AE30: -0.9536323052 | AF30: 13.39779637 | AG30: -0.07439596014 | AH30: 0.3455573585 | AI30: -0.9431878804 | AJ30: 13.8792388 | AK30: -0.07264855451 | AL30: 0.3373728681 | AM30: -0.9504456635 | AN30: 14.46404733 | AO30: -0.07119106487 | AP30: =Atten_to_Te(AO30,$C30) -> 0.3305488033 | AQ30: -0.9600731946 | AR30: 15.12903223 | AS30: -0.07015772283 | AT30: =Atten_to_Te(AS30,$C30) -> 0.3257120134 | AU30: -0.9704731685 | AV30: 15.77810938
A31: LNA_Band6 | B31: 1 | C31: 20 | E31: =G_Lookup($A31,$E$19, E$20,$D31) -> 19 | F31: =T_LNA($A31, E$20) -> 25 | G31: 17.80082905 | H31: 46.04223823 | I31: =G_Lookup($A31,$E$19, I$20,$D31) -> 19 | J31: =T_LNA($A31, I$20) -> 23.45 | K31: 17.87362166 | L31: 43.20090024 | M31: =G_Lookup($A31,$E$19, M$20,$D31) -> 19 | N31: =T_LNA($A31, M$20) -> 25.75 | O31: 17.93031797 | P31: 45.56289126 | Q31: =G_Lookup($A31,$E$19, Q$20,$D31) -> 19 | R31: =T_LNA($A31, Q$20) -> 26.125 | S31: 17.98248563 | T31: 45.50072505 | U31: =G_Lookup($A31,$E$19, U$20,$D31) -> 19 | V31: =T_LNA($A31, U$20) -> 25.6875 | W31: 18.01843608 | X31: 44.73494229 | Y31: =G_Lookup($A31,$E$19, Y$20,$D31) -> 19 | Z31: =T_LNA($A31, Y$20) -> 26 | AA31: 18.03335378 | AB31: 45.41406232 | AC31: =G_Lookup($A31,$E$19, AC$20,$D31) -> 19 | AD31: =T_LNA($A31, AC$20) -> 26.75 | AE31: 18.04636769 | AF31: 46.71641725 | AG31: =G_Lookup($A31,$E$19, AG$20,$D31) -> 19 | AH31: =T_LNA($A31, AG$20) -> 27.5 | AI31: 18.05681212 | AJ31: 48.04975046 | AK31: =G_Lookup($A31,$E$19, AK$20,$D31) -> 19 | AL31: =T_LNA($A31, AK$20) -> 26.375 | AM31: 18.04955434 | AN31: 47.29148872 | AO31: =G_Lookup($A31,$E$19, AO$20,$D31) -> 19 | AP31: =T_LNA($A31, AO$20) -> 25.675 | AQ31: 18.03992681 | AR31: 47.15614373 | AS31: =G_Lookup($A31,$E$19, AS$20,$D31) -> 19 | AT31: =T_LNA($A31, AS$20) -> 42 | AU31: 18.02952683 | AV31: 68.29471008
A32: WG_Band6 | B32: 1 | C32: 20 | D32: 0.025 | E32: -0.1184736491 | F32: =Atten_to_Te(E32,$C32) -> 0.5531011969 | G32: =E32+OFFSET(G32,-1,0) -> 17.6823554 | H32: =OFFSET(H32,-1,0)+F32*dbToAbs(-1*OFFSET(G32,-1,0)) -> 46.05141567 | I32: -0.1045011118 | J32: =Atten_to_Te(I32,$C32) -> 0.4870820533 | K32: =I32+OFFSET(K32,-1,0) -> 17.76912055 | L32: =OFFSET(L32,-1,0)+J32*dbToAbs(-1*OFFSET(K32,-1,0)) -> 43.20884791 | M32: -0.09562317542 | N32: =Atten_to_Te(M32,$C32) -> 0.4452447192 | O32: 17.8346948 | P32: 45.57006204 | Q32: -0.08906728995 | R32: =Atten_to_Te(Q32,$C32) -> 0.4144049154 | S32: =Q32+OFFSET(S32,-1,0) -> 17.89341834 | T32: =OFFSET(T32,-1,0)+R32*dbToAbs(-1*OFFSET(S32,-1,0)) -> 45.50731947 | U32: -0.08416714135 | V32: =Atten_to_Te(U32,$C32) -> 0.3913843132 | W32: =U32+OFFSET(W32,-1,0) -> 17.93426893 | X32: =OFFSET(X32,-1,0)+V32*dbToAbs(-1*OFFSET(W32,-1,0)) -> 44.74111903 | Y32: -0.08013207374 | Z32: =Atten_to_Te(Y32,$C32) -> 0.3724473002 | AA32: =Y32+OFFSET(AA32,-1,0) -> 17.95322171 | AB32: =OFFSET(AB32,-1,0)+Z32*dbToAbs(-1*OFFSET(AA32,-1,0)) -> 45.41992005 | AC32: -0.07683576839 | AD32: =Atten_to_Te(AC32,$C32) -> 0.3569904314 | AE32: =AC32+OFFSET(AE32,-1,0) -> 17.96953193 | AF32: =OFFSET(AF32,-1,0)+AD32*dbToAbs(-1*OFFSET(AE32,-1,0)) -> 46.72201508 | AG32: -0.07439596014 | AH32: =Atten_to_Te(AG32,$C32) -> 0.3455573585 | AI32: =AG32+OFFSET(AI32,-1,0) -> 17.98241616 | AJ32: =OFFSET(AJ32,-1,0)+AH32*dbToAbs(-1*OFFSET(AI32,-1,0)) -> 48.055156 | AK32: -0.07264855451 | AL32: =Atten_to_Te(AK32,$C32) -> 0.3373728681 | AM32: =AK32+OFFSET(AM32,-1,0) -> 17.97690578 | AN32: =OFFSET(AN32,-1,0)+AL32*dbToAbs(-1*OFFSET(AM32,-1,0)) -> 47.29677505 | AO32: -0.07119106487 | AP32: =Atten_to_Te(AO32,$C32) -> 0.3305488033 | AQ32: =AO32+OFFSET(AQ32,-1,0) -> 17.96873574 | AR32: =OFFSET(AR32,-1,0)+AP32*dbToAbs(-1*OFFSET(AQ32,-1,0)) -> 47.16133464 | AS32: -0.07015772283 | AT32: =Atten_to_Te(AS32,$C32) -> 0.3257120134 | AU32: =AS32+OFFSET(AU32,-1,0) -> 17.95936911 | AV32: =OFFSET(AV32,-1,0)+AT32*dbToAbs(-1*OFFSET(AU32,-1,0)) -> 68.29983729
A33: LNA_Band6 | B33: 1 | C33: 20 | E33: =G_Lookup($A33,$E$19, E$20,$D33) -> 19 | F33: =T_LNA($A33, E$20) -> 25 | G33: 36.6823554 | H33: 46.477705 | I33: =G_Lookup($A33,$E$19, I$20,$D33) -> 19 | J33: =T_LNA($A33, I$20) -> 23.45 | K33: 36.76912055 | L33: 43.60079802 | M33: =G_Lookup($A33,$E$19, M$20,$D33) -> 19 | N33: =T_LNA($A33, M$20) -> 25.75 | O33: 36.8346948 | P33: 45.99400532 | Q33: =G_Lookup($A33,$E$19, Q$20,$D33) -> 19 | R33: =T_LNA($A33, Q$20) -> 26.125 | S33: 36.89341834 | T33: 45.93165995 | U33: =G_Lookup($A33,$E$19, U$20,$D33) -> 19 | V33: =T_LNA($A33, U$20) -> 25.6875 | W33: 36.93426893 | X33: 45.15444715 | Y33: =G_Lookup($A33,$E$19, Y$20,$D33) -> 19 | Z33: =T_LNA($A33, Y$20) -> 26 | AA33: 36.95322171 | AB33: 45.83645474 | AC33: =G_Lookup($A33,$E$19, AC$20,$D33) -> 19 | AD33: =T_LNA($A33, AC$20) -> 26.75 | AE33: 36.96953193 | AF33: 47.14895876 | AG33: =G_Lookup($A33,$E$19, AG$20,$D33) -> 19 | AH33: =T_LNA($A33, AG$20) -> 27.5 | AI33: 36.98241616 | AJ33: 48.49276987 | AK33: =G_Lookup($A33,$E$19, AK$20,$D33) -> 19 | AL33: =T_LNA($A33, AK$20) -> 26.375 | AM33: 36.97690578 | AN33: 47.71701941 | AO33: =G_Lookup($A33,$E$19, AO$20,$D33) -> 19 | AP33: =T_LNA($A33, AO$20) -> 25.675 | AQ33: 36.96873574 | AR33: 47.5711959 | AS33: =G_Lookup($A33,$E$19, AS$20,$D33) -> 19 | AT33: =T_LNA($A33, AS$20) -> 42 | AU33: 36.95936911 | AV33: 68.97174926
A34: WG_Band6 | B34: 4 | C34: 190 | D34: 0.3 | E34: =G_Lookup($A34,$E$19, E$20,$D34) -> -1.421683789 | F34: =Atten_to_Te(E34,$C34) -> 73.58578165 | G34: 35.26067161 | H34: 46.49350141 | I34: =G_Lookup($A34,$E$19, I$20,$D34) -> -1.254013342 | J34: =Atten_to_Te(I34,$C34) -> 63.60332023 | K34: 35.51510721 | L34: 43.61418146 | M34: =G_Lookup($A34,$E$19, M$20,$D34) -> -1.147478105 | N34: =Atten_to_Te(M34,$C34) -> 57.45795037 | O34: 35.68721669 | P34: 46.00591447 | Q34: =G_Lookup($A34,$E$19, Q$20,$D34) -> -1.068807479 | R34: =Atten_to_Te(Q34,$C34) -> 53.01570943 | S34: 35.82461086 | T34: 45.94250079 | U34: =G_Lookup($A34,$E$19, U$20,$D34) -> -1.010005696 | V34: =Atten_to_Te(U34,$C34) -> 49.74754602 | W34: 35.92426324 | X34: 45.16452446 | Y34: =G_Lookup($A34,$E$19, Y$20,$D34) -> -0.9615848849 | Z34: =Atten_to_Te(Y34,$C34) -> 47.08937371 | AA34: 35.99163682 | AB34: 45.84595206 | AC34: =G_Lookup($A34,$E$19, AC$20,$D34) -> -0.9220292207 | AD34: =Atten_to_Te(AC34,$C34) -> 44.93976122 | AE34: 36.04750271 | AF34: 47.15798855 | AG34: =G_Lookup($A34,$E$19, AG$20,$D34) -> -0.8927515216 | AH34: =Atten_to_Te(AG34,$C34) -> 43.36125575 | AI34: 36.08966464 | AJ34: 48.50145668 | AK34: =G_Lookup($A34,$E$19, AK$20,$D34) -> -0.8717826541 | AL34: =Atten_to_Te(AK34,$C34) -> 42.23724259 | AM34: 36.10512313 | AN34: 47.72549178 | AO34: =G_Lookup($A34,$E$19, AO$20,$D34) -> -0.8542927785 | AP34: =Atten_to_Te(AO34,$C34) -> 41.30385918 | AQ34: 36.11444296 | AR34: 47.57949665 | AS34: =G_Lookup($A34,$E$19, AS$20,$D34) -> -0.8418926739 | AT34: =Atten_to_Te(AS34,$C34) -> 40.64437549 | AU34: 36.11747643 | AV34: 68.97993511
A35: Cascaded Values: | G35: =G34 -> 35.26067161 | H35: =H34 -> 46.49350141 | K35: =K34 -> 35.51510721 | L35: =L34 -> 43.61418146 | O35: =O34 -> 35.68721669 | P35: =P34 -> 46.00591447 | S35: =S34 -> 35.82461086 | T35: =T34 -> 45.94250079 | W35: =W34 -> 35.92426324 | X35: =X34 -> 45.16452446 | AA35: =AA34 -> 35.99163682 | AB35: =AB34 -> 45.84595206 | AE35: =AE34 -> 36.04750271 | AF35: =AF34 -> 47.15798855 | AI35: =AI34 -> 36.08966464 | AJ35: =AJ34 -> 48.50145668 | AM35: =AM34 -> 36.10512313 | AN35: =AN34 -> 47.72549178 | AQ35: =AQ34 -> 36.11444296 | AR35: =AR34 -> 47.57949665 | AU35: =AU34 -> 36.11747643 | AV35: =AV34 -> 68.97993511

Sheet Data - Tatm
A1: Atmospheric Temperature Modeled Data for VLA Site, 1-120 GHz, PWV of 1mm, 6mm and 13mm, At Zenith, 60, 45, 30 and 15 Degrees Elevation
B3: Zenith Elevation | E3: 60 Degree Elevation | H3: 45 Degree Elevation | K3: 30 Degree Elevation | N3: 15 Degree Elevation | R3: (Data courtesy Dr. Bryan Butler, NRAO, July 2016 / April 2020. Tbg added September 2020; revised October 2021) | Z3: Tgal (Avgd)
A4: Freq. | B4: Tatm (K) at PWV = | E4: Tatm (K) at PWV = | H4: Tatm (K) at PWV = | K4: Tatm (K) at PWV = | N4: Tatm (K) at PWV = | Z4: Freq. | AA4: Tgal
A5: GHz | B5: 1 | C5: 6 | D5: 13 | E5: 1 | F5: 6 | G5: 13 | H5: 1 | I5: 6 | J5: 13 | K5: 1 | L5: 6 | M5: 13 | N5: 1 | O5: 6 | P5: 13 | Z5: GHz | AA5: K
A6: 1 | B6: 3.9 | C6: 3.9 | D6: 3.9 | E6: 4.1 | F6: 4.1 | G6: 4.1 | H6: 4.4 | I6: 4.4 | J6: 4.4 | K6: 5.1 | L6: 5 | M6: 5.1 | N6: 7.2 | O6: 7.2 | P6: 7.2 | Z6: 1 | AA6: =T_gal(Z6) -> 2.141489697
A7: =A6+0.1 -> 1.1 | B7: 3.9 | C7: 3.9 | D7: 3.9 | E7: 4.1 | F7: 4.1 | G7: 4.1 | H7: 4.4 | I7: 4.4 | J7: 4.4 | K7: 5.1 | L7: 5.1 | M7: 5.1 | N7: 7.3 | O7: 7.2 | P7: 7.3 | Z7: =Z6+0.1 -> 1.1 | AA7: =T_gal(Z7) -> 1.647730213
A8: 1.2 | B8: 3.9 | C8: 3.9 | D8: 3.9 | E8: 4.1 | F8: 4.1 | G8: 4.1 | H8: 4.4 | I8: 4.4 | J8: 4.4 | K8: 5.1 | L8: 5.1 | M8: 5.1 | N8: 7.4 | O8: 7.3 | P8: 7.3 | Z8: 1.2 | AA8: 1.297082389
A9: 1.3 | B9: 3.9 | C9: 3.9 | D9: 3.9 | E9: 4.1 | F9: 4.1 | G9: 4.1 | H9: 4.4 | I9: 4.4 | J9: 4.4 | K9: 5.2 | L9: 5.1 | M9: 5.2 | N9: 7.4 | O9: 7.4 | P9: 7.4 | Z9: 1.3 | AA9: 1.040810753
A10: 1.4 | B10: 3.9 | C10: 3.9 | D10: 3.9 | E10: 4.1 | F10: 4.1 | G10: 4.1 | H10: 4.5 | I10: 4.4 | J10: 4.5 | K10: 5.2 | L10: 5.2 | M10: 5.2 | N10: 7.5 | O10: 7.4 | P10: 7.4 | Z10: 1.4 | AA10: 0.8489143817
A11: 1.5 | B11: 4 | C11: 3.9 | D11: 4 | E11: 4.2 | F11: 4.1 | G11: 4.1 | H11: 4.5 | I11: 4.5 | J11: 4.5 | K11: 5.2 | L11: 5.2 | M11: 5.2 | N11: 7.5 | O11: 7.4 | P11: 7.5 | Z11: 1.5 | AA11: 0.7022067937
A12: 1.6 | B12: 4 | C12: 4 | D12: 4 | E12: 4.2 | F12: 4.1 | G12: 4.2 | H12: 4.5 | I12: 4.5 | J12: 4.5 | K12: 5.2 | L12: 5.2 | M12: 5.2 | N12: 7.5 | O12: 7.5 | P12: 7.5 | Z12: 1.6 | AA12: 0.588011794
A13: 1.7 | B13: 4 | C13: 4 | D13: 4 | E13: 4.2 | F13: 4.2 | G13: 4.2 | H13: 4.5 | I13: 4.5 | J13: 4.5 | K13: 5.2 | L13: 5.2 | M13: 5.2 | N13: 7.5 | O13: 7.5 | P13: 7.5 | Z13: 1.7 | AA13: 0.4977158319
A14: 1.8 | B14: 4 | C14: 4 | D14: 4 | E14: 4.2 | F14: 4.2 | G14: 4.2 | H14: 4.5 | I14: 4.5 | J14: 4.5 | K14: 5.2 | L14: 5.2 | M14: 5.2 | N14: 7.6 | O14: 7.5 | P14: 7.6 | Z14: 1.8 | AA14: 0.4253207786
A15: 1.9 | B15: 4 | C15: 4 | D15: 4 | E15: 4.2 | F15: 4.2 | G15: 4.2 | H15: 4.5 | I15: 4.5 | J15: 4.5 | K15: 5.3 | L15: 5.2 | M15: 5.3 | N15: 7.6 | O15: 7.5 | P15: 7.6 | Z15: 1.9 | AA15: 0.3665587465
A16: 2 | B16: 4 | C16: 4 | D16: 4 | E16: 4.2 | F16: 4.2 | G16: 4.2 | H16: 4.5 | I16: 4.5 | J16: 4.5 | K16: 5.3 | L16: 5.2 | M16: 5.3 | N16: 7.6 | O16: 7.6 | P16: 7.6 | Z16: 2 | AA16: 0.318334348
A17: 2.1 | B17: 4 | C17: 4 | D17: 4 | E17: 4.2 | F17: 4.2 | G17: 4.2 | H17: 4.5 | I17: 4.5 | J17: 4.5 | K17: 5.3 | L17: 5.2 | M17: 5.3 | N17: 7.6 | O17: 7.6 | P17: 7.6 | Z17: 2.1 | AA17: 0.2783639104
A18: 2.2 | B18: 4 | C18: 4 | D18: 4 | E18: 4.2 | F18: 4.2 | G18: 4.2 | H18: 4.5 | I18: 4.5 | J18: 4.5 | K18: 5.3 | L18: 5.3 | M18: 5.3 | N18: 7.6 | O18: 7.6 | P18: 7.7 | Z18: 2.2 | AA18: 0.2449365616
A19: 2.3 | B19: 4 | C19: 4 | D19: 4 | E19: 4.2 | F19: 4.2 | G19: 4.2 | H19: 4.5 | I19: 4.5 | J19: 4.5 | K19: 5.3 | L19: 5.3 | M19: 5.3 | N19: 7.7 | O19: 7.6 | P19: 7.7 | Z19: 2.3 | AA19: 0.2167526622
A20: 2.4 | B20: 4 | C20: 4 | D20: 4 | E20: 4.2 | F20: 4.2 | G20: 4.2 | H20: 4.5 | I20: 4.5 | J20: 4.5 | K20: 5.3 | L20: 5.3 | M20: 5.3 | N20: 7.7 | O20: 7.6 | P20: 7.7 | Z20: 2.4 | AA20: 0.1928124507
A21: 2.5 | B21: 4 | C21: 4 | D21: 4 | E21: 4.2 | F21: 4.2 | G21: 4.2 | H21: 4.5 | I21: 4.5 | J21: 4.6 | K21: 5.3 | L21: 5.3 | M21: 5.3 | N21: 7.7 | O21: 7.6 | P21: 7.7 | Z21: 2.5 | AA21: 0.172337967
A22: 2.6 | B22: 4 | C22: 4 | D22: 4 | E22: 4.2 | F22: 4.2 | G22: 4.2 | H22: 4.5 | I22: 4.5 | J22: 4.6 | K22: 5.3 | L22: 5.3 | M22: 5.3 | N22: 7.7 | O22: 7.6 | P22: 7.7 | Z22: 2.6 | AA22: 0.1547174441
A23: 2.7 | B23: 4 | C23: 4 | D23: 4 | E23: 4.2 | F23: 4.2 | G23: 4.2 | H23: 4.6 | I23: 4.5 | J23: 4.6 | K23: 5.3 | L23: 5.3 | M23: 5.3 | N23: 7.7 | O23: 7.7 | P23: 7.7 | Z23: 2.7 | AA23: 0.1394651306
A24: 2.8 | B24: 4 | C24: 4 | D24: 4 | E24: 4.2 | F24: 4.2 | G24: 4.2 | H24: 4.6 | I24: 4.5 | J24: 4.6 | K24: 5.3 | L24: 5.3 | M24: 5.3 | N24: 7.7 | O24: 7.7 | P24: 7.7 | Z24: 2.8 | AA24: 0.1261918778
A25: 2.9 | B25: 4 | C25: 4 | D25: 4 | E25: 4.2 | F25: 4.2 | G25: 4.2 | H25: 4.6 | I25: 4.5 | J25: 4.6 | K25: 5.3 | L25: 5.3 | M25: 5.3 | N25: 7.7 | O25: 7.7 | P25: 7.8 | Z25: 2.9 | AA25: 0.1145833447
A26: 3 | B26: 4 | C26: 4 | D26: 4 | E26: 4.2 | F26: 4.2 | G26: 4.2 | H26: 4.6 | I26: 4.5 | J26: 4.6 | K26: 5.3 | L26: 5.3 | M26: 5.4 | N26: 7.7 | O26: 7.7 | P26: 7.8 | Z26: 3 | AA26: 0.1043836644
A27: 3.1 | B27: 4 | C27: 4 | D27: 4 | E27: 4.2 | F27: 4.2 | G27: 4.2 | H27: 4.6 | I27: 4.6 | J27: 4.6 | K27: 5.3 | L27: 5.3 | M27: 5.4 | N27: 7.7 | O27: 7.7 | P27: 7.8 | Z27: 3.1 | AA27: 0.09538307762
A28: 3.2 | B28: 4 | C28: 4 | D28: 4 | E28: 4.2 | F28: 4.2 | G28: 4.2 | H28: 4.6 | I28: 4.6 | J28: 4.6 | K28: 5.3 | L28: 5.3 | M28: 5.4 | N28: 7.7 | O28: 7.7 | P28: 7.8 | Z28: 3.2 | AA28: 0.08740847614
A29: 3.3 | B29: 4 | C29: 4 | D29: 4 | E29: 4.2 | F29: 4.2 | G29: 4.3 | H29: 4.6 | I29: 4.6 | J29: 4.6 | K29: 5.3 | L29: 5.3 | M29: 5.4 | N29: 7.7 | O29: 7.7 | P29: 7.8 | Z29: 3.3 | AA29: 0.08031610792
A30: 3.4 | B30: 4 | C30: 4 | D30: 4.1 | E30: 4.2 | F30: 4.2 | G30: 4.3 | H30: 4.6 | I30: 4.6 | J30: 4.6 | K30: 5.3 | L30: 5.3 | M30: 5.4 | N30: 7.8 | O30: 7.7 | P30: 7.8 | Z30: 3.4 | AA30: 0.07398590107
A31: 3.5 | B31: 4 | C31: 4 | D31: 4.1 | E31: 4.2 | F31: 4.2 | G31: 4.3 | H31: 4.6 | I31: 4.6 | J31: 4.6 | K31: 5.3 | L31: 5.3 | M31: 5.4 | N31: 7.8 | O31: 7.7 | P31: 7.9 | Z31: 3.5 | AA31: 0.06831701264
A32: 3.6 | B32: 4 | C32: 4 | D32: 4.1 | E32: 4.2 | F32: 4.2 | G32: 4.3 | H32: 4.6 | I32: 4.6 | J32: 4.6 | K32: 5.4 | L32: 5.3 | M32: 5.4 | N32: 7.8 | O32: 7.8 | P32: 7.9 | Z32: 3.6 | AA32: 0.06322431201
A33: 3.7 | B33: 4 | C33: 4 | D33: 4.1 | E33: 4.2 | F33: 4.2 | G33: 4.3 | H33: 4.6 | I33: 4.6 | J33: 4.6 | K33: 5.4 | L33: 5.3 | M33: 5.4 | N33: 7.8 | O33: 7.8 | P33: 7.9 | Z33: 3.7 | AA33: 0.05863558307
A34: 3.8 | B34: 4 | C34: 4 | D34: 4.1 | E34: 4.2 | F34: 4.2 | G34: 4.3 | H34: 4.6 | I34: 4.6 | J34: 4.6 | K34: 5.4 | L34: 5.4 | M34: 5.4 | N34: 7.8 | O34: 7.8 | P34: 7.9 | Z34: 3.8 | AA34: 0.05448928367
A35: 3.9 | B35: 4 | C35: 4 | D35: 4.1 | E35: 4.2 | F35: 4.2 | G35: 4.3 | H35: 4.6 | I35: 4.6 | J35: 4.6 | K35: 5.4 | L35: 5.4 | M35: 5.4 | N35: 7.8 | O35: 7.8 | P35: 7.9 | Z35: 3.9 | AA35: 0.05073274016
A36: 4 | B36: 4 | C36: 4 | D36: 4.1 | E36: 4.2 | F36: 4.2 | G36: 4.3 | H36: 4.6 | I36: 4.6 | J36: 4.6 | K36: 5.4 | L36: 5.4 | M36: 5.4 | N36: 7.8 | O36: 7.8 | P36: 7.9 | Z36: 4 | AA36: 0.04732068395
A37: 4.1 | B37: 4 | C37: 4 | D37: 4.1 | E37: 4.2 | F37: 4.2 | G37: 4.3 | H37: 4.6 | I37: 4.6 | J37: 4.7 | K37: 5.4 | L37: 5.4 | M37: 5.5 | N37: 7.8 | O37: 7.8 | P37: 8 | Z37: 4.1 | AA37: 0.04421405868
A38: 4.2 | B38: 4 | C38: 4 | D38: 4.1 | E38: 4.2 | F38: 4.3 | G38: 4.3 | H38: 4.6 | I38: 4.6 | J38: 4.7 | K38: 5.4 | L38: 5.4 | M38: 5.5 | N38: 7.8 | O38: 7.8 | P38: 8 | Z38: 4.2 | AA38: 0.04137904285
A39: 4.3 | B39: 4 | C39: 4 | D39: 4.1 | E39: 4.3 | F39: 4.3 | G39: 4.3 | H39: 4.6 | I39: 4.6 | J39: 4.7 | K39: 5.4 | L39: 5.4 | M39: 5.5 | N39: 7.8 | O39: 7.8 | P39: 8 | Z39: 4.3 | AA39: 0.038786245
A40: 4.4 | B40: 4 | C40: 4.1 | D40: 4.1 | E40: 4.3 | F40: 4.3 | G40: 4.3 | H40: 4.6 | I40: 4.6 | J40: 4.7 | K40: 5.4 | L40: 5.4 | M40: 5.5 | N40: 7.8 | O40: 7.8 | P40: 8 | Z40: 4.4 | AA40: 0.03641003773
A41: 4.5 | B41: 4 | C41: 4.1 | D41: 4.1 | E41: 4.3 | F41: 4.3 | G41: 4.3 | H41: 4.6 | I41: 4.6 | J41: 4.7 | K41: 5.4 | L41: 5.4 | M41: 5.5 | N41: 7.8 | O41: 7.9 | P41: 8 | Z41: 4.5 | AA41: 0.03422800418
A42: 4.6 | B42: 4.1 | C42: 4.1 | D42: 4.1 | E42: 4.3 | F42: 4.3 | G42: 4.3 | H42: 4.6 | I42: 4.6 | J42: 4.7 | K42: 5.4 | L42: 5.4 | M42: 5.5 | N42: 7.8 | O42: 7.9 | P42: 8.1 | Z42: 4.6 | AA42: 0.03222047601
A43: 4.7 | B43: 4.1 | C43: 4.1 | D43: 4.1 | E43: 4.3 | F43: 4.3 | G43: 4.3 | H43: 4.6 | I43: 4.6 | J43: 4.7 | K43: 5.4 | L43: 5.4 | M43: 5.5 | N43: 7.8 | O43: 7.9 | P43: 8.1 | Z43: 4.7 | AA43: 0.03037014602
A44: 4.8 | B44: 4.1 | C44: 4.1 | D44: 4.1 | E44: 4.3 | F44: 4.3 | G44: 4.3 | H44: 4.6 | I44: 4.6 | J44: 4.7 | K44: 5.4 | L44: 5.4 | M44: 5.5 | N44: 7.9 | O44: 7.9 | P44: 8.1 | Z44: 4.8 | AA44: 0.02866174227
A45: 4.9 | B45: 4.1 | C45: 4.1 | D45: 4.1 | E45: 4.3 | F45: 4.3 | G45: 4.3 | H45: 4.6 | I45: 4.6 | J45: 4.7 | K45: 5.4 | L45: 5.4 | M45: 5.5 | N45: 7.9 | O45: 7.9 | P45: 8.1 | Z45: 4.9 | AA45: 0.02708175278
A46: 5 | B46: 4.1 | C46: 4.1 | D46: 4.1 | E46: 4.3 | F46: 4.3 | G46: 4.3 | H46: 4.6 | I46: 4.6 | J46: 4.7 | K46: 5.4 | L46: 5.4 | M46: 5.5 | N46: 7.9 | O46: 7.9 | P46: 8.1 | Z46: 5 | AA46: 0.02561819207
A47: 5.1 | B47: 4.1 | C47: 4.1 | D47: 4.1 | E47: 4.3 | F47: 4.3 | G47: 4.4 | H47: 4.6 | I47: 4.6 | J47: 4.7 | K47: 5.4 | L47: 5.4 | M47: 5.6 | N47: 7.9 | O47: 7.9 | P47: 8.2 | Z47: 5.1 | AA47: 0.02426040267
A48: 5.2 | B48: 4.1 | C48: 4.1 | D48: 4.1 | E48: 4.3 | F48: 4.3 | G48: 4.4 | H48: 4.6 | I48: 4.6 | J48: 4.7 | K48: 5.4 | L48: 5.4 | M48: 5.6 | N48: 7.9 | O48: 7.9 | P48: 8.2 | Z48: 5.2 | AA48: 0.02299888567
A49: 5.3 | B49: 4.1 | C49: 4.1 | D49: 4.1 | E49: 4.3 | F49: 4.3 | G49: 4.4 | H49: 4.6 | I49: 4.7 | J49: 4.7 | K49: 5.4 | L49: 5.5 | M49: 5.6 | N49: 7.9 | O49: 8 | P49: 8.2 | Z49: 5.3 | AA49: 0.02182515556
A50: 5.4 | B50: 4.1 | C50: 4.1 | D50: 4.1 | E50: 4.3 | F50: 4.3 | G50: 4.4 | H50: 4.6 | I50: 4.7 | J50: 4.7 | K50: 5.4 | L50: 5.5 | M50: 5.6 | N50: 7.9 | O50: 8 | P50: 8.2 | Z50: 5.4 | AA50: 0.0207316157
A51: 5.5 | B51: 4.1 | C51: 4.1 | D51: 4.2 | E51: 4.3 | F51: 4.3 | G51: 4.4 | H51: 4.6 | I51: 4.7 | J51: 4.8 | K51: 5.4 | L51: 5.5 | M51: 5.6 | N51: 7.9 | O51: 8 | P51: 8.2 | Z51: 5.5 | AA51: 0.01971145093
A52: 5.6 | B52: 4.1 | C52: 4.1 | D52: 4.2 | E52: 4.3 | F52: 4.3 | G52: 4.4 | H52: 4.6 | I52: 4.7 | J52: 4.8 | K52: 5.4 | L52: 5.5 | M52: 5.6 | N52: 7.9 | O52: 8 | P52: 8.3 | Z52: 5.6 | AA52: 0.01875853487
A53: 5.7 | B53: 4.1 | C53: 4.1 | D53: 4.2 | E53: 4.3 | F53: 4.3 | G53: 4.4 | H53: 4.6 | I53: 4.7 | J53: 4.8 | K53: 5.4 | L53: 5.5 | M53: 5.6 | N53: 7.9 | O53: 8 | P53: 8.3 | Z53: 5.7 | AA53: 0.01786734965
A54: 5.8 | B54: 4.1 | C54: 4.1 | D54: 4.2 | E54: 4.3 | F54: 4.3 | G54: 4.4 | H54: 4.6 | I54: 4.7 | J54: 4.8 | K54: 5.4 | L54: 5.5 | M54: 5.6 | N54: 7.9 | O54: 8 | P54: 8.3 | Z54: 5.8 | AA54: 0.01703291609
A55: 5.9 | B55: 4.1 | C55: 4.1 | D55: 4.2 | E55: 4.3 | F55: 4.3 | G55: 4.4 | H55: 4.6 | I55: 4.7 | J55: 4.8 | K55: 5.4 | L55: 5.5 | M55: 5.6 | N55: 7.9 | O55: 8 | P55: 8.3 | Z55: 5.9 | AA55: 0.01625073309
A56: 6 | B56: 4.1 | C56: 4.1 | D56: 4.2 | E56: 4.3 | F56: 4.3 | G56: 4.4 | H56: 4.6 | I56: 4.7 | J56: 4.8 | K56: 5.4 | L56: 5.5 | M56: 5.7 | N56: 8 | O56: 8.1 | P56: 8.4 | Z56: 6 | AA56: 0.01551672455
A57: 6.1 | B57: 4.1 | C57: 4.1 | D57: 4.2 | E57: 4.3 | F57: 4.3 | G57: 4.4 | H57: 4.7 | I57: 4.7 | J57: 4.8 | K57: 5.5 | L57: 5.5 | M57: 5.7 | N57: 8 | O57: 8.1 | P57: 8.4 | Z57: 6.1 | AA57: 0.01482719308
A58: 6.2 | B58: 4.1 | C58: 4.1 | D58: 4.2 | E58: 4.3 | F58: 4.3 | G58: 4.4 | H58: 4.7 | I58: 4.7 | J58: 4.8 | K58: 5.5 | L58: 5.5 | M58: 5.7 | N58: 8 | O58: 8.1 | P58: 8.4 | Z58: 6.2 | AA58: 0.01417877932
A59: 6.3 | B59: 4.1 | C59: 4.1 | D59: 4.2 | E59: 4.3 | F59: 4.3 | G59: 4.4 | H59: 4.7 | I59: 4.7 | J59: 4.8 | K59: 5.5 | L59: 5.5 | M59: 5.7 | N59: 8 | O59: 8.1 | P59: 8.4 | Z59: 6.3 | AA59: 0.01356842625
A60: 6.4 | B60: 4.1 | C60: 4.1 | D60: 4.2 | E60: 4.3 | F60: 4.3 | G60: 4.4 | H60: 4.7 | I60: 4.7 | J60: 4.8 | K60: 5.5 | L60: 5.5 | M60: 5.7 | N60: 8 | O60: 8.1 | P60: 8.5 | Z60: 6.4 | AA60: 0.01299334772
A61: 6.5 | B61: 4.1 | C61: 4.1 | D61: 4.2 | E61: 4.3 | F61: 4.4 | G61: 4.5 | H61: 4.7 | I61: 4.7 | J61: 4.8 | K61: 5.5 | L61: 5.5 | M61: 5.7 | N61: 8 | O61: 8.1 | P61: 8.5 | Z61: 6.5 | AA61: 0.01245100073
A62: 6.6 | B62: 4.1 | C62: 4.1 | D62: 4.2 | E62: 4.3 | F62: 4.4 | G62: 4.5 | H62: 4.7 | I62: 4.7 | J62: 4.9 | K62: 5.5 | L62: 5.6 | M62: 5.7 | N62: 8 | O62: 8.2 | P62: 8.5 | Z62: 6.6 | AA62: 0.01193906087
A63: 6.7 | B63: 4.1 | C63: 4.1 | D63: 4.2 | E63: 4.3 | F63: 4.4 | G63: 4.5 | H63: 4.7 | I63: 4.7 | J63: 4.9 | K63: 5.5 | L63: 5.6 | M63: 5.8 | N63: 8 | O63: 8.2 | P63: 8.5 | Z63: 6.7 | AA63: 0.01145540062
A64: 6.8 | B64: 4.1 | C64: 4.1 | D64: 4.2 | E64: 4.3 | F64: 4.4 | G64: 4.5 | H64: 4.7 | I64: 4.7 | J64: 4.9 | K64: 5.5 | L64: 5.6 | M64: 5.8 | N64: 8 | O64: 8.2 | P64: 8.6 | Z64: 6.8 | AA64: 0.01099807
A65: 6.9 | B65: 4.1 | C65: 4.1 | D65: 4.3 | E65: 4.3 | F65: 4.4 | G65: 4.5 | H65: 4.7 | I65: 4.7 | J65: 4.9 | K65: 5.5 | L65: 5.6 | M65: 5.8 | N65: 8 | O65: 8.2 | P65: 8.6 | Z65: 6.9 | AA65: 0.01056527948
A66: 7 | B66: 4.1 | C66: 4.2 | D66: 4.3 | E66: 4.3 | F66: 4.4 | G66: 4.5 | H66: 4.7 | I66: 4.8 | J66: 4.9 | K66: 5.5 | L66: 5.6 | M66: 5.8 | N66: 8 | O66: 8.2 | P66: 8.6 | Z66: 7 | AA66: 0.01015538469
A67: 7.1 | B67: 4.1 | C67: 4.2 | D67: 4.3 | E67: 4.3 | F67: 4.4 | G67: 4.5 | H67: 4.7 | I67: 4.8 | J67: 4.9 | K67: 5.5 | L67: 5.6 | M67: 5.8 | N67: 8.1 | O67: 8.3 | P67: 8.7 | Z67: 7.1 | AA67: 0.009766872769
A68: 7.2 | B68: 4.1 | C68: 4.2 | D68: 4.3 | E68: 4.3 | F68: 4.4 | G68: 4.5 | H68: 4.7 | I68: 4.8 | J68: 4.9 | K68: 5.5 | L68: 5.6 | M68: 5.8 | N68: 8.1 | O68: 8.3 | P68: 8.7 | Z68: 7.2 | AA68: 0.00939835021
A69: 7.3 | B69: 4.1 | C69: 4.2 | D69: 4.3 | E69: 4.3 | F69: 4.4 | G69: 4.5 | H69: 4.7 | I69: 4.8 | J69: 4.9 | K69: 5.5 | L69: 5.6 | M69: 5.9 | N69: 8.1 | O69: 8.3 | P69: 8.7 | Z69: 7.3 | AA69: 0.009048531945
A70: 7.4 | B70: 4.1 | C70: 4.2 | D70: 4.3 | E70: 4.3 | F70: 4.4 | G70: 4.5 | H70: 4.7 | I70: 4.8 | J70: 4.9 | K70: 5.5 | L70: 5.6 | M70: 5.9 | N70: 8.1 | O70: 8.3 | P70: 8.8 | Z70: 7.4 | AA70: 0.008716231572
A71: =A70+0.1 -> 7.5 | B71: 4.1 | C71: 4.2 | D71: 4.3 | E71: 4.3 | F71: 4.4 | G71: 4.5 | H71: 4.7 | I71: 4.8 | J71: 5 | K71: 5.5 | L71: 5.6 | M71: 5.9 | N71: 8.1 | O71: 8.3 | P71: 8.8 | Z71: =Z70+0.1 -> 7.5 | AA71: =T_gal(Z71) -> 0.008400352585
A72: 7.6 | B72: 4.1 | C72: 4.2 | D72: 4.3 | E72: 4.3 | F72: 4.4 | G72: 4.6 | H72: 4.7 | I72: 4.8 | J72: 5 | K72: 5.5 | L72: 5.7 | M72: 5.9 | N72: 8.1 | O72: 8.4 | P72: 8.8 | Z72: 7.6 | AA72: 0.008099880479
A73: 7.7 | B73: 4.1 | C73: 4.2 | D73: 4.3 | E73: 4.3 | F73: 4.4 | G73: 4.6 | H73: 4.7 | I73: 4.8 | J73: 5 | K73: 5.5 | L73: 5.7 | M73: 5.9 | N73: 8.1 | O73: 8.4 | P73: 8.9 | Z73: 7.7 | AA73: 0.007813875641
A74: 7.8 | B74: 4.1 | C74: 4.2 | D74: 4.3 | E74: 4.3 | F74: 4.4 | G74: 4.6 | H74: 4.7 | I74: 4.8 | J74: 5 | K74: 5.5 | L74: 5.7 | M74: 5.9 | N74: 8.1 | O74: 8.4 | P74: 8.9 | Z74: 7.8 | AA74: 0.007541466946
A75: 7.9 | B75: 4.1 | C75: 4.2 | D75: 4.3 | E75: 4.4 | F75: 4.4 | G75: 4.6 | H75: 4.7 | I75: 4.8 | J75: 5 | K75: 5.5 | L75: 5.7 | M75: 6 | N75: 8.1 | O75: 8.4 | P75: 8.9 | Z75: 7.9 | AA75: 0.00728184597
A76: 8 | B76: 4.1 | C76: 4.2 | D76: 4.3 | E76: 4.4 | F76: 4.4 | G76: 4.6 | H76: 4.7 | I76: 4.8 | J76: 5 | K76: 5.6 | L76: 5.7 | M76: 6 | N76: 8.2 | O76: 8.4 | P76: 9 | Z76: 8 | AA76: 0.007034261756
A77: 8.1 | B77: 4.1 | C77: 4.2 | D77: 4.4 | E77: 4.4 | F77: 4.4 | G77: 4.6 | H77: 4.7 | I77: 4.8 | J77: 5 | K77: 5.6 | L77: 5.7 | M77: 6 | N77: 8.2 | O77: 8.5 | P77: 9 | Z77: 8.1 | AA77: 0.006798016077
A78: 8.2 | B78: 4.1 | C78: 4.2 | D78: 4.4 | E78: 4.4 | F78: 4.5 | G78: 4.6 | H78: 4.7 | I78: 4.8 | J78: 5.1 | K78: 5.6 | L78: 5.7 | M78: 6 | N78: 8.2 | O78: 8.5 | P78: 9 | Z78: 8.2 | AA78: 0.006572459146
A79: 8.3 | B79: 4.1 | C79: 4.2 | D79: 4.4 | E79: 4.4 | F79: 4.5 | G79: 4.6 | H79: 4.7 | I79: 4.9 | J79: 5.1 | K79: 5.6 | L79: 5.7 | M79: 6 | N79: 8.2 | O79: 8.5 | P79: 9.1 | Z79: 8.3 | AA79: 0.006356985711
A80: 8.4 | B80: 4.1 | C80: 4.2 | D80: 4.4 | E80: 4.4 | F80: 4.5 | G80: 4.6 | H80: 4.7 | I80: 4.9 | J80: 5.1 | K80: 5.6 | L80: 5.7 | M80: 6.1 | N80: 8.2 | O80: 8.5 | P80: 9.1 | Z80: 8.4 | AA80: 0.006151031521
A81: 8.5 | B81: 4.1 | C81: 4.2 | D81: 4.4 | E81: 4.4 | F81: 4.5 | G81: 4.7 | H81: 4.7 | I81: 4.9 | J81: 5.1 | K81: 5.6 | L81: 5.8 | M81: 6.1 | N81: 8.2 | O81: 8.5 | P81: 9.1 | Z81: 8.5 | AA81: 0.005954070101
A82: 8.6 | B82: 4.2 | C82: 4.2 | D82: 4.4 | E82: 4.4 | F82: 4.5 | G82: 4.7 | H82: 4.8 | I82: 4.9 | J82: 5.1 | K82: 5.6 | L82: 5.8 | M82: 6.1 | N82: 8.2 | O82: 8.6 | P82: 9.2 | Z82: 8.6 | AA82: 0.005765609815
A83: 8.7 | B83: 4.2 | C83: 4.2 | D83: 4.4 | E83: 4.4 | F83: 4.5 | G83: 4.7 | H83: 4.8 | I83: 4.9 | J83: 5.1 | K83: 5.6 | L83: 5.8 | M83: 6.1 | N83: 8.2 | O83: 8.6 | P83: 9.2 | Z83: 8.7 | AA83: 0.005585191194
A84: 8.8 | B84: 4.2 | C84: 4.3 | D84: 4.4 | E84: 4.4 | F84: 4.5 | G84: 4.7 | H84: 4.8 | I84: 4.9 | J84: 5.1 | K84: 5.6 | L84: 5.8 | M84: 6.1 | N84: 8.3 | O84: 8.6 | P84: 9.3 | Z84: 8.8 | AA84: 0.00541238449
A85: 8.9 | B85: 4.2 | C85: 4.3 | D85: 4.4 | E85: 4.4 | F85: 4.5 | G85: 4.7 | H85: 4.8 | I85: 4.9 | J85: 5.2 | K85: 5.6 | L85: 5.8 | M85: 6.2 | N85: 8.3 | O85: 8.6 | P85: 9.3 | Z85: 8.9 | AA85: 0.005246787449
A86: 9 | B86: 4.2 | C86: 4.3 | D86: 4.4 | E86: 4.4 | F86: 4.5 | G86: 4.7 | H86: 4.8 | I86: 4.9 | J86: 5.2 | K86: 5.6 | L86: 5.8 | M86: 6.2 | N86: 8.3 | O86: 8.7 | P86: 9.4 | Z86: 9 | AA86: 0.005088023263
A87: 9.1 | B87: 4.2 | C87: 4.3 | D87: 4.5 | E87: 4.4 | F87: 4.5 | G87: 4.7 | H87: 4.8 | I87: 4.9 | J87: 5.2 | K87: 5.6 | L87: 5.8 | M87: 6.2 | N87: 8.3 | O87: 8.7 | P87: 9.4 | Z87: 9.1 | AA87: 0.004935738706
A88: 9.2 | B88: 4.2 | C88: 4.3 | D88: 4.5 | E88: 4.4 | F88: 4.5 | G88: 4.7 | H88: 4.8 | I88: 4.9 | J88: 5.2 | K88: 5.6 | L88: 5.9 | M88: 6.2 | N88: 8.3 | O88: 8.7 | P88: 9.4 | Z88: 9.2 | AA88: 0.004789602415
A89: 9.3 | B89: 4.2 | C89: 4.3 | D89: 4.5 | E89: 4.4 | F89: 4.5 | G89: 4.8 | H89: 4.8 | I89: 4.9 | J89: 5.2 | K89: 5.6 | L89: 5.9 | M89: 6.3 | N89: 8.3 | O89: 8.8 | P89: 9.5 | Z89: 9.3 | AA89: 0.004649303324
A90: 9.4 | B90: 4.2 | C90: 4.3 | D90: 4.5 | E90: 4.4 | F90: 4.5 | G90: 4.8 | H90: 4.8 | I90: 5 | J90: 5.2 | K90: 5.6 | L90: 5.9 | M90: 6.3 | N90: 8.3 | O90: 8.8 | P90: 9.5 | Z90: 9.4 | AA90: 0.004514549216
A91: 9.5 | B91: 4.2 | C91: 4.3 | D91: 4.5 | E91: 4.4 | F91: 4.6 | G91: 4.8 | H91: 4.8 | I91: 5 | J91: 5.3 | K91: 5.7 | L91: 5.9 | M91: 6.3 | N91: 8.3 | O91: 8.8 | P91: 9.6 | Z91: 9.5 | AA91: 0.004385065398
A92: 9.6 | B92: 4.2 | C92: 4.3 | D92: 4.5 | E92: 4.4 | F92: 4.6 | G92: 4.8 | H92: 4.8 | I92: 5 | J92: 5.3 | K92: 5.7 | L92: 5.9 | M92: 6.3 | N92: 8.4 | O92: 8.8 | P92: 9.6 | Z92: 9.6 | AA92: 0.00426059348
A93: 9.7 | B93: 4.2 | C93: 4.3 | D93: 4.5 | E93: 4.4 | F93: 4.6 | G93: 4.8 | H93: 4.8 | I93: 5 | J93: 5.3 | K93: 5.7 | L93: 5.9 | M93: 6.3 | N93: 8.4 | O93: 8.9 | P93: 9.7 | Z93: 9.7 | AA93: 0.004140890249
A94: 9.8 | B94: 4.2 | C94: 4.3 | D94: 4.5 | E94: 4.4 | F94: 4.6 | G94: 4.8 | H94: 4.8 | I94: 5 | J94: 5.3 | K94: 5.7 | L94: 5.9 | M94: 6.4 | N94: 8.4 | O94: 8.9 | P94: 9.7 | Z94: 9.8 | AA94: 0.004025726636
A95: 9.9 | B95: 4.2 | C95: 4.3 | D95: 4.6 | E95: 4.4 | F95: 4.6 | G95: 4.8 | H95: 4.8 | I95: 5 | J95: 5.3 | K95: 5.7 | L95: 6 | M95: 6.4 | N95: 8.4 | O95: 8.9 | P95: 9.8 | Z95: 9.9 | AA95: 0.003914886758
A96: 10 | B96: 4.2 | C96: 4.3 | D96: 4.6 | E96: 4.4 | F96: 4.6 | G96: 4.9 | H96: 4.8 | I96: 5 | J96: 5.3 | K96: 5.7 | L96: 6 | M96: 6.4 | N96: 8.4 | O96: 9 | P96: 9.8 | Z96: 10 | AA96: 0.003808167035
A97: 10.1 | B97: 4.2 | C97: 4.4 | D97: 4.6 | E97: 4.4 | F97: 4.6 | G97: 4.9 | H97: 4.8 | I97: 5 | J97: 5.4 | K97: 5.7 | L97: 6 | M97: 6.5 | N97: 8.4 | O97: 9 | P97: 9.9 | Z97: 10.1 | AA97: 0.003705375378
A98: 10.2 | B98: 4.2 | C98: 4.4 | D98: 4.6 | E98: 4.4 | F98: 4.6 | G98: 4.9 | H98: 4.8 | I98: 5 | J98: 5.4 | K98: 5.7 | L98: 6 | M98: 6.5 | N98: 8.5 | O98: 9 | P98: 9.9 | Z98: 10.2 | AA98: 0.003606330434
A99: 10.3 | B99: 4.2 | C99: 4.4 | D99: 4.6 | E99: 4.4 | F99: 4.6 | G99: 4.9 | H99: 4.8 | I99: 5.1 | J99: 5.4 | K99: 5.7 | L99: 6 | M99: 6.5 | N99: 8.5 | O99: 9 | P99: 10 | Z99: 10.3 | AA99: 0.003510860886
A100: 10.4 | B100: 4.2 | C100: 4.4 | D100: 4.6 | E100: 4.5 | F100: 4.6 | G100: 4.9 | H100: 4.8 | I100: 5.1 | J100: 5.4 | K100: 5.7 | L100: 6 | M100: 6.5 | N100: 8.5 | O100: 9.1 | P100: 10 | Z100: 10.4 | AA100: 0.003418804809
A101: 10.5 | B101: 4.2 | C101: 4.4 | D101: 4.6 | E101: 4.5 | F101: 4.6 | G101: 4.9 | H101: 4.9 | I101: 5.1 | J101: 5.4 | K101: 5.7 | L101: 6.1 | M101: 6.6 | N101: 8.5 | O101: 9.1 | P101: 10.1 | Z101: 10.5 | AA101: 0.003330009073
A102: 10.6 | B102: 4.2 | C102: 4.4 | D102: 4.7 | E102: 4.5 | F102: 4.7 | G102: 5 | H102: 4.9 | I102: 5.1 | J102: 5.5 | K102: 5.7 | L102: 6.1 | M102: 6.6 | N102: 8.5 | O102: 9.1 | P102: 10.1 | Z102: 10.6 | AA102: 0.003244328785
A103: 10.7 | B103: 4.2 | C103: 4.4 | D103: 4.7 | E103: 4.5 | F103: 4.7 | G103: 5 | H103: 4.9 | I103: 5.1 | J103: 5.5 | K103: 5.8 | L103: 6.1 | M103: 6.6 | N103: 8.5 | O103: 9.2 | P103: 10.2 | Z103: 10.7 | AA103: 0.003161626773
A104: 10.8 | B104: 4.2 | C104: 4.4 | D104: 4.7 | E104: 4.5 | F104: 4.7 | G104: 5 | H104: 4.9 | I104: 5.1 | J104: 5.5 | K104: 5.8 | L104: 6.1 | M104: 6.7 | N104: 8.5 | O104: 9.2 | P104: 10.3 | Z104: 10.8 | AA104: 0.003081773112
A105: 10.9 | B105: 4.2 | C105: 4.4 | D105: 4.7 | E105: 4.5 | F105: 4.7 | G105: 5 | H105: 4.9 | I105: 5.1 | J105: 5.5 | K105: 5.8 | L105: 6.1 | M105: 6.7 | N105: 8.6 | O105: 9.2 | P105: 10.3 | Z105: 10.9 | AA105: 0.003004644672
A106: 11 | B106: 4.2 | C106: 4.4 | D106: 4.7 | E106: 4.5 | F106: 4.7 | G106: 5 | H106: 4.9 | I106: 5.1 | J106: 5.6 | K106: 5.8 | L106: 6.1 | M106: 6.7 | N106: 8.6 | O106: 9.3 | P106: 10.4 | Z106: 11 | AA106: 0.002930124711
A107: 11.1 | B107: 4.3 | C107: 4.4 | D107: 4.7 | E107: 4.5 | F107: 4.7 | G107: 5 | H107: 4.9 | I107: 5.2 | J107: 5.6 | K107: 5.8 | L107: 6.2 | M107: 6.8 | N107: 8.6 | O107: 9.3 | P107: 10.4 | Z107: 11.1 | AA107: 0.002858102486
A108: 11.2 | B108: 4.3 | C108: 4.5 | D108: 4.8 | E108: 4.5 | F108: 4.7 | G108: 5.1 | H108: 4.9 | I108: 5.2 | J108: 5.6 | K108: 5.8 | L108: 6.2 | M108: 6.8 | N108: 8.6 | O108: 9.4 | P108: 10.5 | Z108: 11.2 | AA108: 0.002788472892
A109: 11.3 | B109: 4.3 | C109: 4.5 | D109: 4.8 | E109: 4.5 | F109: 4.7 | G109: 5.1 | H109: 4.9 | I109: 5.2 | J109: 5.6 | K109: 5.8 | L109: 6.2 | M109: 6.8 | N109: 8.6 | O109: 9.4 | P109: 10.6 | Z109: 11.3 | AA109: 0.002721136136
A110: 11.4 | B110: 4.3 | C110: 4.5 | D110: 4.8 | E110: 4.5 | F110: 4.7 | G110: 5.1 | H110: 4.9 | I110: 5.2 | J110: 5.6 | K110: 5.8 | L110: 6.2 | M110: 6.9 | N110: 8.7 | O110: 9.4 | P110: 10.6 | Z110: 11.4 | AA110: 0.002655997416
A111: 11.5 | B111: 4.3 | C111: 4.5 | D111: 4.8 | E111: 4.5 | F111: 4.8 | G111: 5.1 | H111: 4.9 | I111: 5.2 | J111: 5.7 | K111: 5.8 | L111: 6.2 | M111: 6.9 | N111: 8.7 | O111: 9.5 | P111: 10.7 | Z111: 11.5 | AA111: 0.002592966634
A112: 11.6 | B112: 4.3 | C112: 4.5 | D112: 4.8 | E112: 4.5 | F112: 4.8 | G112: 5.1 | H112: 4.9 | I112: 5.2 | J112: 5.7 | K112: 5.8 | L112: 6.3 | M112: 6.9 | N112: 8.7 | O112: 9.5 | P112: 10.8 | Z112: 11.6 | AA112: 0.002531958126
A113: 11.7 | B113: 4.3 | C113: 4.5 | D113: 4.8 | E113: 4.5 | F113: 4.8 | G113: 5.2 | H113: 4.9 | I113: 5.2 | J113: 5.7 | K113: 5.8 | L113: 6.3 | M113: 7 | N113: 8.7 | O113: 9.6 | P113: 10.8 | Z113: 11.7 | AA113: 0.002472890405
A114: 11.8 | B114: 4.3 | C114: 4.5 | D114: 4.9 | E114: 4.5 | F114: 4.8 | G114: 5.2 | H114: 4.9 | I114: 5.3 | J114: 5.7 | K114: 5.9 | L114: 6.3 | M114: 7 | N114: 8.7 | O114: 9.6 | P114: 10.9 | Z114: 11.8 | AA114: 0.002415685927
A115: 11.9 | B115: 4.3 | C115: 4.5 | D115: 4.9 | E115: 4.5 | F115: 4.8 | G115: 5.2 | H115: 4.9 | I115: 5.3 | J115: 5.8 | K115: 5.9 | L115: 6.3 | M115: 7 | N115: 8.7 | O115: 9.6 | P115: 11 | Z115: 11.9 | AA115: 0.002360270865
A116: 12 | B116: 4.3 | C116: 4.5 | D116: 4.9 | E116: 4.5 | F116: 4.8 | G116: 5.2 | H116: 5 | I116: 5.3 | J116: 5.8 | K116: 5.9 | L116: 6.4 | M116: 7.1 | N116: 8.8 | O116: 9.7 | P116: 11.1 | Z116: 12 | AA116: 0.002306574905
A117: 12.1 | B117: 4.3 | C117: 4.5 | D117: 4.9 | E117: 4.5 | F117: 4.8 | G117: 5.3 | H117: 5 | I117: 5.3 | J117: 5.8 | K117: 5.9 | L117: 6.4 | M117: 7.1 | N117: 8.8 | O117: 9.7 | P117: 11.1 | Z117: 12.1 | AA117: 0.00225453105
A118: 12.2 | B118: 4.3 | C118: 4.6 | D118: 4.9 | E118: 4.6 | F118: 4.8 | G118: 5.3 | H118: 5 | I118: 5.3 | J118: 5.9 | K118: 5.9 | L118: 6.4 | M118: 7.2 | N118: 8.8 | O118: 9.8 | P118: 11.2 | Z118: 12.2 | AA118: 0.002204075438
A119: 12.3 | B119: 4.3 | C119: 4.6 | D119: 5 | E119: 4.6 | F119: 4.9 | G119: 5.3 | H119: 5 | I119: 5.3 | J119: 5.9 | K119: 5.9 | L119: 6.4 | M119: 7.2 | N119: 8.8 | O119: 9.8 | P119: 11.3 | Z119: 12.3 | AA119: 0.002155147172
A120: 12.4 | B120: 4.3 | C120: 4.6 | D120: 5 | E120: 4.6 | F120: 4.9 | G120: 5.3 | H120: 5 | I120: 5.4 | J120: 5.9 | K120: 5.9 | L120: 6.5 | M120: 7.2 | N120: 8.8 | O120: 9.9 | P120: 11.4 | Z120: 12.4 | AA120: 0.002107688156
A121: 12.5 | B121: 4.3 | C121: 4.6 | D121: 5 | E121: 4.6 | F121: 4.9 | G121: 5.4 | H121: 5 | I121: 5.4 | J121: 6 | K121: 5.9 | L121: 6.5 | M121: 7.3 | N121: 8.9 | O121: 9.9 | P121: 11.4 | Z121: 12.5 | AA121: 0.002061642951
A122: 12.6 | B122: 4.3 | C122: 4.6 | D122: 5 | E122: 4.6 | F122: 4.9 | G122: 5.4 | H122: 5 | I122: 5.4 | J122: 6 | K122: 5.9 | L122: 6.5 | M122: 7.3 | N122: 8.9 | O122: 10 | P122: 11.5 | Z122: 12.6 | AA122: 0.002016958629
A123: 12.7 | B123: 4.3 | C123: 4.6 | D123: 5 | E123: 4.6 | F123: 4.9 | G123: 5.4 | H123: 5 | I123: 5.4 | J123: 6 | K123: 6 | L123: 6.5 | M123: 7.4 | N123: 8.9 | O123: 10 | P123: 11.6 | Z123: 12.7 | AA123: 0.001973584641
A124: 12.8 | B124: 4.3 | C124: 4.6 | D124: 5.1 | E124: 4.6 | F124: 4.9 | G124: 5.4 | H124: 5 | I124: 5.4 | J124: 6 | K124: 6 | L124: 6.6 | M124: 7.4 | N124: 8.9 | O124: 10.1 | P124: 11.7 | Z124: 12.8 | AA124: 0.001931472694
A125: 12.9 | B125: 4.3 | C125: 4.7 | D125: 5.1 | E125: 4.6 | F125: 5 | G125: 5.5 | H125: 5 | I125: 5.5 | J125: 6.1 | K125: 6 | L125: 6.6 | M125: 7.5 | N125: 9 | O125: 10.1 | P125: 11.8 | Z125: 12.9 | AA125: 0.001890576634
A126: 13 | B126: 4.4 | C126: 4.7 | D126: 5.1 | E126: 4.6 | F126: 5 | G126: 5.5 | H126: 5 | I126: 5.5 | J126: 6.1 | K126: 6 | L126: 6.6 | M126: 7.5 | N126: 9 | O126: 10.2 | P126: 11.9 | Z126: 13 | AA126: 0.001850852332
A127: 13.1 | B127: 4.4 | C127: 4.7 | D127: 5.1 | E127: 4.6 | F127: 5 | G127: 5.5 | H127: 5 | I127: 5.5 | J127: 6.2 | K127: 6 | L127: 6.6 | M127: 7.6 | N127: 9 | O127: 10.2 | P127: 12 | Z127: 13.1 | AA127: 0.001812257585
A128: 13.2 | B128: 4.4 | C128: 4.7 | D128: 5.2 | E128: 4.6 | F128: 5 | G128: 5.6 | H128: 5 | I128: 5.5 | J128: 6.2 | K128: 6 | L128: 6.7 | M128: 7.6 | N128: 9 | O128: 10.3 | P128: 12.1 | Z128: 13.2 | AA128: 0.001774752017
A129: 13.3 | B129: 4.4 | C129: 4.7 | D129: 5.2 | E129: 4.6 | F129: 5 | G129: 5.6 | H129: 5.1 | I129: 5.5 | J129: 6.2 | K129: 6 | L129: 6.7 | M129: 7.7 | N129: 9.1 | O129: 10.3 | P129: 12.2 | Z129: 13.3 | AA129: 0.001738296984
A130: 13.4 | B130: 4.4 | C130: 4.7 | D130: 5.2 | E130: 4.6 | F130: 5 | G130: 5.6 | H130: 5.1 | I130: 5.6 | J130: 6.3 | K130: 6 | L130: 6.7 | M130: 7.7 | N130: 9.1 | O130: 10.4 | P130: 12.3 | Z130: 13.4 | AA130: 0.00170285549
A131: 13.5 | B131: 4.4 | C131: 4.7 | D131: 5.3 | E131: 4.6 | F131: 5.1 | G131: 5.6 | H131: 5.1 | I131: 5.6 | J131: 6.3 | K131: 6.1 | L131: 6.8 | M131: 7.8 | N131: 9.1 | O131: 10.4 | P131: 12.4 | Z131: 13.5 | AA131: 0.001668392104
A132: 13.6 | B132: 4.4 | C132: 4.8 | D132: 5.3 | E132: 4.7 | F132: 5.1 | G132: 5.7 | H132: 5.1 | I132: 5.6 | J132: 6.3 | K132: 6.1 | L132: 6.8 | M132: 7.8 | N132: 9.1 | O132: 10.5 | P132: 12.5 | Z132: 13.6 | AA132: 0.001634872886
A133: 13.7 | B133: 4.4 | C133: 4.8 | D133: 5.3 | E133: 4.7 | F133: 5.1 | G133: 5.7 | H133: 5.1 | I133: 5.6 | J133: 6.4 | K133: 6.1 | L133: 6.8 | M133: 7.9 | N133: 9.1 | O133: 10.6 | P133: 12.6 | Z133: 13.7 | AA133: 0.001602265308
A134: 13.8 | B134: 4.4 | C134: 4.8 | D134: 5.3 | E134: 4.7 | F134: 5.1 | G134: 5.7 | H134: 5.1 | I134: 5.6 | J134: 6.4 | K134: 6.1 | L134: 6.9 | M134: 8 | N134: 9.2 | O134: 10.6 | P134: 12.7 | Z134: 13.8 | AA134: 0.001570538191
A135: =A134+0.1 -> 13.9 | B135: 4.4 | C135: 4.8 | D135: 5.4 | E135: 4.7 | F135: 5.1 | G135: 5.8 | H135: 5.1 | I135: 5.7 | J135: 6.5 | K135: 6.1 | L135: 6.9 | M135: 8 | N135: 9.2 | O135: 10.7 | P135: 12.8 | Z135: =Z134+0.1 -> 13.9 | AA135: =T_gal(Z135) -> 0.001539661636
A136: 14 | B136: 4.4 | C136: 4.8 | D136: 5.4 | E136: 4.7 | F136: 5.2 | G136: 5.8 | H136: 5.1 | I136: 5.7 | J136: 6.5 | K136: 6.1 | L136: 6.9 | M136: 8.1 | N136: 9.2 | O136: 10.8 | P136: 13 | Z136: 14 | AA136: 0.001509606966
A137: 14.1 | B137: 4.4 | C137: 4.8 | D137: 5.4 | E137: 4.7 | F137: 5.2 | G137: 5.9 | H137: 5.1 | I137: 5.7 | J137: 6.6 | K137: 6.1 | L137: 7 | M137: 8.1 | N137: 9.3 | O137: 10.8 | P137: 13.1 | Z137: 14.1 | AA137: 0.001480346664
A138: 14.2 | B138: 4.4 | C138: 4.9 | D138: 5.5 | E138: 4.7 | F138: 5.2 | G138: 5.9 | H138: 5.1 | I138: 5.7 | J138: 6.6 | K138: 6.1 | L138: 7 | M138: 8.2 | N138: 9.3 | O138: 10.9 | P138: 13.2 | Z138: 14.2 | AA138: 0.001451854324
A139: 14.3 | B139: 4.4 | C139: 4.9 | D139: 5.5 | E139: 4.7 | F139: 5.2 | G139: 5.9 | H139: 5.2 | I139: 5.8 | J139: 6.7 | K139: 6.2 | L139: 7 | M139: 8.3 | N139: 9.3 | O139: 11 | P139: 13.3 | Z139: 14.3 | AA139: 0.00142410459
A140: 14.4 | B140: 4.4 | C140: 4.9 | D140: 5.5 | E140: 4.7 | F140: 5.2 | G140: 6 | H140: 5.2 | I140: 5.8 | J140: 6.7 | K140: 6.2 | L140: 7.1 | M140: 8.4 | N140: 9.3 | O140: 11.1 | P140: 13.5 | Z140: 14.4 | AA140: 0.001397073117
A141: 14.5 | B141: 4.5 | C141: 4.9 | D141: 5.6 | E141: 4.7 | F141: 5.3 | G141: 6 | H141: 5.2 | I141: 5.8 | J141: 6.8 | K141: 6.2 | L141: 7.1 | M141: 8.4 | N141: 9.4 | O141: 11.1 | P141: 13.6 | Z141: 14.5 | AA141: 0.001370736518
A142: 14.6 | B142: 4.5 | C142: 4.9 | D142: 5.6 | E142: 4.7 | F142: 5.3 | G142: 6.1 | H142: 5.2 | I142: 5.9 | J142: 6.8 | K142: 6.2 | L142: 7.2 | M142: 8.5 | N142: 9.4 | O142: 11.2 | P142: 13.7 | Z142: 14.6 | AA142: 0.001345072321
A143: 14.7 | B143: 4.5 | C143: 5 | D143: 5.7 | E143: 4.7 | F143: 5.3 | G143: 6.1 | H143: 5.2 | I143: 5.9 | J143: 6.9 | K143: 6.2 | L143: 7.2 | M143: 8.6 | N143: 9.4 | O143: 11.3 | P143: 13.9 | Z143: 14.7 | AA143: 0.001320058928
A144: 14.8 | B144: 4.5 | C144: 5 | D144: 5.7 | E144: 4.8 | F144: 5.3 | G144: 6.2 | H144: 5.2 | I144: 5.9 | J144: 6.9 | K144: 6.2 | L144: 7.2 | M144: 8.7 | N144: 9.5 | O144: 11.4 | P144: 14 | Z144: 14.8 | AA144: 0.001295675575
A145: 14.9 | B145: 4.5 | C145: 5 | D145: 5.7 | E145: 4.8 | F145: 5.4 | G145: 6.2 | H145: 5.2 | I145: 6 | J145: 7 | K145: 6.3 | L145: 7.3 | M145: 8.7 | N145: 9.5 | O145: 11.5 | P145: 14.2 | Z145: 14.9 | AA145: 0.001271902296
A146: 15 | B146: 4.5 | C146: 5 | D146: 5.8 | E146: 4.8 | F146: 5.4 | G146: 6.3 | H146: 5.2 | I146: 6 | J146: 7 | K146: 6.3 | L146: 7.3 | M146: 8.8 | N146: 9.5 | O146: 11.5 | P146: 14.4 | Z146: 15 | AA146: 0.001248719883
A147: 15.1 | B147: 4.5 | C147: 5.1 | D147: 5.8 | E147: 4.8 | F147: 5.4 | G147: 6.3 | H147: 5.2 | I147: 6 | J147: 7.1 | K147: 6.3 | L147: 7.4 | M147: 8.9 | N147: 9.5 | O147: 11.6 | P147: 14.5 | Z147: 15.1 | AA147: 0.001226109858
A148: 15.2 | B148: 4.5 | C148: 5.1 | D148: 5.9 | E148: 4.8 | F148: 5.4 | G148: 6.4 | H148: 5.3 | I148: 6.1 | J148: 7.2 | K148: 6.3 | L148: 7.4 | M148: 9 | N148: 9.6 | O148: 11.7 | P148: 14.7 | Z148: 15.2 | AA148: 0.001204054437
A149: 15.3 | B149: 4.5 | C149: 5.1 | D149: 5.9 | E149: 4.8 | F149: 5.5 | G149: 6.4 | H149: 5.3 | I149: 6.1 | J149: 7.2 | K149: 6.3 | L149: 7.5 | M149: 9.1 | N149: 9.6 | O149: 11.8 | P149: 14.9 | Z149: 15.3 | AA149: 0.0011825365
A150: 15.4 | B150: 4.5 | C150: 5.1 | D150: 6 | E150: 4.8 | F150: 5.5 | G150: 6.5 | H150: 5.3 | I150: 6.1 | J150: 7.3 | K150: 6.3 | L150: 7.5 | M150: 9.2 | N150: 9.6 | O150: 11.9 | P150: 15.1 | Z150: 15.4 | AA150: 0.001161539563
A151: 15.5 | B151: 4.5 | C151: 5.2 | D151: 6 | E151: 4.8 | F151: 5.5 | G151: 6.5 | H151: 5.3 | I151: 6.2 | J151: 7.4 | K151: 6.4 | L151: 7.6 | M151: 9.3 | N151: 9.7 | O151: 12 | P151: 15.2 | Z151: 15.5 | AA151: 0.001141047751
A152: 15.6 | B152: 4.5 | C152: 5.2 | D152: 6.1 | E152: 4.8 | F152: 5.6 | G152: 6.6 | H152: 5.3 | I152: 6.2 | J152: 7.5 | K152: 6.4 | L152: 7.6 | M152: 9.4 | N152: 9.7 | O152: 12.1 | P152: 15.4 | Z152: 15.6 | AA152: 0.001121045769
A153: 15.7 | B153: 4.6 | C153: 5.2 | D153: 6.1 | E153: 4.8 | F153: 5.6 | G153: 6.7 | H153: 5.3 | I153: 6.3 | J153: 7.5 | K153: 6.4 | L153: 7.7 | M153: 9.5 | N153: 9.8 | O153: 12.2 | P153: 15.6 | Z153: 15.7 | AA153: 0.00110151888
A154: 15.8 | B154: 4.6 | C154: 5.2 | D154: 6.2 | E154: 4.9 | F154: 5.6 | G154: 6.7 | H154: 5.3 | I154: 6.3 | J154: 7.6 | K154: 6.4 | L154: 7.8 | M154: 9.6 | N154: 9.8 | O154: 12.4 | P154: 15.9 | Z154: 15.8 | AA154: 0.00108245288
A155: 15.9 | B155: 4.6 | C155: 5.3 | D155: 6.2 | E155: 4.9 | F155: 5.7 | G155: 6.8 | H155: 5.3 | I155: 6.3 | J155: 7.7 | K155: 6.4 | L155: 7.8 | M155: 9.7 | N155: 9.8 | O155: 12.5 | P155: 16.1 | Z155: 15.9 | AA155: 0.001063834076
A156: 16 | B156: 4.6 | C156: 5.3 | D156: 6.3 | E156: 4.9 | F156: 5.7 | G156: 6.9 | H156: 5.4 | I156: 6.4 | J156: 7.8 | K156: 6.5 | L156: 7.9 | M156: 9.9 | N156: 9.9 | O156: 12.6 | P156: 16.3 | Z156: 16 | AA156: 0.001045649266
A157: 16.1 | B157: 4.6 | C157: 5.3 | D157: 6.4 | E157: 4.9 | F157: 5.8 | G157: 6.9 | H157: 5.4 | I157: 6.4 | J157: 7.9 | K157: 6.5 | L157: 8 | M157: 10 | N157: 9.9 | O157: 12.7 | P157: 16.5 | Z157: 16.1 | AA157: 0.001027885714
A158: 16.2 | B158: 4.6 | C158: 5.4 | D158: 6.4 | E158: 4.9 | F158: 5.8 | G158: 7 | H158: 5.4 | I158: 6.5 | J158: 8 | K158: 6.5 | L158: 8 | M158: 10.1 | N158: 9.9 | O158: 12.9 | P158: 16.8 | Z158: 16.2 | AA158: 0.001010531136
A159: 16.3 | B159: 4.6 | C159: 5.4 | D159: 6.5 | E159: 4.9 | F159: 5.8 | G159: 7.1 | H159: 5.4 | I159: 6.5 | J159: 8.1 | K159: 6.5 | L159: 8.1 | M159: 10.3 | N159: 10 | O159: 13 | P159: 17 | Z159: 16.3 | AA159: 0.0009935736771
A160: 16.4 | B160: 4.6 | C160: 5.5 | D160: 6.6 | E160: 4.9 | F160: 5.9 | G160: 7.2 | H160: 5.4 | I160: 6.6 | J160: 8.2 | K160: 6.5 | L160: 8.2 | M160: 10.4 | N160: 10 | O160: 13.1 | P160: 17.3 | Z160: 16.4 | AA160: 0.0009770018974
A161: 16.5 | B161: 4.6 | C161: 5.5 | D161: 6.7 | E161: 4.9 | F161: 5.9 | G161: 7.3 | H161: 5.4 | I161: 6.6 | J161: 8.3 | K161: 6.6 | L161: 8.2 | M161: 10.5 | N161: 10.1 | O161: 13.3 | P161: 17.6 | Z161: 16.5 | AA161: 0.0009608047527
A162: 16.6 | B162: 4.7 | C162: 5.5 | D162: 6.7 | E162: 5 | F162: 6 | G162: 7.3 | H162: 5.5 | I162: 6.7 | J162: 8.4 | K162: 6.6 | L162: 8.3 | M162: 10.7 | N162: 10.1 | O162: 13.4 | P162: 17.9 | Z162: 16.6 | AA162: 0.0009449715797
A163: 16.7 | B163: 4.7 | C163: 5.6 | D163: 6.8 | E163: 5 | F163: 6 | G163: 7.4 | H163: 5.5 | I163: 6.8 | J163: 8.5 | K163: 6.6 | L163: 8.4 | M163: 10.9 | N163: 10.2 | O163: 13.6 | P163: 18.2 | Z163: 16.7 | AA163: 0.0009294920801
A164: 16.8 | B164: 4.7 | C164: 5.6 | D164: 6.9 | E164: 5 | F164: 6.1 | G164: 7.5 | H164: 5.5 | I164: 6.8 | J164: 8.6 | K164: 6.6 | L164: 8.5 | M164: 11 | N164: 10.2 | O164: 13.7 | P164: 18.5 | Z164: 16.8 | AA164: 0.0009143563062
A165: 16.9 | B165: 4.7 | C165: 5.7 | D165: 7 | E165: 5 | F165: 6.1 | G165: 7.6 | H165: 5.5 | I165: 6.9 | J165: 8.7 | K165: 6.7 | L165: 8.6 | M165: 11.2 | N165: 10.3 | O165: 13.9 | P165: 18.8 | Z165: 16.9 | AA165: 0.0008995546474
A166: 17 | B166: 4.7 | C166: 5.7 | D166: 7.1 | E166: 5 | F166: 6.2 | G166: 7.8 | H166: 5.5 | I166: 7 | J166: 8.9 | K166: 6.7 | L166: 8.7 | M166: 11.4 | N166: 10.3 | O166: 14.1 | P166: 19.2 | Z166: 17 | AA166: 0.0008850778159
A167: 17.1 | B167: 4.7 | C167: 5.8 | D167: 7.2 | E167: 5 | F167: 6.2 | G167: 7.9 | H167: 5.5 | I167: 7 | J167: 9 | K167: 6.7 | L167: 8.8 | M167: 11.6 | N167: 10.4 | O167: 14.3 | P167: 19.5 | Z167: 17.1 | AA167: 0.0008709168351
A168: 17.2 | B168: 4.7 | C168: 5.8 | D168: 7.3 | E168: 5 | F168: 6.3 | G168: 8 | H168: 5.6 | I168: 7.1 | J168: 9.2 | K168: 6.7 | L168: 8.9 | M168: 11.8 | N168: 10.4 | O168: 14.5 | P168: 19.9 | Z168: 17.2 | AA168: 0.0008570630268
A169: 17.3 | B169: 4.7 | C169: 5.9 | D169: 7.4 | E169: 5.1 | F169: 6.4 | G169: 8.1 | H169: 5.6 | I169: 7.2 | J169: 9.3 | K169: 6.8 | L169: 9 | M169: 12 | N169: 10.5 | O169: 14.7 | P169: 20.3 | Z169: 17.3 | AA169: 0.0008435079996
A170: 17.4 | B170: 4.8 | C170: 5.9 | D170: 7.5 | E170: 5.1 | F170: 6.4 | G170: 8.2 | H170: 5.6 | I170: 7.3 | J170: 9.5 | K170: 6.8 | L170: 9.1 | M170: 12.2 | N170: 10.5 | O170: 14.9 | P170: 20.7 | Z170: 17.4 | AA170: 0.0008302436383
A171: 17.5 | B171: 4.8 | C171: 6 | D171: 7.6 | E171: 5.1 | F171: 6.5 | G171: 8.4 | H171: 5.6 | I171: 7.3 | J171: 9.6 | K171: 6.8 | L171: 9.2 | M171: 12.4 | N171: 10.6 | O171: 15.1 | P171: 21.2 | Z171: 17.5 | AA171: 0.0008172620927
A172: 17.6 | B172: 4.8 | C172: 6.1 | D172: 7.7 | E172: 5.1 | F172: 6.6 | G172: 8.5 | H172: 5.7 | I172: 7.4 | J172: 9.8 | K172: 6.9 | L172: 9.4 | M172: 12.7 | N172: 10.6 | O172: 15.4 | P172: 21.6 | Z172: 17.6 | AA172: 0.0008045557681
A173: 17.7 | B173: 4.8 | C173: 6.1 | D173: 7.9 | E173: 5.1 | F173: 6.6 | G173: 8.7 | H173: 5.7 | I173: 7.5 | J173: 10 | K173: 6.9 | L173: 9.5 | M173: 12.9 | N173: 10.7 | O173: 15.6 | P173: 22.1 | Z173: 17.7 | AA173: 0.0007921173152
A174: 17.8 | B174: 4.8 | C174: 6.2 | D174: 8 | E174: 5.2 | F174: 6.7 | G174: 8.8 | H174: 5.7 | I174: 7.6 | J174: 10.2 | K174: 6.9 | L174: 9.6 | M174: 13.2 | N174: 10.8 | O174: 15.9 | P174: 22.6 | Z174: 17.8 | AA174: 0.0007799396207
A175: 17.9 | B175: 4.8 | C175: 6.3 | D175: 8.2 | E175: 5.2 | F175: 6.8 | G175: 9 | H175: 5.7 | I175: 7.7 | J175: 10.4 | K175: 7 | L175: 9.8 | M175: 13.5 | N175: 10.8 | O175: 16.1 | P175: 23.1 | Z175: 17.9 | AA175: 0.000768015799
A176: 18 | B176: 4.9 | C176: 6.3 | D176: 8.3 | E176: 5.2 | F176: 6.9 | G176: 9.2 | H176: 5.8 | I176: 7.8 | J176: 10.6 | K176: 7 | L176: 9.9 | M176: 13.8 | N176: 10.9 | O176: 16.4 | P176: 23.7 | Z176: 18 | AA176: 0.0007563391833
A177: 18.1 | B177: 4.9 | C177: 6.4 | D177: 8.5 | E177: 5.2 | F177: 7 | G177: 9.4 | H177: 5.8 | I177: 7.9 | J177: 10.8 | K177: 7 | L177: 10.1 | M177: 14.1 | N177: 11 | O177: 16.7 | P177: 24.3 | Z177: 18.1 | AA177: 0.0007449033174
A178: 18.2 | B178: 4.9 | C178: 6.5 | D178: 8.6 | E178: 5.2 | F178: 7.1 | G178: 9.6 | H178: 5.8 | I178: 8.1 | J178: 11.1 | K178: 7.1 | L178: 10.2 | M178: 14.5 | N178: 11 | O178: 17 | P178: 24.9 | Z178: 18.2 | AA178: 0.0007337019483
A179: 18.3 | B179: 4.9 | C179: 6.6 | D179: 8.8 | E179: 5.3 | F179: 7.2 | G179: 9.8 | H179: 5.8 | I179: 8.2 | J179: 11.3 | K179: 7.1 | L179: 10.4 | M179: 14.8 | N179: 11.1 | O179: 17.4 | P179: 25.5 | Z179: 18.3 | AA179: 0.0007227290184
A180: 18.4 | B180: 4.9 | C180: 6.7 | D180: 9 | E180: 5.3 | F180: 7.3 | G180: 10 | H180: 5.9 | I180: 8.3 | J180: 11.6 | K180: 7.2 | L180: 10.6 | M180: 15.2 | N180: 11.2 | O180: 17.7 | P180: 26.2 | Z180: 18.4 | AA180: 0.0007119786587
A181: 18.5 | B181: 5 | C181: 6.8 | D181: 9.2 | E181: 5.3 | F181: 7.4 | G181: 10.2 | H181: 5.9 | I181: 8.5 | J181: 11.9 | K181: 7.2 | L181: 10.8 | M181: 15.6 | N181: 11.3 | O181: 18.1 | P181: 27 | Z181: 18.5 | AA181: 0.0007014451814
A182: 18.6 | B182: 5 | C182: 6.9 | D182: 9.4 | E182: 5.3 | F182: 7.5 | G182: 10.5 | H182: 5.9 | I182: 8.6 | J182: 12.2 | K182: 7.3 | L182: 11 | M182: 16 | N182: 11.4 | O182: 18.5 | P182: 27.8 | Z182: 18.6 | AA182: 0.000691123074
A183: 18.7 | B183: 5 | C183: 7 | D183: 9.7 | E183: 5.4 | F183: 7.7 | G183: 10.7 | H183: 6 | I183: 8.8 | J183: 12.5 | K183: 7.3 | L183: 11.2 | M183: 16.5 | N183: 11.5 | O183: 18.9 | P183: 28.6 | Z183: 18.7 | AA183: 0.0006810069926
A184: 18.8 | B184: 5 | C184: 7.1 | D184: 9.9 | E184: 5.4 | F184: 7.8 | G184: 11 | H184: 6 | I184: 8.9 | J184: 12.8 | K184: 7.4 | L184: 11.5 | M184: 16.9 | N184: 11.6 | O184: 19.3 | P184: 29.4 | Z184: 18.8 | AA184: 0.000671091756
A185: 18.9 | B185: 5.1 | C185: 7.3 | D185: 10.2 | E185: 5.4 | F185: 8 | G185: 11.3 | H185: 6 | I185: 9.1 | J185: 13.2 | K185: 7.4 | L185: 11.7 | M185: 17.4 | N185: 11.7 | O185: 19.8 | P185: 30.4 | Z185: 18.9 | AA185: 0.0006613723399
A186: 19 | B186: 5.1 | C186: 7.4 | D186: 10.4 | E186: 5.5 | F186: 8.1 | G186: 11.6 | H186: 6.1 | I186: 9.3 | J186: 13.6 | K186: 7.5 | L186: 12 | M186: 18 | N186: 11.8 | O186: 20.3 | P186: 31.3 | Z186: 19 | AA186: 0.0006518438714
A187: 19.1 | B187: 5.1 | C187: 7.5 | D187: 10.7 | E187: 5.5 | F187: 8.3 | G187: 12 | H187: 6.1 | I187: 9.5 | J187: 14 | K187: 7.5 | L187: 12.3 | M187: 18.5 | N187: 11.9 | O187: 20.8 | P187: 32.4 | Z187: 19.1 | AA187: 0.0006425016234
A188: 19.2 | B188: 5.2 | C188: 7.7 | D188: 11.1 | E188: 5.5 | F188: 8.4 | G188: 12.3 | H188: 6.2 | I188: 9.7 | J188: 14.4 | K188: 7.6 | L188: 12.6 | M188: 19.1 | N188: 12 | O188: 21.4 | P188: 33.5 | Z188: 19.2 | AA188: 0.0006333410101
A189: 19.3 | B189: 5.2 | C189: 7.8 | D189: 11.4 | E189: 5.6 | F189: 8.6 | G189: 12.7 | H189: 6.2 | I189: 9.9 | J189: 14.9 | K189: 7.6 | L189: 12.9 | M189: 19.8 | N189: 12.1 | O189: 22 | P189: 34.7 | Z189: 19.3 | AA189: 0.0006243575813
A190: 19.4 | B190: 5.2 | C190: 8 | D190: 11.7 | E190: 5.6 | F190: 8.8 | G190: 13.1 | H190: 6.3 | I190: 10.2 | J190: 15.4 | K190: 7.7 | L190: 13.2 | M190: 20.5 | N190: 12.2 | O190: 22.6 | P190: 35.9 | Z190: 19.4 | AA190: 0.0006155470183
A191: 19.5 | B191: 5.3 | C191: 8.2 | D191: 12.1 | E191: 5.7 | F191: 9 | G191: 13.5 | H191: 6.3 | I191: 10.4 | J191: 15.9 | K191: 7.8 | L191: 13.6 | M191: 21.2 | N191: 12.4 | O191: 23.3 | P191: 37.2 | Z191: 19.5 | AA191: 0.0006069051294
A192: 19.6 | B192: 5.3 | C192: 8.4 | D192: 12.5 | E192: 5.7 | F192: 9.3 | G192: 14 | H192: 6.4 | I192: 10.7 | J192: 16.5 | K192: 7.9 | L192: 14 | M192: 22 | N192: 12.5 | O192: 24 | P192: 38.6 | Z192: 19.6 | AA192: 0.0005984278448
A193: 19.7 | B193: 5.3 | C193: 8.6 | D193: 12.9 | E193: 5.7 | F193: 9.5 | G193: 14.5 | H193: 6.4 | I193: 11 | J193: 17.1 | K193: 7.9 | L193: 14.4 | M193: 22.8 | N193: 12.7 | O193: 24.7 | P193: 40.1 | Z193: 19.7 | AA193: 0.0005901112135
A194: 19.8 | B194: 5.4 | C194: 8.8 | D194: 13.4 | E194: 5.8 | F194: 9.7 | G194: 15 | H194: 6.5 | I194: 11.3 | J194: 17.7 | K194: 8 | L194: 14.8 | M194: 23.7 | N194: 12.8 | O194: 25.5 | P194: 41.7 | Z194: 19.8 | AA194: 0.0005819513983
A195: 19.9 | B195: 5.4 | C195: 9 | D195: 13.9 | E195: 5.8 | F195: 10 | G195: 15.6 | H195: 6.5 | I195: 11.6 | J195: 18.4 | K195: 8.1 | L195: 15.2 | M195: 24.6 | N195: 13 | O195: 26.3 | P195: 43.4 | Z195: 19.9 | AA195: 0.0005739446727
A196: 20 | B196: 5.5 | C196: 9.3 | D196: 14.4 | E196: 5.9 | F196: 10.3 | G196: 16.2 | H196: 6.6 | I196: 12 | J196: 19.1 | K196: 8.2 | L196: 15.7 | M196: 25.6 | N196: 13.2 | O196: 27.2 | P196: 45.2 | Z196: 20 | AA196: 0.0005660874166
A197: 20.1 | B197: 5.5 | C197: 9.6 | D197: 15 | E197: 6 | F197: 10.6 | G197: 16.8 | H197: 6.7 | I197: 12.3 | J197: 19.9 | K197: 8.3 | L197: 16.2 | M197: 26.7 | N197: 13.4 | O197: 28.2 | P197: 47.1 | Z197: 20.1 | AA197: 0.0005583761133
A198: 20.2 | B198: 5.6 | C198: 9.8 | D198: 15.6 | E198: 6 | F198: 10.9 | G198: 17.5 | H198: 6.8 | I198: 12.7 | J198: 20.7 | K198: 8.4 | L198: 16.8 | M198: 27.8 | N198: 13.6 | O198: 29.2 | P198: 49.1 | Z198: 20.2 | AA198: 0.0005508073455
A199: =A198+0.1 -> 20.3 | B199: 5.6 | C199: 10.1 | D199: 16.2 | E199: 6.1 | F199: 11.3 | G199: 18.2 | H199: 6.8 | I199: 13.1 | J199: 21.6 | K199: 8.5 | L199: 17.3 | M199: 29 | N199: 13.8 | O199: 30.2 | P199: 51.2 | Z199: =Z198+0.1 -> 20.3 | AA199: =T_gal(Z199) -> 0.0005433777924
A200: 20.4 | B200: 5.7 | C200: 10.4 | D200: 16.9 | E200: 6.1 | F200: 11.6 | G200: 19 | H200: 6.9 | I200: 13.6 | J200: 22.5 | K200: 8.6 | L200: 18 | M200: 30.3 | N200: 14 | O200: 31.3 | P200: 53.4 | Z200: 20.4 | AA200: 0.0005360842264
A201: 20.5 | B201: 5.7 | C201: 10.8 | D201: 17.6 | E201: 6.2 | F201: 12 | G201: 19.8 | H201: 7 | I201: 14 | J201: 23.5 | K201: 8.8 | L201: 18.6 | M201: 31.7 | N201: 14.2 | O201: 32.5 | P201: 55.8 | Z201: 20.5 | AA201: 0.0005289235101
... 995 more rows

Sheet Data - Antenna
A1: Antenna Efficiency, Spillover Noise, and Surface Loss Temperatures vs. Frequency, Elevation Angle, ngVLA Bands 1-6
A3: Freq. (GHz) | B3: ηA [1] | C3: Tspill vs. Antenna Elevation, K [2,4,5] | T3: Tsu, K [6] | V3: Band 2 (CSIRO), Tspill Data
C4: 15 | D4: 20 | E4: 25 | F4: 30 | G4: 35 | H4: 40 | I4: 45 | J4: 50 | K4: 55 | L4: 60 | M4: 65 | N4: 70 | O4: 75 | P4: 80 | Q4: 85 | R4: 90 | S4: Avg. | V4: Freq. | W4: Tspill, K [3]
A5: 1.2 | B5: 0.79937 | C5: 3.4702 | D5: 3.9237 | E5: 4.2931 | F5: 4.5985 | G5: 4.8599 | H5: 5.0923 | I5: 5.3001 | J5: 5.4965 | K5: 5.6977 | L5: 5.9072 | M5: 6.1285 | N5: 6.364 | O5: 6.6256 | P5: 6.9445 | Q5: 7.3902 | R5: 8.1133 | S5: 5.63783125 | T5: 0.006 | V5: (GHz) | W5: 15° | X5: 30° | Y5: 45° | Z5: 60° | AA5: 90°
A6: 1.4 | B6: 0.81606 | C6: 2.7147 | D6: 3.132 | E6: 3.4728 | F6: 3.7587 | G6: 4.0029 | H6: 4.215 | I6: 4.4025 | J6: 4.5771 | K6: 4.7474 | L6: 4.9206 | M6: 5.0994 | N6: 5.2872 | O6: 5.4957 | P6: 5.75 | Q6: 6.114 | R6: 6.7393 | S6: 4.65183125 | T6: 0.007 | V6: 3.4 | W6: =8.4*1.056 -> 8.8704 | X6: =8.2*1.056 -> 8.6592 | Y6: =7.8*1.056 -> 8.2368 | Z6: =7*1.056 -> 7.392 | AA6: =4.2*1.056 -> 4.4352
A7: 1.6 | B7: 0.84093 | C7: 1.8646 | D7: 2.189 | E7: 2.4599 | F7: 2.6885 | G7: 2.8857 | H7: 3.0584 | I7: 3.2093 | J7: 3.3482 | K7: 3.4829 | L7: 3.6181 | M7: 3.7561 | N7: 3.9 | O7: 4.0608 | P7: 4.2592 | Q7: 4.549 | R7: 5.0609 | S7: 3.3994125 | T7: 0.008 | V7: 4.8 | W7: 4 | X7: 4 | Y7: 3.9 | Z7: 3.6 | AA7: 2.5
A8: 1.8 | B8: 0.86197 | C8: 1.4943 | D8: 1.7701 | E8: 2 | F8: 2.195 | G8: 2.3633 | H8: 2.5116 | I8: 2.6429 | J8: 2.764 | K8: 2.8817 | L8: 3.0005 | M8: 3.1214 | N8: 3.2457 | O8: 3.3815 | P8: 3.547 | Q8: 3.7873 | R8: 4.2146 | S8: 2.80755625 | T8: 0.009 | V8: 5.8 | W8: 5 | X8: 4.9 | Y8: 4.5 | Z8: 4 | AA8: 2.3
A9: 2 | B9: 0.88573 | C9: 0.8707 | D9: 1.0231 | E9: 1.1532 | F9: 1.2669 | G9: 1.3682 | H9: 1.4602 | I9: 1.5439 | J9: 1.6235 | K9: 1.7034 | L9: 1.787 | M9: 1.8745 | N9: 1.965 | O9: 2.0623 | P9: 2.177 | Q9: 2.3368 | R9: 2.6096 | S9: 1.67658125 | T9: 0.01 | V9: 7.4 | W9: 2.9 | X9: 2.8 | Y9: 2.7 | Z9: 2.3 | AA9: 1.3
A10: 2.2 | B10: 0.88182 | C10: 0.4902 | D10: 0.5723 | E10: 0.6439 | F10: 0.7076 | G10: 0.7657 | H10: 0.8195 | I10: 0.8698 | J10: 0.9188 | K10: 0.9689 | L10: 1.0223 | M10: 1.0793 | N10: 1.1395 | O10: 1.2051 | P10: 1.2831 | Q10: 1.391 | R10: 1.5731 | S10: 0.96563125 | T10: 0.011 | V10: 9.6 | W10: 3.7 | X10: 3.7 | Y10: 3.5 | Z10: 3 | AA10: 1.7
A11: 2.5 | B11: 0.86684 | C11: 0.5078 | D11: 0.5953 | E11: 0.6679 | F11: 0.7299 | G11: 0.7841 | H11: 0.8327 | I11: 0.8767 | J11: 0.9185 | K11: 0.9606 | L11: 1.0049 | M11: 1.0519 | N11: 1.1013 | O11: 1.1562 | P11: 1.2234 | Q11: 1.3214 | R11: 1.4974 | S11: 0.951875 | T11: 0.0125 | V11: 12.3 | W11: 2.6 | X11: 2.6 | Y11: 2.4 | Z11: 2.1 | AA11: 1.2
A12: 2.8 | B12: 0.83787 | C12: 0.3363 | D12: 0.3991 | E12: 0.4506 | F12: 0.4946 | G12: 0.5334 | H12: 0.5687 | I12: 0.601 | J12: 0.6319 | K12: 0.6626 | L12: 0.6944 | M12: 0.7276 | N12: 0.7636 | O12: 0.8055 | P12: 0.861 | Q12: 0.9473 | R12: 1.1066 | S12: 0.6615125 | T12: 0.014
A13: 3.1 | B13: 0.79443 | C13: 0.1584 | D13: 0.1929 | E13: 0.2209 | F13: 0.2445 | G13: 0.2654 | H13: 0.2844 | I13: 0.3019 | J13: 0.3189 | K13: 0.3365 | L13: 0.3554 | M13: 0.3758 | N13: 0.3978 | O13: 0.4226 | P13: 0.4534 | Q13: 0.4985 | R13: 0.5797 | S13: 0.3379375 | T13: 0.0155
A14: 3.5 | B14: 0.65401 | C14: 0.1246 | D14: 0.1493 | E14: 0.1677 | F14: 0.1816 | G14: 0.1926 | H14: 0.2012 | I14: 0.2081 | J14: 0.214 | K14: 0.2192 | L14: 0.224 | M14: 0.2288 | N14: 0.234 | O14: 0.2405 | P14: 0.2501 | Q14: 0.2676 | R14: 0.3081 | S14: 0.2132125 | T14: 0.0175
A15: 3.4 | B15: =0.863*ngVLA7_Eff_SF -> 0.922547 | C15: 8.9 | F15: 8.7 | I15: 8.2 | L15: 7.4 | R15: 4.4 | S15: 7.12 | T15: 0.01755
A16: 4.1 | B16: =0.873*ngVLA7_Eff_SF -> 0.933237 | C16: 6 | F16: 5.95 | I16: 5.8 | L16: 5.3 | R16: 3.4 | S16: 5.29 | T16: 0.0205
A17: 4.7 | B17: =0.872*ngVLA7_Eff_SF -> 0.932168 | C17: 4 | F17: 4 | I17: 3.9 | L17: 3.75 | R17: 2.6 | S17: 3.65 | T17: 0.0235
A18: 5.4 | B18: =0.87*ngVLA7_Eff_SF -> 0.93003 | C18: 4.7 | F18: 4.6 | I18: 4.3 | L18: 3.8 | R18: 2.4 | S18: 3.96 | T18: 0.027
A19: 6.2 | B19: =0.877*ngVLA7_Eff_SF -> 0.937513 | C19: 4.6 | F19: 4.45 | I19: 4 | L19: 3.6 | R19: 2 | S19: 3.73 | T19: 0.031
A20: 7.2 | B20: =0.881*ngVLA7_Eff_SF -> 0.941789 | C20: 3 | F20: 2.9 | I20: 2.75 | L20: 2.4 | R20: 1.35 | S20: 2.48 | T20: 0.036
A21: 8.4 | B21: =0.88*ngVLA7_Eff_SF -> 0.94072 | C21: 3.2 | F21: 3.1 | I21: 3 | L21: 2.55 | R21: 1.5 | S21: 2.67 | T21: 0.042
A22: 9.6 | B22: =0.891*ngVLA7_Eff_SF -> 0.952479 | C22: 3.75 | F22: 3.8 | I22: 3.5 | L22: 3 | R22: 1.7 | S22: 3.15 | T22: 0.048
A23: 11 | B23: =0.883*ngVLA7_Eff_SF -> 0.943927 | C23: 3.25 | F23: 3.3 | I23: 3 | L23: 2.6 | R23: 1.5 | S23: 2.73 | T23: 0.055
A24: 12.3 | B24: =0.868*ngVLA7_Eff_SF -> 0.927892 | C24: 2.6 | F24: 2.6 | I24: 2.4 | L24: 2.1 | R24: 1.2 | S24: 2.18 | T24: 0.06145
A25: 12.3 | B25: 0.9341 | C25: 0.5388 | D25: 0.6545 | E25: 0.7452 | F25: 0.8215 | G25: 0.8881 | H25: 0.9478 | I25: 1.0015 | J25: 1.052 | K25: 1.102 | L25: 1.154 | M25: 1.2128 | N25: 1.2851 | O25: 1.3936 | P25: 1.5565 | Q25: 1.8013 | R25: 2.1724 | S25: 1.14544375 | T25: 0.0615
A26: 13.1 | B26: 0.94044 | C26: 0.4804 | D26: 0.5859 | E26: 0.6688 | F26: 0.7389 | G26: 0.8004 | H26: 0.856 | I26: 0.9062 | J26: 0.9536 | K26: 1.0009 | L26: 1.0503 | M26: 1.1067 | N26: 1.1769 | O26: 1.2834 | P26: 1.4417 | Q26: 1.6773 | R26: 2.029 | S26: 1.047275 | T26: 0.0655
A27: 14 | B27: 0.94568 | C27: 0.4466 | D27: 0.5484 | E27: 0.6283 | F27: 0.6959 | G27: 0.7554 | H27: 0.8093 | I27: 0.8576 | J27: 0.9035 | K27: 0.9492 | L27: 0.9971 | M27: 1.0518 | N27: 1.1202 | O27: 1.2243 | P27: 1.3764 | Q27: 1.6007 | R27: 1.9338 | S27: 0.99365625 | T27: 0.07
A28: 15 | B28: 0.94977 | C28: 0.4139 | D28: 0.5179 | E28: 0.5982 | F28: 0.6656 | G28: 0.7245 | H28: 0.7774 | I28: 0.8246 | J28: 0.8693 | K28: 0.9136 | L28: 0.9598 | M28: 1.0124 | N28: 1.0777 | O28: 1.1769 | P28: 1.3187 | Q28: 1.527 | R28: 1.8395 | S28: 0.9510625 | T28: 0.075
A29: 16 | B29: 0.95369 | C29: 0.3699 | D29: 0.4742 | E29: 0.5533 | F29: 0.619 | G29: 0.6761 | H29: 0.7271 | I29: 0.7723 | J29: 0.8149 | K29: 0.857 | L29: 0.9009 | M29: 0.9509 | N29: 1.0131 | O29: 1.1075 | P29: 1.2402 | Q29: 1.4343 | R29: 1.7289 | S29: 0.889975 | T29: 0.08
A30: 17 | B30: 0.95721 | C30: 0.3483 | D30: 0.4567 | E30: 0.5371 | F30: 0.6034 | G30: 0.6605 | H30: 0.7113 | I30: 0.756 | J30: 0.798 | K30: 0.8396 | L30: 0.8831 | M30: 0.9328 | N30: 0.9959 | O30: 1.0927 | P30: 1.2259 | Q30: 1.4192 | R30: 1.7121 | S30: 0.8732875 | T30: 0.085
A31: 18 | B31: 0.95955 | C31: 0.3423 | D31: 0.4567 | E31: 0.5409 | F31: 0.609 | G31: 0.6671 | H31: 0.719 | I31: 0.7647 | J31: 0.8076 | K31: 0.8503 | L31: 0.8955 | M31: 0.9479 | N31: 1.0156 | O31: 1.1204 | P31: 1.2605 | Q31: 1.461 | R31: 1.7641 | S31: 0.8889125 | T31: 0.09
A32: 18.9 | B32: 0.96108 | C32: 0.3361 | D32: 0.4618 | E32: 0.551 | F32: 0.622 | G32: 0.6827 | H32: 0.7373 | I32: 0.7847 | J32: 0.8295 | K32: 0.8745 | L32: 0.9225 | M32: 0.9787 | N32: 1.0519 | O32: 1.1643 | P32: 1.3096 | Q32: 1.5136 | R32: 1.8202 | S32: 0.915025 | T32: 0.0945
A33: 19.7 | B33: 0.96025 | C33: 0.2912 | D33: 0.4311 | E33: 0.5277 | F33: 0.6041 | G33: 0.669 | H33: 0.7263 | I33: 0.7761 | J33: 0.8235 | K33: 0.872 | L33: 0.9239 | M33: 0.9849 | N33: 1.0645 | O33: 1.1848 | P33: 1.3362 | Q33: 1.5461 | R33: 1.8609 | S33: 0.91389375 | T33: 0.0985
A34: 20.5 | B34: 0.95699 | C34: 0.1765 | D34: 0.341 | E34: 0.4506 | F34: 0.5336 | G34: 0.6032 | H34: 0.6648 | I34: 0.7188 | J34: 0.7701 | K34: 0.8232 | L34: 0.8805 | M34: 0.9496 | N34: 1.0393 | O34: 1.1724 | P34: 1.3372 | Q34: 1.5637 | R34: 1.9005 | S34: 0.8703125 | T34: 0.1025
A35: 20.5 | B35: 0.93637 | C35: 0.2945 | D35: 0.542 | E35: 0.6976 | F35: 0.8116 | G35: 0.9082 | H35: 0.9938 | I35: 1.0698 | J35: 1.1431 | K35: 1.2222 | L35: 1.3105 | M35: 1.4196 | N35: 1.5713 | O35: 1.8024 | P35: 2.0842 | Q35: 2.4597 | R35: 2.9985 | S35: 1.3330625 | T35: 0.11275
A36: 21.5 | B36: 0.94106 | C36: 0.0787 | D36: 0.4001 | E36: 0.5955 | F36: 0.7341 | G36: 0.8486 | H36: 0.951 | I36: 1.0399 | J36: 1.1268 | K36: 1.2229 | L36: 1.3322 | M36: 1.4678 | N36: 1.6544 | O36: 1.9239 | P36: 2.2431 | Q36: 2.646 | R36: 3.1955 | S36: 1.34128125 | T36: 0.11825
A37: 22.5 | B37: 0.94513 | C37: -0.0189 | D37: 0.328 | E37: 0.538 | F37: 0.6871 | G37: 0.8077 | H37: 0.916 | I37: 1.0092 | J37: 1.1027 | K37: 1.2039 | L37: 1.3213 | M37: 1.4657 | N37: 1.6647 | O37: 1.9419 | P37: 2.2655 | Q37: 2.6652 | R37: 3.1901 | S37: 1.31800625 | T37: 0.12375
A38: 24 | B38: 0.94942 | C38: 0.1714 | D38: 0.414 | E38: 0.5656 | F38: 0.6759 | G38: 0.7677 | H38: 0.8488 | I38: 0.9234 | J38: 0.9953 | K38: 1.0721 | L38: 1.1581 | M38: 1.2668 | N38: 1.4243 | O38: 1.6492 | P38: 1.911 | Q38: 2.2495 | R38: 2.7159 | S38: 1.1755625 | T38: 0.132
A39: 25 | B39: 0.95165 | C39: 0.2423 | D39: 0.4382 | E39: 0.5644 | F39: 0.6592 | G39: 0.7382 | H39: 0.8085 | I39: 0.8723 | J39: 0.9329 | K39: 0.9978 | L39: 1.0686 | M39: 1.1588 | N39: 1.2882 | O39: 1.4758 | P39: 1.7003 | Q39: 1.9987 | R39: 2.4244 | S39: 1.0855375 | T39: 0.15
A40: 26.4 | B40: 0.95485 | C40: 0.2549 | D40: 0.4215 | E40: 0.5312 | F40: 0.6153 | G40: 0.6861 | H40: 0.7481 | I40: 0.8034 | J40: 0.8572 | K40: 0.9113 | L40: 0.9703 | M40: 1.0444 | N40: 1.1501 | O40: 1.3044 | P40: 1.494 | Q40: 1.7534 | R40: 2.132 | S40: 0.97985 | T40: 0.1584
A41: 28 | B41: 0.95843 | C41: 0.2672 | D41: 0.4182 | E41: 0.5192 | F41: 0.5975 | G41: 0.6631 | H41: 0.7203 | I41: 0.7713 | J41: 0.8196 | K41: 0.8692 | L41: 0.9222 | M41: 0.9883 | N41: 1.0823 | O41: 1.2199 | P41: 1.3917 | Q41: 1.6287 | R41: 1.9777 | S41: 0.928525 | T41: 0.168
A42: 30 | B42: 0.9613 | C42: 0.278 | D42: 0.4265 | E42: 0.5272 | F42: 0.605 | G42: 0.6697 | H42: 0.7262 | I42: 0.7763 | J42: 0.8237 | K42: 0.8719 | L42: 0.9238 | M42: 0.9875 | N42: 1.0797 | O42: 1.2152 | P42: 1.3825 | Q42: 1.6149 | R42: 1.955 | S42: 0.92894375 | T42: 0.18
A43: 32 | B43: 0.96298 | C43: 0.2779 | D43: 0.4313 | E43: 0.5358 | F43: 0.6156 | G43: 0.6816 | H43: 0.7398 | I43: 0.791 | J43: 0.8382 | K43: 0.887 | L43: 0.9384 | M43: 1.002 | N43: 1.0937 | O43: 1.2248 | P43: 1.3863 | Q43: 1.6068 | R43: 1.93 | S43: 0.9362625 | T43: 0.192
A44: 34 | B44: 0.95981 | C44: 0.1989 | D44: 0.356 | E44: 0.4624 | F44: 0.5425 | G44: 0.6086 | H44: 0.6663 | I44: 0.7176 | J44: 0.7647 | K44: 0.8132 | L44: 0.8649 | M44: 0.9281 | N44: 1.0168 | O44: 1.1419 | P44: 1.2971 | Q44: 1.5091 | R44: 1.8218 | S44: 0.85686875 | T44: 0.204
A45: 30.5 | B45: 0.93792 | C45: 0.3708 | D45: 0.5795 | E45: 0.7153 | F45: 0.817 | G45: 0.9009 | H45: 0.9758 | I45: 1.0426 | J45: 1.1063 | K45: 1.1712 | L45: 1.2432 | M45: 1.3338 | N45: 1.4682 | O45: 1.665 | P45: 1.9127 | Q45: 2.252 | R45: 2.7435 | S45: 1.2686125 | T45: 0.183
A46: 32 | B46: 0.9426 | C46: 0.3319 | D46: 0.5323 | E46: 0.6618 | F46: 0.7576 | G46: 0.8386 | H46: 0.9088 | I46: 0.973 | J46: 1.0352 | K46: 1.098 | L46: 1.1684 | M46: 1.258 | N46: 1.3917 | O46: 1.5858 | P46: 1.8263 | Q46: 2.1518 | R46: 2.616 | S46: 1.19595 | T46: 0.192
A47: 34 | B47: 0.94771 | C47: 0.2919 | D47: 0.49 | E47: 0.6174 | F47: 0.7115 | G47: 0.7896 | H47: 0.8593 | I47: 0.9226 | J47: 0.9837 | K47: 1.0472 | L47: 1.1179 | M47: 1.2081 | N47: 1.3438 | O47: 1.5369 | P47: 1.7731 | Q47: 2.0861 | R47: 2.5238 | S47: 1.14393125 | T47: 0.204
A48: 37 | B48: 0.95263 | C48: 0.2123 | D48: 0.4274 | E48: 0.5645 | F48: 0.6653 | G48: 0.7486 | H48: 0.8213 | I48: 0.8874 | J48: 0.9504 | K48: 1.0155 | L48: 1.0889 | M48: 1.1822 | N48: 1.3204 | O48: 1.511 | P48: 1.7404 | Q48: 2.0412 | R48: 2.4617 | S48: 1.10240625 | T48: 0.222
A49: 39.2 | B49: 0.95594 | C49: 0.1224 | D49: 0.3564 | E49: 0.5056 | F49: 0.613 | G49: 0.7008 | H49: 0.7776 | I49: 0.8454 | J49: 0.9102 | K49: 0.9792 | L49: 1.0549 | M49: 1.1505 | N49: 1.2909 | O49: 1.4787 | P49: 1.7029 | Q49: 1.9986 | R49: 2.4093 | S49: 1.056025 | T49: 0.2352
A50: 43 | B50: 0.96104 | C50: -0.0268 | D50: 0.2612 | E50: 0.4427 | F50: 0.572 | G50: 0.674 | H50: 0.7618 | I50: 0.8406 | J50: 0.9148 | K50: 0.9947 | L50: 1.0832 | M50: 1.1948 | N50: 1.3535 | O50: 1.5578 | P50: 1.797 | Q50: 2.1011 | R50: 2.5104 | S50: 1.06455 | T50: 0.258
A51: 45.5 | B51: 0.96319 | C51: -0.1869 | D51: 0.1646 | E51: 0.3882 | F51: 0.5443 | G51: 0.668 | H51: 0.7735 | I51: 0.8671 | J51: 0.9563 | K51: 1.0509 | L51: 1.1568 | M51: 1.2888 | N51: 1.47 | O51: 1.695 | P51: 1.9528 | Q51: 2.2715 | R51: 2.6782 | S51: 1.10869375 | T51: 0.273
A52: 48 | B52: 0.96412 | C52: -0.4786 | D52: -0.0324 | E52: 0.2568 | F52: 0.4605 | G52: 0.6212 | H52: 0.7561 | I52: 0.8747 | J52: 0.9877 | K52: 1.107 | L52: 1.2366 | M52: 1.3936 | N52: 1.5946 | O52: 1.8326 | P52: 2.1004 | Q52: 2.419 | R52: 2.7911 | S52: 1.12005625 | T52: 0.288
A53: 49.5 | B53: 0.9629 | C53: -0.7982 | D53: -0.2798 | E53: 0.063 | F53: 0.3111 | G53: 0.5067 | H53: 0.6712 | I53: 0.8152 | J53: 0.9512 | K53: 1.0928 | L53: 1.245 | M53: 1.4204 | N53: 1.6341 | O53: 1.8798 | P53: 2.1527 | Q53: 2.4667 | R53: 2.8081 | S53: 1.05875 | T53: 0.297
A54: 50.5 | B54: 0.96133 | C54: -1.0409 | D54: -0.4902 | E54: -0.0984 | F54: 0.1885 | G54: 0.4143 | H54: 0.6045 | I54: 0.7712 | J54: 0.9281 | K54: 1.0899 | L54: 1.2598 | M54: 1.4498 | N54: 1.673 | O54: 1.9218 | P54: 2.1945 | Q54: 2.4984 | R54: 2.8057 | S54: 1.010625 | T54: 0.303
A55: 70 | B55: 0.94054 | C55: -0.4284 | D55: -0.0795 | E55: 0.1372 | F55: 0.2711 | G55: 0.3684 | H55: 0.4381 | I55: 0.4957 | J55: 0.5403 | K55: 0.5826 | L55: 0.6216 | M55: 0.6561 | N55: 0.6945 | O55: 0.7351 | P55: 0.7776 | Q55: 0.8263 | R55: 0.883 | S55: 0.46998125 | T55: 0.42
A56: 72 | B56: 0.9432 | C56: -0.1579 | D56: 0.0982 | E56: 0.241 | F56: 0.3263 | G56: 0.3843 | H56: 0.4251 | I56: 0.46 | J56: 0.4865 | K56: 0.5127 | L56: 0.5374 | M56: 0.5604 | N56: 0.5864 | O56: 0.6152 | P56: 0.6453 | Q56: 0.6815 | R56: 0.7245 | S56: 0.44543125 | T56: 0.432
A57: 75 | B57: 0.94695 | C57: 0.0451 | D57: 0.2173 | E57: 0.2996 | F57: 0.3434 | G57: 0.3712 | H57: 0.3921 | I57: 0.409 | J57: 0.4237 | K57: 0.4374 | L57: 0.4523 | M57: 0.4652 | N57: 0.4811 | O57: 0.499 | P57: 0.5186 | Q57: 0.543 | R57: 0.5717 | S57: 0.40435625 | T57: 0.45
A58: 82 | B58: 0.95302 | C58: 0.1878 | D58: 0.2605 | E58: 0.2854 | F58: 0.2939 | G58: 0.3006 | H58: 0.3055 | I58: 0.3118 | J58: 0.316 | K58: 0.3223 | L58: 0.3284 | M58: 0.3342 | N58: 0.3403 | O58: 0.3488 | P58: 0.3578 | Q58: 0.3694 | R58: 0.3852 | S58: 0.31549375 | T58: 0.492
A59: 90 | B59: 0.958 | C59: 0.1728 | D59: 0.2159 | E59: 0.2287 | F59: 0.2338 | G59: 0.2381 | H59: 0.2412 | I59: 0.2451 | J59: 0.2493 | K59: 0.2529 | L59: 0.2566 | M59: 0.2608 | N59: 0.2648 | O59: 0.271 | P59: 0.2765 | Q59: 0.285 | R59: 0.2966 | S59: 0.24931875 | T59: 0.549
A60: 104 | B60: 0.96488 | C60: 0.1449 | D60: 0.1837 | E60: 0.1946 | F60: 0.1972 | G60: 0.1992 | H60: 0.2022 | I60: 0.2045 | J60: 0.2078 | K60: 0.2109 | L60: 0.2137 | M60: 0.2174 | N60: 0.2209 | O60: 0.2256 | P60: 0.2313 | Q60: 0.2371 | R60: 0.2463 | S60: 0.20858125 | T60: 0.6448
A61: 110 | B61: 0.96602 | C61: 0.0201 | D61: 0.0928 | E61: 0.1242 | F61: 0.1412 | G61: 0.1535 | H61: 0.1625 | I61: 0.1723 | J61: 0.1797 | K61: 0.1878 | L61: 0.1965 | M61: 0.2032 | N61: 0.211 | O61: 0.2206 | P61: 0.2302 | Q61: 0.2424 | R61: 0.2579 | S61: 0.17474375 | T61: 0.693
A62: 113 | B62: 0.96517 | C62: -0.0488 | D62: -0.0204 | E62: -0.008 | F62: 0.0022 | G62: 0.0136 | H62: 0.0256 | I62: 0.0391 | J62: 0.0522 | K62: 0.0658 | L62: 0.08 | M62: 0.0923 | N62: 0.1073 | O62: 0.123 | P62: 0.1403 | Q62: 0.1597 | R62: 0.1835 | S62: 0.0629625 | T62: 0.7119
A63: 115 | B63: 0.96404 | C63: -0.8598 | D63: -0.1023 | E63: 0.372 | F63: 0.6501 | G63: 0.8257 | H63: 0.9354 | I63: 1.0097 | J63: 1.0565 | K63: 1.0924 | L63: 1.1195 | M63: 1.1407 | N63: 1.1625 | O63: 1.186 | P63: 1.2089 | Q63: 1.2371 | R63: 1.2704 | S63: 0.83155 | T63: 0.7475
A64: 116 | B64: 0.96325 | C64: -0.4856 | D64: -0.2986 | E64: -0.1449 | F64: -0.0381 | G64: 0.0512 | H64: 0.1171 | I64: 0.1703 | J64: 0.2159 | K64: 0.252 | L64: 0.2927 | M64: 0.325 | N64: 0.3577 | O64: 0.3927 | P64: 0.4263 | Q64: 0.4637 | R64: 0.5047 | S64: 0.16263125 | T64: 0.7656
A66: Notes:
A67: [1] - Aperture efficiency estimates are from R. Lehmensiek (2020) for Bands 1, 3, 4, 5, and 6, and A. Dunning (2019) for Band 2. Efficiencies shown were computed via GRASP using the ngVLA-7 optics (Lehmensiek, 2020), except on Band 2. For this band, the original efficiencies were computed using ngVLA-6 optics (Baker, 2018), but are scaled upwards here by 6.9% to approximate response with ngVLA-7 optics. Efficiency terms due to surface ohmic loss and roughness (Ruze) are not included in the above; must be factored in separately.
A68: [2] - Spillover temperatures are derived from R. Lehmensiek (2020) for Band 1 and Bands 3-6, by subtraction of Tsky from antenna temperature. A feed-low offset Gregorian antenna and the current ngVLA #7 optics was assumed. For Band 2, spillover temperatures are from A. Dunning (2019), and assume the earlier ngVLA-6 mapping function for the optics (Baker, 2018). Dunning also assumed the SKA standard sky temperature model for his calculations, while EMSS used the model data from B. Butler (2016).
A69: [3] - The Tspill data from the CSIRO design report was only for 6 frequency points. In order to get more frequencies, these points were fitted to a spline curve (shown in the plot), and more frequency points taken to fill out the table shown for Band 2.
A70: [4] - Spillover values assume an atmospheric PWV of 6 mm for Bands 1-5, and 1 mm for Band 6.
A71: [5] - Spillover temperature gets less accurate (0 or negative values, highlighted) for high Tatm (Tant), when atmospheric absorption is high.
A72: [6] - Surface loss noise temperature estimates for a carbon fiber dish are from "ngVLA 18m Antenna Preliminary Design Document", D. Chalmers, NRC Doc# 101-0000-001-PDD-001, Rev. 1, 7/25/2019, sec 6.1. Their improved carbon fiber material (C1/C2) is assumed as a worst-case; Al 6061 alloy panels would have ~0.1 - 0.35 K lower loss at Band 6.

Sheet Data - LNAs
B1: LNA Gain and Noise Temperature vs. Frequency, Bands 1-6
B3: 1 | F3: 2 | J3: 3 | N3: 4 | R3: 5 | V3: 6
B4: Freq. | C4: Ga [1] | D4: Tn [1] | F4: Freq. | G4: Ga [2] | H4: Tn [2] | J4: Freq. | K4: Ga [3] | L4: Tn [3] | N4: Freq. | O4: Ga [4] | P4: Tn [4] | R4: Freq. | S4: Ga [5] | T4: Tn [5] | V4: Freq. | W4: Ga [6] | X4: Tn [6]
B5: (GHz) | C5: (dB) | D5: (K) | F5: (GHz) | G5: (dB) | H5: (K) | J5: (GHz) | K5: (dB) | L5: (K) | N5: (GHz) | O5: (dB) | P5: (K) | R5: (GHz) | S5: (dB) | T5: (K) | V5: (GHz) | W5: (dB) | X5: (K)
B6: 1 | C6: 23 | D6: =8.4*LNA_Tn_Derate_Factor -> 9.492 | F6: 3 | G6: 36.4 | H6: =4.1*LNA_Tn_Derate_Factor -> 4.633 | J6: 12 | K6: 35.2 | L6: 5 | N6: 20 | O6: 33.9 | P6: 6 | R6: 30 | S6: 33 | T6: 8 | V6: 70 | W6: 19 | X6: 25
B7: 1.2 | C7: 26 | D7: =3.5*LNA_Tn_Derate_Factor -> 3.955 | F7: 3.5 | G7: 37.3 | H7: =3.8*LNA_Tn_Derate_Factor -> 4.294 | J7: 12.5 | K7: 35 | L7: 5 | N7: 21 | O7: 33.4 | P7: 5.3 | R7: 31 | S7: 33.5 | T7: 7.6 | V7: 72 | W7: 19 | X7: 23
B8: 1.4 | C8: 27.7 | D8: =2.2*LNA_Tn_Derate_Factor -> 2.486 | F8: 4 | G8: 37 | H8: =3.5*LNA_Tn_Derate_Factor -> 3.955 | J8: 13 | K8: 34.6 | L8: 5 | N8: 22 | O8: 32.8 | P8: 5.6 | R8: 32 | S8: 33 | T8: 7.2 | V8: 74 | W8: 19 | X8: 23.5
B9: 1.6 | C9: 27.5 | D9: =1.5*LNA_Tn_Derate_Factor -> 1.695 | F9: 4.5 | G9: 36.5 | H9: =3.2*LNA_Tn_Derate_Factor -> 3.616 | J9: 13.5 | K9: 34.2 | L9: 5.3 | N9: 23 | O9: 31.5 | P9: 6 | R9: 33 | S9: 32.5 | T9: 7 | V9: 76 | W9: 19 | X9: 25
B10: 1.8 | C10: 27.2 | D10: =1.3*LNA_Tn_Derate_Factor -> 1.469 | F10: 5 | G10: 36.1 | H10: =3.2*LNA_Tn_Derate_Factor -> 3.616 | J10: 14 | K10: 34.6 | L10: 6 | N10: 24 | O10: 31.5 | P10: 6 | R10: 34 | S10: 32.5 | T10: 7.6 | V10: 78 | W10: 19 | X10: 26
B11: 2 | C11: 26.8 | D11: =1*LNA_Tn_Derate_Factor -> 1.13 | F11: 5.5 | G11: 36.1 | H11: =3.2*LNA_Tn_Derate_Factor -> 3.616 | J11: 14.5 | K11: 35 | L11: 6.5 | N11: 25 | O11: 31 | P11: 6.5 | R11: 35 | S11: 34 | T11: 7.8 | V11: 80 | W11: 19 | X11: 26.5
B12: 2.2 | C12: 26.8 | D12: =1.1*LNA_Tn_Derate_Factor -> 1.243 | F12: 6 | G12: 36.2 | H12: =3.1*LNA_Tn_Derate_Factor -> 3.503 | J12: 15 | K12: 35 | L12: 7 | N12: 26 | O12: 30 | P12: 6.2 | R12: 36 | S12: 33.8 | T12: 8 | V12: 84 | W12: 19 | X12: 25.5
B13: 2.4 | C13: 26.3 | D13: =1.1*LNA_Tn_Derate_Factor -> 1.243 | F13: 6.5 | G13: 36.5 | H13: =3*LNA_Tn_Derate_Factor -> 3.39 | J13: 16 | K13: 34.6 | L13: 8 | N13: 27 | O13: =27.8+0.1 -> 27.9 | P13: =5.8-0.1 -> 5.7 | R13: 37 | S13: 34 | T13: 8.2 | V13: 88 | W13: 19 | X13: 26
B14: 2.6 | C14: 26.4 | D14: 1.243 | F14: 7 | G14: 37 | H14: =3*LNA_Tn_Derate_Factor -> 3.39 | J14: 17 | K14: 34 | L14: 7.5 | N14: 28 | O14: =27.4+0.07 -> 27.47 | P14: 5.7 | R14: 38 | S14: 34 | T14: 8.2 | V14: 92 | W14: 19 | X14: 26
B15: 2.8 | C15: 26.3 | D15: =1.3*LNA_Tn_Derate_Factor -> 1.469 | F15: 7.5 | G15: 37.2 | H15: =3.1*LNA_Tn_Derate_Factor -> 3.503 | J15: 18 | K15: 34.6 | L15: 6 | N15: 29 | O15: 28 | P15: 6 | R15: 40 | S15: 34.2 | T15: 8.6 | V15: 96 | W15: 19 | X15: 27
B16: 3 | C16: 26.2 | D16: =1.5*LNA_Tn_Derate_Factor -> 1.695 | F16: 8 | G16: 37.6 | H16: =3.4*LNA_Tn_Derate_Factor -> 3.842 | J16: 19 | K16: 35 | L16: 6 | N16: 30 | O16: 28 | P16: 6.3 | R16: 42 | S16: 34.5 | T16: 10.4 | V16: 100 | W16: 19 | X16: 27.5
B17: 3.2 | C17: 26.4 | D17: =1.6*LNA_Tn_Derate_Factor -> 1.808 | F17: 9 | G17: 38 | H17: =3.7*LNA_Tn_Derate_Factor -> 4.181 | J17: 20 | K17: 34.6 | L17: 8 | N17: 31 | O17: 28 | P17: 6.5 | R17: 44 | S17: 34.8 | T17: 11.6 | V17: 104 | W17: 19 | X17: 26.5
B18: 3.4 | C18: 26.4 | D18: =1.6*LNA_Tn_Derate_Factor -> 1.808 | F18: 10 | G18: 38.1 | H18: =4*LNA_Tn_Derate_Factor -> 4.52 | J18: 21 | K18: 34 | L18: 9.5 | N18: 32 | O18: 28 | P18: 6.7 | R18: 46 | S18: 35 | T18: 12.4 | V18: 108 | W18: 19 | X18: 26
B19: 3.6 | C19: 26.3 | D19: =1.9*LNA_Tn_Derate_Factor -> 2.147 | F19: 11 | G19: 38 | H19: =4.7*LNA_Tn_Derate_Factor -> 5.311 | J19: 22 | K19: 33 | L19: 8.5 | N19: 33 | O19: 28 | P19: 7.3 | R19: 48 | S19: 34.8 | T19: 13.6 | V19: 112 | W19: 19 | X19: 25.5
B20: 3.8 | C20: 26.1 | D20: =2.1*LNA_Tn_Derate_Factor -> 2.373 | F20: 12 | G20: 38.1 | H20: =4.7*LNA_Tn_Derate_Factor -> 5.311 | J20: 23 | K20: 32.5 | L20: 9 | N20: 34 | O20: 28 | P20: 7.8 | R20: 50 | S20: 33.5 | T20: 14 | V20: 114 | W20: 19 | X20: 27
B21: 4 | C21: 25.6 | D21: =3*LNA_Tn_Derate_Factor -> 3.39 | F21: 13 | G21: 38.1 | H21: =5*LNA_Tn_Derate_Factor -> 5.65 | J21: 24 | K21: 33 | L21: 10 | N21: 35 | O21: 28 | P21: 8 | R21: 52 | S21: 32 | T21: 14.4 | V21: 115 | W21: 19 | X21: 28
V22: 116 | W22: 19 | X22: 42
B23: NOTES:
B24: [1] - Band 1 LNA data is a Low Noise Factory LNF-LNC1.5_3.5A (1.5-3.5 GHz). Data has been derated per [8] to account for 20K vs. 4K operation. N. Wadefalk at LNF states (4/2/20) that the noise temp at 1.2 could be improved to from 3.5K to 2K, with a quick redesign.
B25: [2] - Band 2 LNA data is a Low Noise Factory LNF-LNC0.3_14 (0.6-14 GHz). Data has been derated per [8], to account for 20K vs. 4K operation.
B26: [3] - Band 3 LNA data is a Caltech 1-18 GHz GaAs MMIC LNA (p/n CIT-118), based on OMMIC WBA118B device, T=19K (August 2014). A version with a waveguide input, or an NRAO or Low Noise Factory (LNF) amp would likely perform better, by ~0.5 - 2K.
B27: [4] - Band 4 LNA is a combination of data from Low Noise Factory LNF-LNC16_28WB (20-26 GHz) and LNF-LNC23_42WB (27-35 GHz), assuming a custom WR-34 housing. A custom MMIC from LNF will be required for Band 4, but N. Wadefalk wrote (8/14/18) that there would be no added NRE or price change, as it's a simple design change, and the WR-34 launcher exists.
B28: [5] - Band 5 LNA data is a Low Noise Factory LNF-LNC28_52WB, 28-52 GHz, in a WR-22 housing.
B29: [6] - Band 6 LNA data is of a 35nm MMIC LNA based on 35nm NGIC devices, from David Quadrado-Calle, U. of Manchester.
B30: [7] - Numbers highlighted in yellow are either undetermined or rough estimates.
B31: [8] - McCullock, Grahn, Melhuish, Nilsson, Piccirillo, Schleeh, Wadefalk, "Dependence of noise temperature on physical temperature for cryogenic low-noise amplifiers", SPIE J. Astron. Telesc. Instrum. Syst. 3(1), 014003 (2017).

Sheet Data - Passives
B1: Passive RF Component Gains vs. Frequency
B3: Radome [2] | E3: Window [3] | H3: IR Filter [3] | K3: Feed Horn [4] | N3: Cal Coupler [5,6] | R3: Coax (141 Cu) | U3: Coax (086 SS)
B4: Freq. | C4: Gain | E4: Freq. | F4: Gain | H4: Freq. | I4: Gain | K4: Freq. | L4: Gain | N4: Freq. | O4: Gain | P4: Coupling | R4: Freq. | S4: Gain | U4: Freq. | V4: Gain
B5: (GHz) | C5: (dB) | E5: (GHz) | F5: (dB) | H5: (GHz) | I5: (dB) | K5: (GHz) | L5: (dB) | N5: (GHz) | O5: (dB) | P5: (dB) | R5: (GHz) | S5: (dB/m) | U5: (GHz) | V5: (dB/m)
B6: 1 | C6: 0 | E6: 1 | F6: -0.02 | H6: 1 | I6: -0.02 | K6: 1 | L6: -0.1 | N6: 1 | O6: -0.45 | P6: -30 | R6: 1 | S6: =-Cable_Param("Loss",1,R6) -> -0.374723 | U6: 1 | V6: =-Cable_Param("Loss",4,U6) -> -1.428514228
B7: 2 | C7: 0 | E7: 2 | F7: -0.02 | H7: 2 | I7: -0.02 | K7: 2 | L7: -0.1 | N7: 2 | O7: -0.45 | P7: -30 | R7: 2 | S7: =-Cable_Param("Loss",1,R7) -> -0.5461195275 | U7: 2 | V7: =-Cable_Param("Loss",4,U7) -> -2.020407093
B8: =fLO_Band2-Delta_F -> 3.39 | C8: 0 | E8: =fLO_Band2-Delta_F -> 3.39 | F8: -0.02 | H8: 4 | I8: -0.02 | K8: =fLO_Band2-Delta_F -> 3.39 | L8: -0.13 | N8: 4 | O8: -0.45 | P8: -30 | R8: =fLO_Band2-Delta_F -> 3.39 | S8: =-Cable_Param("Loss",1,R8) -> -0.7327208461 | U8: 3 | V8: =-Cable_Param("Loss",4,U8) -> -2.47465511
B9: =fLO_Band2+Delta_F -> 3.41 | C9: 0 | E9: =fLO_Band2+Delta_F -> 3.41 | F9: -0.02 | H9: 8 | I9: -0.03 | K9: =fLO_Band2+Delta_F -> 3.41 | L9: -0.13 | N9: 8 | O9: -0.45 | P9: -30 | R9: =fLO_Band2+Delta_F -> 3.41 | S9: =-Cable_Param("Loss",1,R9) -> -0.7351557222 | U9: 4 | V9: =-Cable_Param("Loss",4,U9) -> -2.85765291
B10: 4 | C10: 0 | E10: 4 | F10: -0.02 | H10: 12 | I10: -0.03 | K10: 4 | L10: -0.15 | N10: =fLO_Band3-Delta_F -> 12.29 | O10: -0.45 | P10: -30 | R10: 4 | S10: =-Cable_Param("Loss",1,R10) -> -0.804692 | U10: 5 | V10: =-Cable_Param("Loss",4,U10) -> -3.195117895
B11: 8 | C11: 0 | E11: 8 | F11: -0.03 | H11: 16 | I11: -0.03 | K11: 8 | L11: -0.2 | N11: =fLO_Band3+Delta_F -> 12.31 | O11: -0.2 | P11: -30 | R11: 6 | S11: -1.01595589 | U11: 6 | V11: -3.500239515
B12: =fLO_Band3-Delta_F -> 12.29 | C12: 0 | E12: =fLO_Band3-Delta_F -> 12.29 | F12: -0.03 | H12: 20 | I12: -0.03 | K12: =fLO_Band3-Delta_F -> 12.29 | L12: -0.3 | N12: 16 | O12: -0.2 | P12: -30 | R12: 8 | S12: -1.202731055 | U12: 8 | V12: -4.042063096
B13: =fLO_Band3+Delta_F -> 12.31 | C13: -0.03 | E13: =fLO_Band3+Delta_F -> 12.31 | F13: -0.03 | H13: 28 | I13: -0.03 | K13: =fLO_Band3+Delta_F -> 12.31 | L13: -0.05 | N13: 20 | O13: -0.2 | P13: -30 | R13: 12 | S13: -1.533865671 | U13: 10 | V13: =-Cable_Param("Loss",4,U13) -> -4.519493554
B14: 16 | C14: -0.03 | E14: 16 | F14: -0.03 | H14: 36 | I14: -0.03 | K14: 16 | L14: -0.05 | N14: 28 | O14: -0.2 | P14: -30 | R14: 16 | S14: =-Cable_Param("Loss",1,R14) -> -1.830368 | U14: 12 | V14: =-Cable_Param("Loss",4,U14) -> -4.951183585
B15: 20 | C15: -0.04 | E15: 20 | F15: -0.03 | H15: 44 | I15: -0.03 | K15: 20 | L15: -0.05 | N15: 36 | O15: -0.25 | P15: -30 | U15: 14 | V15: -5.348213748
B16: 28 | C16: -0.05 | E16: 28 | F16: -0.03 | H16: 52 | I16: -0.03 | K16: 28 | L16: -0.05 | N16: 44 | O16: -0.2 | P16: -30 | U16: 16 | V16: -5.71780364
B17: 36 | C17: -0.05 | E17: 36 | F17: -0.03 | H17: 68 | I17: -0.03 | K17: 36 | L17: -0.05 | N17: 52 | O17: -0.2 | P17: -30 | U17: 18 | V17: -6.06496801
B18: 44 | C18: -0.05 | E18: 44 | F18: -0.03 | H18: 84 | I18: -0.03 | K18: 44 | L18: -0.05 | N18: 68 | O18: -0.7 | P18: -30 | U18: 20 | V18: -6.393358065
B19: 52 | C19: -0.05 | E19: 52 | F19: -0.03 | H19: 100 | I19: -0.04 | K19: 52 | L19: -0.05 | N19: 84 | O19: -0.55 | P19: -30 | U19: 22 | V19: -6.705730174
B20: 68 | C20: -0.05 | E20: 68 | F20: -0.03 | H20: 116 | I20: -0.05 | K20: 68 | L20: -0.05 | N20: 100 | O20: -0.5 | P20: -30 | U20: 25 | V20: -7.148815687
B21: 84 | C21: -0.06 | E21: 84 | F21: -0.03 | K21: 84 | L21: -0.06 | N21: 116 | O21: -0.5 | P21: -30 | U21: 28 | V21: -7.566076998
B22: 100 | C22: -0.07 | E22: 100 | F22: -0.04 | K22: 100 | L22: -0.07 | U22: 31 | V22: =-Cable_Param("Loss",4,U22) -> -7.961571251
B23: 116 | C23: -0.08 | E23: 116 | F23: -0.05 | K23: 116 | L23: -0.08 | U23: 35 | V23: =-Cable_Param("Loss",4,U23) -> -8.460284941
B27: NOTES:
B28: [1] - Numbers highlighted in yellow are either undetermined or rough estimates.
B29: [2] - Weather radome assumed to be Gore R7906 equivalent (PTFE, 0.012" thk). Data on R7906 performance from Hayward (2004, 2006).
B30: Bands 1 & 2 have a robust vacuum window that serves as a radome: hence the loss is shown as zero.
B31: [3] - Vacuum window and IR filter loss estimates from Weinreb/Hani (2017).
B32: [4] - Feed loss estimates from Weinreb/Hani (Bands 1, 2), and Hayward (2006)
B33: for Band 3-5 frequencies. Band 6 is a SWAG.
B34: [5] - WG coupler thru loss for Bands 3-5 from Hayward. Bands 1 & 2 from vendor data, assuming 2-octave coax type.
B35: [6] - Coupling factor data is nominal; eventually will be updated with actual measured data.

Sheet Data - WG and OMT
B1: Waveguide and OMT Loss vs. Frequency, Bands 3-6
B3: 3 | F3: 4 | J3: 5 | N3: 6
B4: EIA: | C4: WR56.3 | F4: EIA: | G4: WR34 | J4: EIA: | K4: WR22 | N4: EIA: | O4: WR10
B5: Freq. | C5: WG | D5: OMT | F5: Freq. | G5: WG | H5: OMT | J5: Freq. | K5: WG | L5: OMT | N5: Freq. | O5: WG | P5: OMT
B6: (GHz) | C6: (dB/m) | D6: (dB) | F6: (GHz) | G6: (dB/m) | H6: (dB) | J6: (GHz) | K6: (dB/m) | L6: (dB) | N6: (GHz) | O6: (dB/m) | P6: (dB)
B7: 12 | C7: =-Waveguide_loss(WG_Size_Band3,"Au",$B7) -> -0.3966983437 | D7: =-OMT_loss(WG_Size_Band3,"Au",$B7) -> -0.1116705837 | F7: 20 | G7: =-Waveguide_loss(WG_Size_Band4,"Au",$F7) -> -0.8263592079 | H7: =-OMT_loss(WG_Size_Band4,"Au",$F7) -> -0.1404810653 | J7: 30 | K7: =-Waveguide_loss(WG_Size_Band5,"Au",$J7) -> -1.611867422 | L7: =-OMT_loss(WG_Size_Band5,"Au",$J7) -> -0.1805291513 | N7: 70 | O7: =-Waveguide_loss(WG_Size_Band6,"Au",$N7) -> -4.738945963 | P7: =-OMT_loss(WG_Size_Band6,"Au",$N7) -> -0.2369472981
B8: 12.3 | C8: -0.365954447 | D8: -0.1030161768 | F8: 20.5 | G8: -0.7651155823 | H8: -0.130069649 | J8: 31 | K8: -1.446358296 | L8: -0.1619921291 | N8: 72 | O8: -4.409925033 | P8: -0.2204962517
B9: 12.5 | C9: -0.3495994098 | D9: -0.09841223386 | F9: 21 | G9: -0.71771337 | H9: -0.1220112729 | J9: 32 | K9: -1.329405884 | L9: -0.148893459 | N9: 74 | O9: -4.154502188 | P9: -0.2077251094
B10: 13 | C10: -0.318203501 | D10: -0.08957428552 | F10: 22 | G10: -0.6488089906 | H10: -0.1102975284 | J10: 33 | K10: -1.241936248 | L10: -0.1390968597 | N10: 76 | O10: -3.950223797 | P10: -0.1975111899
B11: 13.5 | C11: -0.2956709057 | D11: -0.08323135996 | F11: 23 | G11: -0.6010441626 | H11: -0.1021775077 | J11: 34 | K11: -1.173931369 | L11: -0.1314803133 | N11: 78 | O11: -3.783161424 | P11: -0.1891580712
B12: 14 | C12: -0.2787096205 | D12: -0.07845675817 | F12: 24 | G12: -0.5660692933 | H12: -0.09623177986 | J12: 35 | K12: -1.119559196 | L12: -0.12539063 | N12: 80 | O12: -3.644156536 | P12: -0.1822078268
B13: 14.5 | C13: -0.2655136637 | D13: -0.07474209633 | F13: 25 | G13: -0.5395068598 | H13: -0.09171616616 | J13: 36 | K13: -1.075164027 | L13: -0.120418371 | N13: 84 | O13: -3.426916702 | P13: -0.1713458351
B14: 15 | C14: -0.254998898 | D14: -0.07178218979 | F14: 26 | G14: -0.5188120428 | H14: -0.08819804727 | J14: 37 | K14: -1.038322772 | L14: -0.1162921504 | N14: 88 | O14: -3.266300575 | P14: -0.1633150287
B15: 16 | C15: -0.2394582268 | D15: -0.06740749084 | F15: 27 | G15: -0.5023917488 | H15: -0.0854065973 | J15: 38 | K15: -1.00735758 | L15: -0.112824049 | N15: 92 | O15: -3.144265324 | P15: -0.1572132662
B16: 17 | C16: -0.228758789 | D16: -0.0643955991 | F16: 28 | G16: -0.4891914667 | H16: -0.08316254933 | J16: 40 | K16: -0.9585567064 | L16: -0.1073583511 | N16: 96 | O16: -3.049819206 | P16: -0.1524909603
B17: 18 | C17: -0.2211856097 | D17: -0.06226374912 | F17: 29 | G17: -0.4784821053 | H17: -0.08134195791 | J17: 42 | K17: -0.9223577991 | L17: -0.1033040735 | N17: 100 | O17: -2.975838405 | P17: -0.1487919203
B18: 19 | C18: -0.2157550216 | D18: -0.06073503859 | F18: 30 | G18: -0.4697416296 | H18: -0.07985607703 | J18: 44 | K18: -0.8949838867 | L18: -0.1002381953 | N18: 104 | O18: -2.91748054 | P18: -0.145874027
B19: 20 | C19: -0.2118582493 | D19: -0.05963809718 | F19: 31 | G19: -0.4625853809 | H19: -0.07863951475 | J19: 46 | K19: -0.8740465027 | L19: -0.0978932083 | N19: 108 | O19: -2.871327101 | P19: -0.143566355
B20: 20.5 | C20: -0.2103548504 | D20: -0.05921489038 | F20: 32 | G20: -0.456723057 | H20: -0.07764291968 | J20: 48 | K20: -0.8579533957 | L20: -0.09609078031 | N20: 112 | O20: -2.834889399 | P20: -0.14174447
B21: 21 | C21: -0.2090965388 | D21: -0.05886067566 | F21: 33 | G21: -0.4519310776 | H21: -0.0768282832 | J21: 50 | K21: -0.845598283 | L21: -0.0947070077 | N21: 114 | O21: -2.819714254 | P21: -0.1409857127
B22: 22 | C22: -0.207196965 | D22: -0.05832594564 | F22: 34 | G22: -0.4480342282 | H22: -0.0761658188 | J22: 52 | K22: -0.8361865197 | L22: -0.0936528902 | N22: 115 | O22: -2.812801155 | P22: -0.1406400577
N23: 116 | O23: -2.806308913 | P23: -0.1403154457
B25: NOTES:
B26: [1] - All loss calculations assume >5 skin depths of Au plating, air dielectric
B27: [2] - OMT in Bands 3-6 is double-ridged WG type (Gonzalez, 2018). Nominal loss for Band 6 is
B28: roughly equivalent to a 50 mm-long WR10 waveguide section. For Bands 3, 4 and 5, this
B29: equivalent waveguide length is scaled by the increase in waveguide dimensions.
B30: Bands 1 & 2 have an OMT that is integral with the feed horn, so no table is needed.

Sheet Constants (hidden)
B1: Receiver Noise Cascade Analysis: Internal constants
B3: Component Lookup Table Names (normally not changed):
B4: Cal_Coupler
B5: Cal_Inj_Band1
B6: Cal_Inj_Band2
B7: Cal_Inj_Band3
B8: Cal_Inj_Band4
B9: Cal_Inj_Band5
B10: Cal_Inj_Band6
B11: Coax_086SS
B12: Coax_141Cu
B13: Feed_Horn
B14: IR_Filter
B15: LNA_Band1
B16: LNA_Band2
B17: LNA_Band3
B18: LNA_Band4
B19: LNA_Band5
B20: LNA_Band6
B21: (Lossless)
B22: OMT_Band3
B23: OMT_Band4
B24: OMT_Band5
B25: OMT_Band6
B26: Vacuum_Window
B27: WG_Band3
B28: WG_Band4
B29: WG_Band5
B30: WG_Band6
B31: Weather_Radome
